Workbook

Sheet Model Tollway Case
A1: =_xlfn.SEQUENCE(,100) -> 1 | B1: 2 | C1: 3 | D1: 4 | E1: 5 | F1: 6 | G1: 7 | H1: 8 | I1: 9 | J1: 10 | K1: 11 | L1: 12 | M1: 13 | N1: 14 | O1: 15 | P1: 16 | Q1: 17 | R1: 18 | S1: 19 | T1: 20 | U1: 21 | V1: 22 | W1: 23 | X1: 24 | Y1: 25 | Z1: 26 | AA1: 27 | AB1: 28 | AC1: 29 | AD1: 30 | AE1: 31 | AF1: 32 | AG1: 33 | AH1: 34 | AI1: 35 | AJ1: 36 | AK1: 37 | AL1: 38 | AM1: 39 | AN1: 40 | AO1: 41 | AP1: 42 | AQ1: 43 | AR1: 44 | AS1: 45 | AT1: 46 | AU1: 47 | AV1: 48 | AW1: 49 | AX1: 50 | AY1: 51 | AZ1: 52 | BA1: 53 | BB1: 54 | BC1: 55 | BD1: 56 | BE1: 57 | BF1: 58 | BG1: 59 | BH1: 60 | BI1: 61 | BJ1: 62 | BK1: 63 | BL1: 64 | BM1: 65 | BN1: 66 | BO1: 67 | BP1: 68 | BQ1: 69 | BR1: 70 | BS1: 71 | BT1: 72 | BU1: 73 | BV1: 74 | BW1: 75 | BX1: 76 | BY1: 77 | BZ1: 78 | CA1: 79 | CB1: 80 | CC1: 81 | CD1: 82 | CE1: 83 | CF1: 84 | CG1: 85 | CH1: 86 | CI1: 87 | CJ1: 88 | CK1: 89 | CL1: 90 | CM1: 91 | CN1: 92 | CO1: 93 | CP1: 94 | CQ1: 95 | CR1: 96 | CS1: 97 | CT1: 98 | CU1: 99 | CV1: 100
A2: =A1-$I$1+1 -> -7 | B2: =B1-$I$1+1 -> -6 | C2: -5 | D2: -4 | E2: -3 | F2: -2 | G2: -1 | H2: 0 | I2: 1 | J2: 2 | K2: 3 | L2: 4 | M2: 5 | N2: 6 | O2: 7 | P2: 8 | Q2: 9 | R2: 10 | S2: 11 | T2: 12 | U2: 13 | V2: 14 | W2: 15 | X2: 16 | Y2: 17 | Z2: 18 | AA2: 19 | AB2: 20 | AC2: 21 | AD2: 22 | AE2: 23 | AF2: 24 | AG2: 25 | AH2: 26 | AI2: 27 | AJ2: 28 | AK2: 29 | AL2: 30 | AM2: 31 | AN2: 32 | AO2: 33 | AP2: 34 | AQ2: 35 | AR2: 36 | AS2: 37 | AT2: 38 | AU2: 39 | AV2: 40 | AW2: 41 | AX2: 42 | AY2: 43 | AZ2: 44 | BA2: 45 | BB2: 46 | BC2: 47 | BD2: 48 | BE2: 49 | BF2: 50 | BG2: 51 | BH2: 52 | BI2: 53 | BJ2: 54 | BK2: 55 | BL2: 56 | BM2: 57 | BN2: =BN1-$I$1+1 -> 58 | BO2: 59 | BP2: 60 | BQ2: 61 | BR2: 62 | BS2: 63 | BT2: 64 | BU2: 65 | BV2: 66 | BW2: 67 | BX2: 68 | BY2: 69 | BZ2: 70 | CA2: 71 | CB2: 72 | CC2: 73 | CD2: 74 | CE2: 75 | CF2: 76 | CG2: 77 | CH2: 78 | CI2: 79 | CJ2: 80 | CK2: 81 | CL2: 82 | CM2: 83 | CN2: 84 | CO2: 85 | CP2: 86 | CQ2: 87 | CR2: 88 | CS2: 89 | CT2: 90 | CU2: 91 | CV2: 92
B3: Timing
C4: Period | I4: =_xlfn.SEQUENCE(,120) -> 1 | J4: 2 | K4: 3 | L4: 4 | M4: 5 | N4: 6 | O4: 7 | P4: 8 | Q4: 9 | R4: 10 | S4: 11 | T4: 12 | U4: 13 | V4: 14 | W4: 15 | X4: 16 | Y4: 17 | Z4: 18 | AA4: 19 | AB4: 20 | AC4: 21 | AD4: 22 | AE4: 23 | AF4: 24 | AG4: 25 | AH4: 26 | AI4: 27 | AJ4: 28 | AK4: 29 | AL4: 30 | AM4: 31 | AN4: 32 | AO4: 33 | AP4: 34 | AQ4: 35 | AR4: 36 | AS4: 37 | AT4: 38 | AU4: 39 | AV4: 40 | AW4: 41 | AX4: 42 | AY4: 43 | AZ4: 44 | BA4: 45 | BB4: 46 | BC4: 47 | BD4: 48 | BE4: 49 | BF4: 50 | BG4: 51 | BH4: 52 | BI4: 53 | BJ4: 54 | BK4: 55 | BL4: 56 | BM4: 57 | BN4: 58 | BO4: 59 | BP4: 60 | BQ4: 61 | BR4: 62 | BS4: 63 | BT4: 64 | BU4: 65 | BV4: 66 | BW4: 67 | BX4: 68 | BY4: 69 | BZ4: 70 | CA4: 71 | CB4: 72 | CC4: 73 | CD4: 74 | CE4: 75 | CF4: 76 | CG4: 77 | CH4: 78 | CI4: 79 | CJ4: 80 | CK4: 81 | CL4: 82 | CM4: 83 | CN4: 84 | CO4: 85 | CP4: 86 | CQ4: 87 | CR4: 88 | CS4: 89 | CT4: 90 | CU4: 91 | CV4: 92 | CW4: 93 | CX4: 94 | CY4: 95 | CZ4: 96 | DA4: 97 | DB4: 98 | DC4: 99 | DD4: 100 | DE4: 101 | DF4: 102 | DG4: 103 | DH4: 104 | DI4: 105 | DJ4: 106 | DK4: 107 | DL4: 108 | DM4: 109 | DN4: 110 | DO4: 111 | DP4: 112 | DQ4: 113 | DR4: 114 | DS4: 115 | DT4: 116 | DU4: 117 | DV4: 118 | DW4: 119 | DX4: 120
C5: Construction Periods | E5: Years | F5: 1 | I5: =I4<=$F$5 -> TRUE | J5: =J4<=$F$5 -> FALSE | K5: FALSE | L5: FALSE | M5: FALSE | N5: FALSE | O5: FALSE | P5: FALSE | Q5: FALSE | R5: FALSE | S5: FALSE | T5: FALSE | U5: FALSE | V5: FALSE | W5: FALSE | X5: FALSE | Y5: FALSE | Z5: FALSE | AA5: FALSE | AB5: FALSE | AC5: FALSE | AD5: FALSE | AE5: FALSE | AF5: FALSE | AG5: FALSE | AH5: FALSE | AI5: FALSE | AJ5: FALSE | AK5: FALSE | AL5: FALSE | AM5: FALSE | AN5: FALSE | AO5: FALSE | AP5: FALSE | AQ5: FALSE | AR5: FALSE | AS5: FALSE | AT5: FALSE | AU5: FALSE | AV5: FALSE
C6: Operating Life | E6: Life | F6: 30 | G6: =F6+F5 -> 31 | I6: =AND(NOT(I5),I4<=$G$6) -> FALSE | J6: =AND(NOT(J5),J4<=$G$6) -> TRUE | K6: =AND(NOT(K5),K4<=$G$6) -> TRUE | L6: TRUE | M6: TRUE | N6: TRUE | O6: TRUE | P6: TRUE | Q6: TRUE | R6: TRUE | S6: TRUE | T6: TRUE | U6: TRUE | V6: TRUE | W6: TRUE | X6: TRUE | Y6: TRUE | Z6: TRUE | AA6: TRUE | AB6: TRUE | AC6: TRUE | AD6: TRUE | AE6: TRUE | AF6: TRUE | AG6: TRUE | AH6: TRUE | AI6: TRUE | AJ6: TRUE | AK6: TRUE | AL6: TRUE | AM6: TRUE | AN6: FALSE | AO6: FALSE | AP6: FALSE | AQ6: FALSE | AR6: FALSE | AS6: FALSE | AT6: FALSE | AU6: FALSE | AV6: FALSE
B8: Operating Cash Flow
C9: Inflation Index | E9: % | F9: 0.02 | G9: 1 | I9: =G9*(1+$F$9*I6) -> 1 | J9: =I9*(1+$F$9*J6) -> 1.02 | K9: 1.0404 | L9: 1.061208 | M9: 1.08243216 | N9: 1.104080803 | O9: 1.126162419 | P9: 1.148685668 | Q9: 1.171659381 | R9: 1.195092569 | S9: 1.21899442 | T9: 1.243374308 | U9: 1.268241795 | V9: 1.29360663 | W9: 1.319478763 | X9: 1.345868338 | Y9: 1.372785705 | Z9: 1.400241419 | AA9: 1.428246248 | AB9: 1.456811173 | AC9: 1.485947396 | AD9: 1.515666344 | AE9: 1.545979671 | AF9: 1.576899264 | AG9: 1.608437249 | AH9: 1.640605994 | AI9: 1.673418114 | AJ9: 1.706886477 | AK9: 1.741024206 | AL9: 1.77584469 | AM9: 1.811361584 | AN9: 1.811361584 | AO9: 1.811361584 | AP9: 1.811361584 | AQ9: 1.811361584 | AR9: 1.811361584 | AS9: 1.811361584 | AT9: 1.811361584 | AU9: 1.811361584 | AV9: 1.811361584
C11: Revenues (Minimum Traffic Case) | E11: Annual Euro | F11: 65 | H11: =SUM(I11:XFD11) -> 2689.663651 | I11: =$F$11*I9*I6 -> 0 | J11: =$F$11*J9*J6 -> 66.3 | K11: 67.626 | L11: 68.97852 | M11: 70.3580904 | N11: 71.76525221 | O11: 73.20055725 | P11: 74.6645684 | Q11: 76.15785977 | R11: 77.68101696 | S11: 79.2346373 | T11: 80.81933005 | U11: 82.43571665 | V11: 84.08443098 | W11: 85.7661196 | X11: 87.48144199 | Y11: 89.23107083 | Z11: 91.01569225 | AA11: 92.83600609 | AB11: 94.69272621 | AC11: 96.58658074 | AD11: 98.51831235 | AE11: 100.4886786 | AF11: 102.4984522 | AG11: 104.5484212 | AH11: 106.6393896 | AI11: 108.7721774 | AJ11: 110.947621 | AK11: 113.1665734 | AL11: 115.4299049 | AM11: 117.738503 | AN11: 0 | AO11: 0 | AP11: 0 | AQ11: 0 | AR11: 0 | AS11: 0 | AT11: 0 | AU11: 0 | AV11: 0
C12: Operating Expense | E12: Annual Euro | F12: 10 | H12: =SUM(I12:XFD12) -> 413.7944079 | I12: =$F$12*I9*I6 -> 0 | J12: =$F$12*J9*J6 -> 10.2 | K12: 10.404 | L12: 10.61208 | M12: 10.8243216 | N12: 11.04080803 | O12: 11.26162419 | P12: 11.48685668 | Q12: 11.71659381 | R12: 11.95092569 | S12: 12.1899442 | T12: 12.43374308 | U12: 12.68241795 | V12: 12.9360663 | W12: 13.19478763 | X12: 13.45868338 | Y12: 13.72785705 | Z12: 14.00241419 | AA12: 14.28246248 | AB12: 14.56811173 | AC12: 14.85947396 | AD12: 15.15666344 | AE12: 15.45979671 | AF12: 15.76899264 | AG12: 16.08437249 | AH12: 16.40605994 | AI12: 16.73418114 | AJ12: 17.06886477 | AK12: 17.41024206 | AL12: 17.7584469 | AM12: 18.11361584 | AN12: 0 | AO12: 0 | AP12: 0 | AQ12: 0 | AR12: 0 | AS12: 0 | AT12: 0 | AU12: 0 | AV12: 0
C13: Capital Expenditure | E13: One Time | F13: 1000 | G13: =F5 -> 1 | I13: =$F$13/$G$13*I5 -> 1000 | J13: =$F$13/$G$13*J5 -> 0 | K13: 0 | L13: 0 | M13: 0 | N13: 0 | O13: 0 | P13: 0 | Q13: 0 | R13: 0 | S13: 0 | T13: 0 | U13: 0 | V13: 0 | W13: 0 | X13: 0 | Y13: 0 | Z13: 0 | AA13: 0 | AB13: 0 | AC13: 0 | AD13: 0 | AE13: 0 | AF13: 0 | AG13: 0 | AH13: 0 | AI13: 0 | AJ13: 0 | AK13: 0 | AL13: 0 | AM13: 0 | AN13: 0 | AO13: 0 | AP13: 0 | AQ13: 0 | AR13: 0 | AS13: 0 | AT13: 0 | AU13: 0 | AV13: 0
C15: EBITDA | E15: Euro | H15: =SUM(I15:XFD15) -> 2275.869243 | I15: =I11-I12 -> 0 | J15: =J11-J12 -> 56.1 | K15: 57.222 | L15: 58.36644 | M15: 59.5337688 | N15: 60.72444418 | O15: 61.93893306 | P15: 63.17771172 | Q15: 64.44126596 | R15: 65.73009127 | S15: 67.0446931 | T15: 68.38558696 | U15: 69.7532987 | V15: 71.14836467 | W15: 72.57133197 | X15: 74.02275861 | Y15: 75.50321378 | Z15: 77.01327806 | AA15: 78.55354362 | AB15: 80.12461449 | AC15: 81.72710678 | AD15: 83.36164891 | AE15: 85.02888189 | AF15: 86.72945953 | AG15: 88.46404872 | AH15: 90.2333297 | AI15: 92.03799629 | AJ15: 93.87875622 | AK15: 95.75633134 | AL15: 97.67145797 | AM15: 99.62488713 | AN15: 0 | AO15: 0 | AP15: 0 | AQ15: 0 | AR15: 0 | AS15: 0 | AT15: 0 | AU15: 0 | AV15: 0
C16: Free Cash Flow | E16: Euro | H16: =SUM(I16:XFD16) -> 1275.869243 | I16: =I15-I13 -> -1000 | J16: =J15-J13 -> 56.1 | K16: 57.222 | L16: 58.36644 | M16: 59.5337688 | N16: 60.72444418 | O16: 61.93893306 | P16: 63.17771172 | Q16: 64.44126596 | R16: 65.73009127 | S16: 67.0446931 | T16: 68.38558696 | U16: 69.7532987 | V16: 71.14836467 | W16: 72.57133197 | X16: 74.02275861 | Y16: 75.50321378 | Z16: 77.01327806 | AA16: 78.55354362 | AB16: 80.12461449 | AC16: 81.72710678 | AD16: 83.36164891 | AE16: 85.02888189 | AF16: 86.72945953 | AG16: 88.46404872 | AH16: 90.2333297 | AI16: 92.03799629 | AJ16: 93.87875622 | AK16: 95.75633134 | AL16: 97.67145797 | AM16: 99.62488713 | AN16: 0 | AO16: 0 | AP16: 0 | AQ16: 0 | AR16: 0 | AS16: 0 | AT16: 0 | AU16: 0 | AV16: 0
C17: PIRR | E17: % p.a. | F17: =IRR(I16:AV16) -> 0.056638622
C19: Opening Balance | E19: Euro | I19: =H22 -> 0 | J19: =I22 -> 0 | K19: 56.1 | L19: 116.4994267 | M19: 181.4642337 | N19: 251.2758866 | O19: 326.2322508 | P19: 406.648529 | Q19: 492.858253 | R19: 585.2143312 | S19: 684.0901558 | T19: 789.8807727 | U19: 903.0041181 | V19: 1023.902326 | W19: 1153.043107 | X19: 1290.921212 | Y19: 1438.059969 | Z19: 1595.012918 | AA19: 1762.36553 | AB19: 1940.737028 | AC19: 2130.782314 | AD19: 2333.193995 | AE19: 2548.704536 | AF19: 2778.088531 | AG19: 3022.165097 | AH19: 3281.800412 | AI19: 3557.910395 | AJ19: 3851.463533 | AK19: 4163.483876 | AL19: 4495.054197 | AM19: 4847.31933 | AN19: 5221.489705 | AO19: 5221.489705 | AP19: 5221.489705 | AQ19: 5221.489705 | AR19: 5221.489705 | AS19: 5221.489705 | AT19: 5221.489705 | AU19: 5221.489705 | AV19: 5221.489705
C20: Add: Re-Investment | E20: Euro | F20: =F17 -> 0.056638622 | I20: =I19*$F$20*I6 -> 0 | J20: =J19*$F$20*J6 -> 0 | K20: 3.177426694 | L20: 6.598366992 | M20: 10.27788414 | N20: 14.23191996 | O20: 18.47734514 | P20: 23.03201232 | Q20: 27.91481229 | R20: 33.1457333 | S20: 38.74592375 | T20: 44.73775851 | U20: 51.14490891 | V20: 57.99241679 | W20: 65.3067727 | X20: 73.11599855 | Y20: 81.449735 | Z20: 90.33933374 | AA20: 99.81795506 | AB20: 109.9206709 | AC20: 120.684574 | AD20: 132.1488927 | AE20: 144.3551128 | AF20: 157.3471062 | AG20: 171.1712665 | AH20: 185.876653 | AI20: 201.5151419 | AJ20: 218.1415872 | AK20: 235.8139895 | AL20: 254.5936755 | AM20: 274.5454873 | AN20: 0 | AO20: 0 | AP20: 0 | AQ20: 0 | AR20: 0 | AS20: 0 | AT20: 0 | AU20: 0 | AV20: 0
C21: Add: Dividends | E21: Euro | I21: =I15 -> 0 | J21: =J15 -> 56.1 | K21: 57.222 | L21: 58.36644 | M21: 59.5337688 | N21: 60.72444418 | O21: 61.93893306 | P21: 63.17771172 | Q21: 64.44126596 | R21: 65.73009127 | S21: 67.0446931 | T21: 68.38558696 | U21: 69.7532987 | V21: 71.14836467 | W21: 72.57133197 | X21: 74.02275861 | Y21: 75.50321378 | Z21: 77.01327806 | AA21: 78.55354362 | AB21: 80.12461449 | AC21: 81.72710678 | AD21: 83.36164891 | AE21: 85.02888189 | AF21: 86.72945953 | AG21: 88.46404872 | AH21: 90.2333297 | AI21: 92.03799629 | AJ21: 93.87875622 | AK21: 95.75633134 | AL21: 97.67145797 | AM21: 99.62488713 | AN21: 0 | AO21: 0 | AP21: 0 | AQ21: 0 | AR21: 0 | AS21: 0 | AT21: 0 | AU21: 0 | AV21: 0
C22: Closing Balance | E22: Euro | I22: =SUM(I19:I21) -> 0 | J22: =SUM(J19:J21) -> 56.1 | K22: 116.4994267 | L22: 181.4642337 | M22: 251.2758866 | N22: 326.2322508 | O22: 406.648529 | P22: 492.858253 | Q22: 585.2143312 | R22: 684.0901558 | S22: 789.8807727 | T22: 903.0041181 | U22: 1023.902326 | V22: 1153.043107 | W22: 1290.921212 | X22: 1438.059969 | Y22: 1595.012918 | Z22: 1762.36553 | AA22: 1940.737028 | AB22: 2130.782314 | AC22: 2333.193995 | AD22: 2548.704536 | AE22: 2778.088531 | AF22: 3022.165097 | AG22: 3281.800412 | AH22: 3557.910395 | AI22: 3851.463533 | AJ22: 4163.483876 | AK22: 4495.054197 | AL22: 4847.31933 | AM22: 5221.489705 | AN22: 5221.489705 | AO22: 5221.489705 | AP22: 5221.489705 | AQ22: 5221.489705 | AR22: 5221.489705 | AS22: 5221.489705 | AT22: 5221.489705 | AU22: 5221.489705 | AV22: 5221.489705
C24: Ending Balance | E24: Euro
C25: Investment | E25: Euro
C26: Growth Ratio | E26: x
C27: Annual Growth | E27: % p.a.
B29: Debt Structuring
C30: Tenure of Debt | E30: Years | F30: 30
C31: Interest Rate | E31: % p.a. | F31: 0.045
C32: DSCR for Sizing | E32: x | F32: 1.3
C34: Flag for Tenure | E34: Flag | F34: =F30 -> 30 | I34: =AND(NOT(I5),I4<=$F$34) -> FALSE | J34: TRUE | K34: TRUE | L34: TRUE | M34: TRUE | N34: TRUE | O34: TRUE | P34: TRUE | Q34: TRUE | R34: TRUE | S34: TRUE | T34: TRUE | U34: TRUE | V34: TRUE | W34: TRUE | X34: TRUE | Y34: TRUE | Z34: TRUE | AA34: TRUE | AB34: TRUE | AC34: TRUE | AD34: TRUE | AE34: TRUE | AF34: TRUE | AG34: TRUE | AH34: TRUE | AI34: TRUE | AJ34: TRUE | AK34: TRUE | AL34: TRUE | AM34: FALSE | AN34: FALSE | AO34: FALSE | AP34: FALSE | AQ34: FALSE | AR34: FALSE | AS34: FALSE | AT34: FALSE | AU34: FALSE | AV34: FALSE
C35: CFADS for Tenure | E35: Euro | I35: =IF(I34,I15) -> FALSE | J35: 56.1 | K35: 57.222 | L35: 58.36644 | M35: 59.5337688 | N35: 60.72444418 | O35: 61.93893306 | P35: 63.17771172 | Q35: 64.44126596 | R35: 65.73009127 | S35: 67.0446931 | T35: 68.38558696 | U35: 69.7532987 | V35: 71.14836467 | W35: 72.57133197 | X35: 74.02275861 | Y35: 75.50321378 | Z35: 77.01327806 | AA35: 78.55354362 | AB35: 80.12461449 | AC35: 81.72710678 | AD35: 83.36164891 | AE35: 85.02888189 | AF35: 86.72945953 | AG35: 88.46404872 | AH35: 90.2333297 | AI35: 92.03799629 | AJ35: 93.87875622 | AK35: 95.75633134 | AL35: 97.67145797 | AM35: FALSE | AN35: FALSE | AO35: FALSE | AP35: FALSE | AQ35: FALSE | AR35: FALSE | AS35: FALSE | AT35: FALSE | AU35: FALSE | AV35: FALSE
C36: Target Debt Service =CFADS/DSCR | E36: Euro | F36: =F32 -> 1.3 | I36: =IF(I34,I35/$F$36) -> FALSE | J36: =IF(J34,J35/$F$36) -> 43.15384615 | K36: 44.01692308 | L36: 44.89726154 | M36: 45.79520677 | N36: 46.7111109 | O36: 47.64533312 | P36: 48.59823979 | Q36: 49.57020458 | R36: 50.56160867 | S36: 51.57284085 | T36: 52.60429766 | U36: 53.65638362 | V36: 54.72951129 | W36: 55.82410151 | X36: 56.94058354 | Y36: 58.07939522 | Z36: 59.24098312 | AA36: 60.42580278 | AB36: 61.63431884 | AC36: 62.86700521 | AD36: 64.12434532 | AE36: 65.40683223 | AF36: 66.71496887 | AG36: 68.04926825 | AH36: 69.41025361 | AI36: 70.79845868 | AJ36: 72.21442786 | AK36: 73.65871642 | AL36: 75.13189074 | AM36: FALSE | AN36: FALSE | AO36: FALSE | AP36: FALSE | AQ36: FALSE | AR36: FALSE | AS36: FALSE | AT36: FALSE | AU36: FALSE | AV36: FALSE
C37: PV of Debt =Debt | E37: Euro | F37: =NPV(F31,I36:AV36) -> 870.8664771 | G37: =F37/F13 -> 0.8708664771
C39: Opening Balance | E39: Euro | I39: =G42 -> 0 | J39: =I42 -> 870.8664771 | K39: 866.9016224 | L39: 861.8952723 | M39: 855.783298 | N39: 848.4983397 | O39: 839.969654 | P39: 830.1229553 | Q39: 818.8802485 | R39: 806.1596551 | S39: 791.875231 | T39: 775.9367755 | U39: 758.2496327 | V39: 738.7144826 | W39: 717.227123 | X39: 693.678242 | Y39: 667.9531794 | Z39: 639.9316773 | AA39: 609.4876196 | AB39: 576.4887597 | AC39: 540.7964351 | AD39: 502.2652694 | AE39: 460.7428612 | AF39: 416.0694578 | AG39: 368.0776145 | AH39: 316.5918389 | AI39: 261.428218 | AJ39: 202.3940292 | AK39: 139.2873326 | AL39: 71.89654617 | AM39: 3.296918294e-12 | AN39: 3.445279617e-12 | AO39: 3.6003172e-12 | AP39: 3.762331474e-12 | AQ39: 3.93163639e-12 | AR39: 4.108560028e-12 | AS39: 4.293445229e-12 | AT39: 4.486650264e-12 | AU39: 4.688549526e-12 | AV39: 4.899534255e-12
C40: Add: Debt Draws | E40: Euro | F40: =F37 -> 870.8664771 | I40: =$F$40*I5 -> 870.8664771 | J40: 0 | K40: 0 | L40: 0 | M40: 0 | N40: 0 | O40: 0 | P40: 0 | Q40: 0 | R40: 0 | S40: 0 | T40: 0 | U40: 0 | V40: 0 | W40: 0 | X40: 0 | Y40: 0 | Z40: 0 | AA40: 0 | AB40: 0 | AC40: 0 | AD40: 0 | AE40: 0 | AF40: 0 | AG40: 0 | AH40: 0 | AI40: 0 | AJ40: 0 | AK40: 0 | AL40: 0 | AM40: 0 | AN40: 0 | AO40: 0 | AP40: 0 | AQ40: 0 | AR40: 0 | AS40: 0 | AT40: 0 | AU40: 0 | AV40: 0
C41: Less: Debt Repayment =DS - Int | E41: Euro | I41: =I36-I43 -> 0 | J41: =J36-J43 -> 3.964854686 | K41: 5.00635007 | L41: 6.111974285 | M41: 7.284958359 | N41: 8.52868562 | O41: 9.846698691 | P41: 11.24270679 | Q41: 12.7205934 | R41: 14.28442419 | S41: 15.93845545 | T41: 17.68714277 | U41: 19.53515014 | V41: 21.48735957 | W41: 23.54888098 | X41: 25.72506265 | Y41: 28.02150214 | Z41: 30.44405764 | AA41: 32.9988599 | AB41: 35.69232465 | AC41: 38.53116564 | AD41: 41.52240819 | AE41: 44.67340347 | AF41: 47.99184327 | AG41: 51.4857756 | AH41: 55.16362086 | AI41: 59.03418887 | AJ41: 63.10669655 | AK41: 67.39078645 | AL41: 71.89654617 | AM41: -1.483613232e-13 | AN41: -1.550375828e-13 | AO41: -1.62014274e-13 | AP41: -1.693049163e-13 | AQ41: -1.769236376e-13 | AR41: -1.848852013e-13 | AS41: -1.932050353e-13 | AT41: -2.018992619e-13 | AU41: -2.109847287e-13 | AV41: -2.204790415e-13
C42: Closing Balance | E42: Euro | I42: =I39+I40-I41 -> 870.8664771 | J42: =J39+J40-J41 -> 866.9016224 | K42: 861.8952723 | L42: 855.783298 | M42: 848.4983397 | N42: 839.969654 | O42: 830.1229553 | P42: 818.8802485 | Q42: 806.1596551 | R42: 791.875231 | S42: 775.9367755 | T42: 758.2496327 | U42: 738.7144826 | V42: 717.227123 | W42: 693.678242 | X42: 667.9531794 | Y42: 639.9316773 | Z42: 609.4876196 | AA42: 576.4887597 | AB42: 540.7964351 | AC42: 502.2652694 | AD42: 460.7428612 | AE42: 416.0694578 | AF42: 368.0776145 | AG42: 316.5918389 | AH42: 261.428218 | AI42: 202.3940292 | AJ42: 139.2873326 | AK42: 71.89654617 | AL42: 3.296918294e-12 | AM42: 3.445279617e-12 | AN42: 3.6003172e-12 | AO42: 3.762331474e-12 | AP42: 3.93163639e-12 | AQ42: 4.108560028e-12 | AR42: 4.293445229e-12 | AS42: 4.486650264e-12 | AT42: 4.688549526e-12 | AU42: 4.899534255e-12 | AV42: 5.120013296e-12
C43: Interest Opening Balance x Int Rate | E43: Euro | F43: =F31 -> 0.045 | I43: =I39*$F$43 -> 0 | J43: =J39*$F$43 -> 39.18899147 | K43: 39.01057301 | L43: 38.78528725 | M43: 38.51024841 | N43: 38.18242528 | O43: 37.79863443 | P43: 37.35553299 | Q43: 36.84961118 | R43: 36.27718448 | S43: 35.63438539 | T43: 34.9171549 | U43: 34.12123347 | V43: 33.24215172 | W43: 32.27522054 | X43: 31.21552089 | Y43: 30.05789307 | Z43: 28.79692548 | AA43: 27.42694288 | AB43: 25.94199419 | AC43: 24.33583958 | AD43: 22.60193712 | AE43: 20.73342876 | AF43: 18.7231256 | AG43: 16.56349265 | AH43: 14.24663275 | AI43: 11.76426981 | AJ43: 9.107731312 | AK43: 6.267929968 | AL43: 3.235344577 | AM43: 1.483613232e-13 | AN43: 1.550375828e-13 | AO43: 1.62014274e-13 | AP43: 1.693049163e-13 | AQ43: 1.769236376e-13 | AR43: 1.848852013e-13 | AS43: 1.932050353e-13 | AT43: 2.018992619e-13 | AU43: 2.109847287e-13 | AV43: 2.204790415e-13
B45: Cash Flow Statements
C46: Cash Before COD - Uses and Source
D47: Uses
D48: Cap Exp | E48: Euro | I48: =I13 -> 1000 | J48: 0 | K48: 0 | L48: 0 | M48: 0 | N48: 0 | O48: 0 | P48: 0 | Q48: 0 | R48: 0 | S48: 0 | T48: 0 | U48: 0 | V48: 0 | W48: 0 | X48: 0 | Y48: 0 | Z48: 0 | AA48: 0 | AB48: 0 | AC48: 0 | AD48: 0 | AE48: 0 | AF48: 0 | AG48: 0 | AH48: 0 | AI48: 0 | AJ48: 0 | AK48: 0 | AL48: 0 | AM48: 0 | AN48: 0 | AO48: 0 | AP48: 0 | AQ48: 0 | AR48: 0 | AS48: 0 | AT48: 0 | AU48: 0 | AV48: 0
D50: Source
D51: Debt | E51: Euro | G51: =I51/I48 -> 0.8708664771 | I51: =I40 -> 870.8664771 | J51: =J40 -> 0 | K51: 0 | L51: 0 | M51: 0 | N51: 0 | O51: 0 | P51: 0 | Q51: 0 | R51: 0 | S51: 0 | T51: 0 | U51: 0 | V51: 0 | W51: 0 | X51: 0 | Y51: 0 | Z51: 0 | AA51: 0 | AB51: 0 | AC51: 0 | AD51: 0 | AE51: 0 | AF51: 0 | AG51: 0 | AH51: 0 | AI51: 0 | AJ51: 0 | AK51: 0 | AL51: 0 | AM51: 0 | AN51: 0 | AO51: 0 | AP51: 0 | AQ51: 0 | AR51: 0 | AS51: 0 | AT51: 0 | AU51: 0 | AV51: 0
D52: Equity Investment | E52: Euro | I52: =I48-I51 -> 129.1335229 | J52: =J48-J51 -> 0 | K52: 0 | L52: 0 | M52: 0 | N52: 0 | O52: 0 | P52: 0 | Q52: 0 | R52: 0 | S52: 0 | T52: 0 | U52: 0 | V52: 0 | W52: 0 | X52: 0 | Y52: 0 | Z52: 0 | AA52: 0 | AB52: 0 | AC52: 0 | AD52: 0 | AE52: 0 | AF52: 0 | AG52: 0 | AH52: 0 | AI52: 0 | AJ52: 0 | AK52: 0 | AL52: 0 | AM52: 0 | AN52: 0 | AO52: 0 | AP52: 0 | AQ52: 0 | AR52: 0 | AS52: 0 | AT52: 0 | AU52: 0 | AV52: 0
D53: Total | I53: =SUM(I51:I52) -> 1000 | J53: =SUM(J51:J52) -> 0 | K53: 0 | L53: 0 | M53: 0 | N53: 0 | O53: 0 | P53: 0 | Q53: 0 | R53: 0 | S53: 0 | T53: 0 | U53: 0 | V53: 0 | W53: 0 | X53: 0 | Y53: 0 | Z53: 0 | AA53: 0 | AB53: 0 | AC53: 0 | AD53: 0 | AE53: 0 | AF53: 0 | AG53: 0 | AH53: 0 | AI53: 0 | AJ53: 0 | AK53: 0 | AL53: 0 | AM53: 0 | AN53: 0 | AO53: 0 | AP53: 0 | AQ53: 0 | AR53: 0 | AS53: 0 | AT53: 0 | AU53: 0 | AV53: 0
C55: Cash Flow After
D56: EBITDA | E56: Euro | I56: =I15 -> 0 | J56: 56.1 | K56: 57.222 | L56: 58.36644 | M56: 59.5337688 | N56: 60.72444418 | O56: 61.93893306 | P56: 63.17771172 | Q56: 64.44126596 | R56: 65.73009127 | S56: 67.0446931 | T56: 68.38558696 | U56: 69.7532987 | V56: 71.14836467 | W56: 72.57133197 | X56: 74.02275861 | Y56: 75.50321378 | Z56: 77.01327806 | AA56: 78.55354362 | AB56: 80.12461449 | AC56: 81.72710678 | AD56: 83.36164891 | AE56: 85.02888189 | AF56: 86.72945953 | AG56: 88.46404872 | AH56: 90.2333297 | AI56: 92.03799629 | AJ56: 93.87875622 | AK56: 95.75633134 | AL56: 97.67145797 | AM56: 99.62488713 | AN56: 0 | AO56: 0 | AP56: 0 | AQ56: 0 | AR56: 0 | AS56: 0 | AT56: 0 | AU56: 0 | AV56: 0
D57: Less: Interest | E57: Euro | I57: =I43 -> 0 | J57: =J43 -> 39.18899147 | K57: 39.01057301 | L57: 38.78528725 | M57: 38.51024841 | N57: 38.18242528 | O57: 37.79863443 | P57: 37.35553299 | Q57: 36.84961118 | R57: 36.27718448 | S57: 35.63438539 | T57: 34.9171549 | U57: 34.12123347 | V57: 33.24215172 | W57: 32.27522054 | X57: 31.21552089 | Y57: 30.05789307 | Z57: 28.79692548 | AA57: 27.42694288 | AB57: 25.94199419 | AC57: 24.33583958 | AD57: 22.60193712 | AE57: 20.73342876 | AF57: 18.7231256 | AG57: 16.56349265 | AH57: 14.24663275 | AI57: 11.76426981 | AJ57: 9.107731312 | AK57: 6.267929968 | AL57: 3.235344577 | AM57: 1.483613232e-13 | AN57: 1.550375828e-13 | AO57: 1.62014274e-13 | AP57: 1.693049163e-13 | AQ57: 1.769236376e-13 | AR57: 1.848852013e-13 | AS57: 1.932050353e-13 | AT57: 2.018992619e-13 | AU57: 2.109847287e-13 | AV57: 2.204790415e-13
D58: Less: Repayment | E58: Euro | I58: =I41 -> 0 | J58: =J41 -> 3.964854686 | K58: 5.00635007 | L58: 6.111974285 | M58: 7.284958359 | N58: 8.52868562 | O58: 9.846698691 | P58: 11.24270679 | Q58: 12.7205934 | R58: 14.28442419 | S58: 15.93845545 | T58: 17.68714277 | U58: 19.53515014 | V58: 21.48735957 | W58: 23.54888098 | X58: 25.72506265 | Y58: 28.02150214 | Z58: 30.44405764 | AA58: 32.9988599 | AB58: 35.69232465 | AC58: 38.53116564 | AD58: 41.52240819 | AE58: 44.67340347 | AF58: 47.99184327 | AG58: 51.4857756 | AH58: 55.16362086 | AI58: 59.03418887 | AJ58: 63.10669655 | AK58: 67.39078645 | AL58: 71.89654617 | AM58: -1.483613232e-13 | AN58: -1.550375828e-13 | AO58: -1.62014274e-13 | AP58: -1.693049163e-13 | AQ58: -1.769236376e-13 | AR58: -1.848852013e-13 | AS58: -1.932050353e-13 | AT58: -2.018992619e-13 | AU58: -2.109847287e-13 | AV58: -2.204790415e-13
D59: Dividends | E59: Euro | I59: =I56-I57-I58 -> 0 | J59: =J56-J57-J58 -> 12.94615385 | K59: 13.20507692 | L59: 13.46917846 | M59: 13.73856203 | N59: 14.01333327 | O59: 14.29359994 | P59: 14.57947194 | Q59: 14.87106137 | R59: 15.1684826 | S59: 15.47185225 | T59: 15.7812893 | U59: 16.09691508 | V59: 16.41885339 | W59: 16.74723045 | X59: 17.08217506 | Y59: 17.42381856 | Z59: 17.77229494 | AA59: 18.12774083 | AB59: 18.49029565 | AC59: 18.86010156 | AD59: 19.2373036 | AE59: 19.62204967 | AF59: 20.01449066 | AG59: 20.41478047 | AH59: 20.82307608 | AI59: 21.23953761 | AJ59: 21.66432836 | AK59: 22.09761492 | AL59: 22.53956722 | AM59: 99.62488713 | AN59: 0 | AO59: 0 | AP59: 0 | AQ59: 0 | AR59: 0 | AS59: 0 | AT59: 0 | AU59: 0 | AV59: 0
B61: Summary Analysis - Structuring
D63: Equity Net Cash Flow | E63: Euro | I63: =-I52+I59 -> -129.1335229 | J63: 12.94615385 | K63: 13.20507692 | L63: 13.46917846 | M63: 13.73856203 | N63: 14.01333327 | O63: 14.29359994 | P63: 14.57947194 | Q63: 14.87106137 | R63: 15.1684826 | S63: 15.47185225 | T63: 15.7812893 | U63: 16.09691508 | V63: 16.41885339 | W63: 16.74723045 | X63: 17.08217506 | Y63: 17.42381856 | Z63: 17.77229494 | AA63: 18.12774083 | AB63: 18.49029565 | AC63: 18.86010156 | AD63: 19.2373036 | AE63: 19.62204967 | AF63: 20.01449066 | AG63: 20.41478047 | AH63: 20.82307608 | AI63: 21.23953761 | AJ63: 21.66432836 | AK63: 22.09761492 | AL63: 22.53956722 | AM63: 99.62488713 | AN63: 0 | AO63: 0 | AP63: 0 | AQ63: 0 | AR63: 0 | AS63: 0 | AT63: 0 | AU63: 0 | AV63: 0
D64: Equity IRR | E64: =IRR(I63:AV63) -> 0.1155576952
I66: =IF(I6,I4,NA()) ->  | J66: 2 | K66: 3 | L66: 4 | M66: 5 | N66: 6 | O66: 7 | P66: 8 | Q66: 9 | R66: 10 | S66: 11 | T66: 12 | U66: 13 | V66: 14 | W66: 15 | X66: 16 | Y66: 17 | Z66: 18 | AA66: 19 | AB66: 20 | AC66: 21 | AD66: 22 | AE66: 23 | AF66: 24 | AG66: 25 | AH66: 26 | AI66: 27 | AJ66: 28 | AK66: 29 | AL66: 30 | AM66: 31
D67: Cash Flow | E67: Euro | I67: =I56 -> 0 | J67: 56.1 | K67: 57.222 | L67: 58.36644 | M67: 59.5337688 | N67: 60.72444418 | O67: 61.93893306 | P67: 63.17771172 | Q67: 64.44126596 | R67: 65.73009127 | S67: 67.0446931 | T67: 68.38558696 | U67: 69.7532987 | V67: 71.14836467 | W67: 72.57133197 | X67: 74.02275861 | Y67: 75.50321378 | Z67: 77.01327806 | AA67: 78.55354362 | AB67: 80.12461449 | AC67: 81.72710678 | AD67: 83.36164891 | AE67: 85.02888189 | AF67: 86.72945953 | AG67: 88.46404872 | AH67: 90.2333297 | AI67: 92.03799629 | AJ67: 93.87875622 | AK67: 95.75633134 | AL67: 97.67145797 | AM67: 99.62488713 | AN67: 0 | AO67: 0 | AP67: 0 | AQ67: 0 | AR67: 0 | AS67: 0 | AT67: 0 | AU67: 0 | AV67: 0
D68: Debt Service | E68: Euro | I68: =I57+I58 -> 0 | J68: 43.15384615 | K68: 44.01692308 | L68: 44.89726154 | M68: 45.79520677 | N68: 46.7111109 | O68: 47.64533312 | P68: 48.59823979 | Q68: 49.57020458 | R68: 50.56160867 | S68: 51.57284085 | T68: 52.60429766 | U68: 53.65638362 | V68: 54.72951129 | W68: 55.82410151 | X68: 56.94058354 | Y68: 58.07939522 | Z68: 59.24098312 | AA68: 60.42580278 | AB68: 61.63431884 | AC68: 62.86700521 | AD68: 64.12434532 | AE68: 65.40683223 | AF68: 66.71496887 | AG68: 68.04926825 | AH68: 69.41025361 | AI68: 70.79845868 | AJ68: 72.21442786 | AK68: 73.65871642 | AL68: 75.13189074 | AM68: 0 | AN68: 0 | AO68: 0 | AP68: 0 | AQ68: 0 | AR68: 0 | AS68: 0 | AT68: 0 | AU68: 0 | AV68: 0
D70: Equity IRR | E70: =E64 -> 0.1155576952 | F70: DSCR | G70: =F36 -> 1.3 | I70: Tenure | J70: =F34 -> 30 | K70: Debt to Capital
D72: DSCR | I72: =IF(I68>0,I67/I68) -> FALSE | J72: =IF(J68>0,J67/J68) -> 1.3 | K72: 1.3 | L72: 1.3 | M72: 1.3 | N72: 1.3 | O72: 1.3 | P72: 1.3 | Q72: 1.3 | R72: 1.3 | S72: 1.3 | T72: 1.3 | U72: 1.3 | V72: 1.3 | W72: 1.3 | X72: 1.3 | Y72: 1.3 | Z72: 1.3 | AA72: 1.3 | AB72: 1.3 | AC72: 1.3 | AD72: 1.3 | AE72: 1.3 | AF72: 1.3 | AG72: 1.3 | AH72: 1.3 | AI72: 1.3 | AJ72: 1.3 | AK72: 1.3 | AL72: 1.3 | AM72: FALSE | AN72: FALSE | AO72: FALSE | AP72: FALSE | AQ72: FALSE | AR72: FALSE | AS72: FALSE | AT72: FALSE | AU72: FALSE | AV72: FALSE
B74: Risk Analysis
C75: Scheduled Debt Repayment | H75: =SUM(I75:XFD75) -> 870.8664771 | I75: =I41 -> 0 | J75: 3.964854686 | K75: 5.00635007 | L75: 6.111974285 | M75: 7.284958359 | N75: 8.52868562 | O75: 9.846698691 | P75: 11.24270679 | Q75: 12.7205934 | R75: 14.28442419 | S75: 15.93845545 | T75: 17.68714277 | U75: 19.53515014 | V75: 21.48735957 | W75: 23.54888098 | X75: 25.72506265 | Y75: 28.02150214 | Z75: 30.44405764 | AA75: 32.9988599 | AB75: 35.69232465 | AC75: 38.53116564 | AD75: 41.52240819 | AE75: 44.67340347 | AF75: 47.99184327 | AG75: 51.4857756 | AH75: 55.16362086 | AI75: 59.03418887 | AJ75: 63.10669655 | AK75: 67.39078645 | AL75: 71.89654617 | AM75: -1.483613232e-13 | AN75: -1.550375828e-13 | AO75: -1.62014274e-13 | AP75: -1.693049163e-13 | AQ75: -1.769236376e-13 | AR75: -1.848852013e-13 | AS75: -1.932050353e-13 | AT75: -2.018992619e-13 | AU75: -2.109847287e-13 | AV75: -2.204790415e-13
C77: Operating Period
C78: Target Tail | E78: Years | G78: 4
C79: Target Repayment | G79: =F6-G78 -> 26
C80: Closing Balance at Target Date | G80: =LOOKUP(G79,4:4,107:107) -> 0 | H80: End Debt
C81: Repayment in Final Year Scheduled | G81: =LOOKUP(G79,4:4,75:75) -> 55.16362086
C82: Opening Balance in Final Year | G82: =LOOKUP(G79,4:4,103:103) -> 51.6205267
C83: Difference | G83: =G81-G82 -> 3.543094165
C85: Initial Lower Case | E85: Euro | F85: =G85/100 -> 1 | G85: 100 | I85: =I11*$F$85 -> 0 | J85: =J11*$F$85 -> 66.3 | K85: 67.626 | L85: 68.97852 | M85: 70.3580904 | N85: 71.76525221 | O85: 73.20055725 | P85: 74.6645684 | Q85: 76.15785977 | R85: 77.68101696 | S85: 79.2346373 | T85: 80.81933005 | U85: 82.43571665 | V85: 84.08443098 | W85: 85.7661196 | X85: 87.48144199 | Y85: 89.23107083 | Z85: 91.01569225 | AA85: 92.83600609 | AB85: 94.69272621 | AC85: 96.58658074 | AD85: 98.51831235 | AE85: 100.4886786 | AF85: 102.4984522 | AG85: 104.5484212 | AH85: 106.6393896 | AI85: 108.7721774 | AJ85: 110.947621 | AK85: 113.1665734 | AL85: 115.4299049 | AM85: 117.738503 | AN85: 0 | AO85: 0 | AP85: 0 | AQ85: 0 | AR85: 0 | AS85: 0 | AT85: 0 | AU85: 0 | AV85: 0
C86: Actual Case with Higher Traffic | E86: Euro | F86: =G86/100 -> 1.2 | G86: 120 | I86: =I$11*$F86 -> 0 | J86: =J$11*$F86 -> 79.56 | K86: 81.1512 | L86: 82.774224 | M86: 84.42970848 | N86: 86.11830265 | O86: 87.8406687 | P86: 89.59748208 | Q86: 91.38943172 | R86: 93.21722035 | S86: 95.08156476 | T86: 96.98319605 | U86: 98.92285998 | V86: 100.9013172 | W86: 102.9193435 | X86: 104.9777304 | Y86: 107.077285 | Z86: 109.2188307 | AA86: 111.4032073 | AB86: 113.6312715 | AC86: 115.9038969 | AD86: 118.2219748 | AE86: 120.5864143 | AF86: 122.9981426 | AG86: 125.4581055 | AH86: 127.9672676 | AI86: 130.5266129 | AJ86: 133.1371452 | AK86: 135.7998881 | AL86: 138.5158858 | AM86: 141.2862036 | AN86: 0 | AO86: 0 | AP86: 0 | AQ86: 0 | AR86: 0 | AS86: 0 | AT86: 0 | AU86: 0 | AV86: 0
C87: Actual Case with Very High Traffic | E87: Euro | F87: =G87/100 -> 1.31 | G87: 131 | I87: =I$11*$F87 -> 0 | J87: 86.853 | K87: 88.59006 | L87: 90.3618612 | M87: 92.16909842 | N87: 94.01248039 | O87: 95.89273 | P87: 97.8105846 | Q87: 99.76679629 | R87: 101.7621322 | S87: 103.7973749 | T87: 105.8733224 | U87: 107.9907888 | V87: 110.1506046 | W87: 112.3536167 | X87: 114.600689 | Y87: 116.8927028 | Z87: 119.2305568 | AA87: 121.615168 | AB87: 124.0474713 | AC87: 126.5284208 | AD87: 129.0589892 | AE87: 131.640169 | AF87: 134.2729723 | AG87: 136.9584318 | AH87: 139.6976004 | AI87: 142.4915524 | AJ87: 145.3413835 | AK87: 148.2482112 | AL87: 151.2131754 | AM87: 154.2374389 | AN87: 0 | AO87: 0 | AP87: 0 | AQ87: 0 | AR87: 0 | AS87: 0 | AT87: 0 | AU87: 0 | AV87: 0
C88: Actual Case with Low Traffic | E88: Euro | F88: =G88/100 -> 0.85 | G88: 85 | I88: =I$11*$F88 -> 0 | J88: 56.355 | K88: 57.4821 | L88: 58.631742 | M88: 59.80437684 | N88: 61.00046438 | O88: 62.22047366 | P88: 63.46488314 | Q88: 64.7341808 | R88: 66.02886442 | S88: 67.3494417 | T88: 68.69643054 | U88: 70.07035915 | V88: 71.47176633 | W88: 72.90120166 | X88: 74.35922569 | Y88: 75.84641021 | Z88: 77.36333841 | AA88: 78.91060518 | AB88: 80.48881728 | AC88: 82.09859363 | AD88: 83.7405655 | AE88: 85.41537681 | AF88: 87.12368435 | AG88: 88.86615803 | AH88: 90.64348119 | AI88: 92.45635082 | AJ88: 94.30547783 | AK88: 96.19158739 | AL88: 98.11541914 | AM88: 100.0777275 | AN88: 0 | AO88: 0 | AP88: 0 | AQ88: 0 | AR88: 0 | AS88: 0 | AT88: 0 | AU88: 0 | AV88: 0
C90: Scenario | E90: 3
C91: =INDEX(C85:C88,$E$90) -> Actual Case with Very High Traffic | I91: =INDEX(I85:I88,$E$90) -> 0 | J91: =INDEX(J85:J88,$E$90) -> 86.853 | K91: =INDEX(K85:K88,$E$90) -> 88.59006 | L91: =INDEX(L85:L88,$E$90) -> 90.3618612 | M91: =INDEX(M85:M88,$E$90) -> 92.16909842 | N91: =INDEX(N85:N88,$E$90) -> 94.01248039 | O91: =INDEX(O85:O88,$E$90) -> 95.89273 | P91: =INDEX(P85:P88,$E$90) -> 97.8105846 | Q91: =INDEX(Q85:Q88,$E$90) -> 99.76679629 | R91: =INDEX(R85:R88,$E$90) -> 101.7621322 | S91: =INDEX(S85:S88,$E$90) -> 103.7973749 | T91: =INDEX(T85:T88,$E$90) -> 105.8733224 | U91: =INDEX(U85:U88,$E$90) -> 107.9907888 | V91: =INDEX(V85:V88,$E$90) -> 110.1506046 | W91: =INDEX(W85:W88,$E$90) -> 112.3536167 | X91: =INDEX(X85:X88,$E$90) -> 114.600689 | Y91: =INDEX(Y85:Y88,$E$90) -> 116.8927028 | Z91: =INDEX(Z85:Z88,$E$90) -> 119.2305568 | AA91: =INDEX(AA85:AA88,$E$90) -> 121.615168 | AB91: =INDEX(AB85:AB88,$E$90) -> 124.0474713 | AC91: =INDEX(AC85:AC88,$E$90) -> 126.5284208 | AD91: =INDEX(AD85:AD88,$E$90) -> 129.0589892 | AE91: =INDEX(AE85:AE88,$E$90) -> 131.640169 | AF91: =INDEX(AF85:AF88,$E$90) -> 134.2729723 | AG91: =INDEX(AG85:AG88,$E$90) -> 136.9584318 | AH91: =INDEX(AH85:AH88,$E$90) -> 139.6976004 | AI91: =INDEX(AI85:AI88,$E$90) -> 142.4915524 | AJ91: =INDEX(AJ85:AJ88,$E$90) -> 145.3413835 | AK91: =INDEX(AK85:AK88,$E$90) -> 148.2482112 | AL91: =INDEX(AL85:AL88,$E$90) -> 151.2131754 | AM91: =INDEX(AM85:AM88,$E$90) -> 154.2374389 | AN91: =INDEX(AN85:AN88,$E$90) -> 0 | AO91: =INDEX(AO85:AO88,$E$90) -> 0 | AP91: =INDEX(AP85:AP88,$E$90) -> 0 | AQ91: =INDEX(AQ85:AQ88,$E$90) -> 0 | AR91: =INDEX(AR85:AR88,$E$90) -> 0 | AS91: =INDEX(AS85:AS88,$E$90) -> 0 | AT91: =INDEX(AT85:AT88,$E$90) -> 0 | AU91: =INDEX(AU85:AU88,$E$90) -> 0 | AV91: =INDEX(AV85:AV88,$E$90) -> 0
C93: Initial Sweep Percent | F93: 1 | I93: =$F$93 -> 1 | J93: =$F$93 -> 1 | K93: 1 | L93: 1 | M93: 1 | N93: 1 | O93: 1 | P93: 1 | Q93: 1 | R93: 1 | S93: 1 | T93: 1 | U93: 1 | V93: 1 | W93: 1 | X93: 1 | Y93: 1 | Z93: 1 | AA93: 1 | AB93: 1 | AC93: 1 | AD93: 1 | AE93: 1 | AF93: 1 | AG93: 1 | AH93: 1 | AI93: 1 | AJ93: 1 | AK93: 1 | AL93: 1 | AM93: 1 | AN93: 1 | AO93: 1 | AP93: 1 | AQ93: 1 | AR93: 1 | AS93: 1 | AT93: 1 | AU93: 1 | AV93: 1
C94: Years of Sweep | F94: 8 | G94: sweep yr | I94: =I4<$F$94 -> TRUE | J94: TRUE | K94: TRUE | L94: TRUE | M94: TRUE | N94: TRUE | O94: TRUE | P94: FALSE | Q94: FALSE | R94: FALSE | S94: FALSE | T94: FALSE | U94: FALSE | V94: FALSE | W94: FALSE | X94: FALSE | Y94: FALSE | Z94: FALSE | AA94: FALSE | AB94: FALSE | AC94: FALSE | AD94: FALSE | AE94: FALSE | AF94: FALSE | AG94: FALSE | AH94: FALSE | AI94: FALSE | AJ94: FALSE | AK94: FALSE | AL94: FALSE | AM94: FALSE | AN94: FALSE | AO94: FALSE | AP94: FALSE | AQ94: FALSE | AR94: FALSE | AS94: FALSE | AT94: FALSE | AU94: FALSE | AV94: FALSE
C95: Final Sweep Period | F95: =F94 -> 8 | I95: =I4=$F$95 -> FALSE | J95: FALSE | K95: FALSE | L95: FALSE | M95: FALSE | N95: FALSE | O95: FALSE | P95: TRUE | Q95: FALSE | R95: FALSE | S95: FALSE | T95: FALSE | U95: FALSE | V95: FALSE | W95: FALSE | X95: FALSE | Y95: FALSE | Z95: FALSE | AA95: FALSE | AB95: FALSE | AC95: FALSE | AD95: FALSE | AE95: FALSE | AF95: FALSE | AG95: FALSE | AH95: FALSE | AI95: FALSE | AJ95: FALSE | AK95: FALSE | AL95: FALSE | AM95: FALSE | AN95: FALSE | AO95: FALSE | AP95: FALSE | AQ95: FALSE | AR95: FALSE | AS95: FALSE | AT95: FALSE | AU95: FALSE | AV95: FALSE
C96: Sweep in Final Year | F96: 0.6 | G96: swep_applied | I96: =$F$96*I95 -> 0 | J96: =$F$96*J95 -> 0 | K96: 0 | L96: 0 | M96: 0 | N96: 0 | O96: 0 | P96: 0.6 | Q96: 0 | R96: 0 | S96: 0 | T96: 0 | U96: 0 | V96: 0 | W96: 0 | X96: 0 | Y96: 0 | Z96: 0 | AA96: 0 | AB96: 0 | AC96: 0 | AD96: 0 | AE96: 0 | AF96: 0 | AG96: 0 | AH96: 0 | AI96: 0 | AJ96: 0 | AK96: 0 | AL96: 0 | AM96: 0 | AN96: 0 | AO96: 0 | AP96: 0 | AQ96: 0 | AR96: 0 | AS96: 0 | AT96: 0 | AU96: 0 | AV96: 0
C97: Sweep Applied | I97: =I93*I94+I95*I96 -> 1 | J97: =J93*J94+J95*J96 -> 1 | K97: 1 | L97: 1 | M97: 1 | N97: 1 | O97: 1 | P97: 0.6 | Q97: 0 | R97: 0 | S97: 0 | T97: 0 | U97: 0 | V97: 0 | W97: 0 | X97: 0 | Y97: 0 | Z97: 0 | AA97: 0 | AB97: 0 | AC97: 0 | AD97: 0 | AE97: 0 | AF97: 0 | AG97: 0 | AH97: 0 | AI97: 0 | AJ97: 0 | AK97: 0 | AL97: 0 | AM97: 0 | AN97: 0 | AO97: 0 | AP97: 0 | AQ97: 0 | AR97: 0 | AS97: 0 | AT97: 0 | AU97: 0 | AV97: 0
B101: Adjusted Debt Schedule
C102: Base Debt
D103: Opening Debt | E103: Euro | I103: =H107 -> 0 | J103: =I107 -> 870.8664771 | K103: 833.4024685 | L103: 792.7195196 | M103: 748.6421168 | N103: 700.9862352 | O103: 649.5589434 | P103: 594.1579901 | Q103: 553.9089363 | R103: 541.188343 | S103: 526.9039188 | T103: 510.9654633 | U103: 493.2783205 | V103: 473.7431704 | W103: 452.2558108 | X103: 428.7069299 | Y103: 402.9818672 | Z103: 374.9603651 | AA103: 344.5163074 | AB103: 311.5174475 | AC103: 275.8251229 | AD103: 237.2939572 | AE103: 195.771549 | AF103: 151.0981456 | AG103: 103.1063023 | AH103: 51.6205267 | AI103: 0 | AJ103: 0 | AK103: 0 | AL103: 0 | AM103: 0 | AN103: 1.483613232e-13 | AO103: 3.03398906e-13 | AP103: 4.6541318e-13 | AQ103: 6.347180963e-13 | AR103: 8.116417339e-13 | AS103: 9.965269351e-13 | AT103: 1.18973197e-12 | AU103: 1.391631232e-12 | AV103: 1.602615961e-12
D104: Add: Debt Issue | E104: Euro | I104: =I40 -> 870.8664771 | J104: 0 | K104: 0 | L104: 0 | M104: 0 | N104: 0 | O104: 0 | P104: 0 | Q104: 0 | R104: 0 | S104: 0 | T104: 0 | U104: 0 | V104: 0 | W104: 0 | X104: 0 | Y104: 0 | Z104: 0 | AA104: 0 | AB104: 0 | AC104: 0 | AD104: 0 | AE104: 0 | AF104: 0 | AG104: 0 | AH104: 0 | AI104: 0 | AJ104: 0 | AK104: 0 | AL104: 0 | AM104: 0 | AN104: 0 | AO104: 0 | AP104: 0 | AQ104: 0 | AR104: 0 | AS104: 0 | AT104: 0 | AU104: 0 | AV104: 0
D105: Less: Scheduled | E105: Euro | I105: =MIN(I58,I103) -> 0 | J105: 3.964854686 | K105: 5.00635007 | L105: 6.111974285 | M105: 7.284958359 | N105: 8.52868562 | O105: 9.846698691 | P105: 11.24270679 | Q105: 12.7205934 | R105: 14.28442419 | S105: 15.93845545 | T105: 17.68714277 | U105: 19.53515014 | V105: 21.48735957 | W105: 23.54888098 | X105: 25.72506265 | Y105: 28.02150214 | Z105: 30.44405764 | AA105: 32.9988599 | AB105: 35.69232465 | AC105: 38.53116564 | AD105: 41.52240819 | AE105: 44.67340347 | AF105: 47.99184327 | AG105: 51.4857756 | AH105: 51.6205267 | AI105: 0 | AJ105: 0 | AK105: 0 | AL105: 0 | AM105: -1.483613232e-13 | AN105: -1.550375828e-13 | AO105: -1.62014274e-13 | AP105: -1.693049163e-13 | AQ105: -1.769236376e-13 | AR105: -1.848852013e-13 | AS105: -1.932050353e-13 | AT105: -2.018992619e-13 | AU105: -2.109847287e-13 | AV105: -2.204790415e-13
D106: Less: Cash Sweep | E106: Euro | I106: =I130 -> 0 | J106: =J130 -> 33.49915385 | K106: 35.67659885 | L106: 37.96542853 | M106: 40.37092321 | N106: 42.89860616 | O106: 45.55425466 | P106: 29.00634695 | Q106: 0 | R106: 0 | S106: 0 | T106: 0 | U106: 0 | V106: 0 | W106: 0 | X106: 0 | Y106: 0 | Z106: 0 | AA106: 0 | AB106: 0 | AC106: 0 | AD106: 0 | AE106: 0 | AF106: 0 | AG106: 0 | AH106: 0 | AI106: 0 | AJ106: 0 | AK106: 0 | AL106: 0 | AM106: 0 | AN106: 0 | AO106: 0 | AP106: 0 | AQ106: 0 | AR106: 0 | AS106: 0 | AT106: 0 | AU106: 0 | AV106: 0
D107: Closing Balance | E107: Euro | I107: =I103+I104-I105-I106 -> 870.8664771 | J107: =J103+J104-J105-J106 -> 833.4024685 | K107: 792.7195196 | L107: 748.6421168 | M107: 700.9862352 | N107: 649.5589434 | O107: 594.1579901 | P107: 553.9089363 | Q107: 541.188343 | R107: 526.9039188 | S107: 510.9654633 | T107: 493.2783205 | U107: 473.7431704 | V107: 452.2558108 | W107: 428.7069299 | X107: 402.9818672 | Y107: 374.9603651 | Z107: 344.5163074 | AA107: 311.5174475 | AB107: 275.8251229 | AC107: 237.2939572 | AD107: 195.771549 | AE107: 151.0981456 | AF107: 103.1063023 | AG107: 51.6205267 | AH107: 0 | AI107: 0 | AJ107: 0 | AK107: 0 | AL107: 0 | AM107: 1.483613232e-13 | AN107: 3.03398906e-13 | AO107: 4.6541318e-13 | AP107: 6.347180963e-13 | AQ107: 8.116417339e-13 | AR107: 9.965269351e-13 | AS107: 1.18973197e-12 | AT107: 1.391631232e-12 | AU107: 1.602615961e-12 | AV107: 1.823095002e-12
D108: Interest | E108: Euro | F108: =$F$43 -> 0.045 | I108: =I103*$F$108 -> 0 | J108: =J103*$F$108 -> 39.18899147 | K108: 37.50311108 | L108: 35.67237838 | M108: 33.68889526 | N108: 31.54438058 | O108: 29.23015245 | P108: 26.73710955 | Q108: 24.92590214 | R108: 24.35347543 | S108: 23.71067634 | T108: 22.99344585 | U108: 22.19752442 | V108: 21.31844267 | W108: 20.35151149 | X108: 19.29181184 | Y108: 18.13418402 | Z108: 16.87321643 | AA108: 15.50323383 | AB108: 14.01828514 | AC108: 12.41213053 | AD108: 10.67822808 | AE108: 8.809719706 | AF108: 6.79941655 | AG108: 4.639783603 | AH108: 2.322923701 | AI108: 0 | AJ108: 0 | AK108: 0 | AL108: 0 | AM108: 0 | AN108: 6.676259545e-15 | AO108: 1.365295077e-14 | AP108: 2.09435931e-14 | AQ108: 2.856231433e-14 | AR108: 3.652387802e-14 | AS108: 4.484371208e-14 | AT108: 5.353793867e-14 | AU108: 6.262340546e-14 | AV108: 7.211771825e-14
C110: Defaulted Debt
D111: Opening Balance | E111: Euro | I111: =H114 -> 0 | J111: =I114 -> 0 | K111: 0 | L111: 0 | M111: 0 | N111: 0 | O111: 0 | P111: 0 | Q111: 0 | R111: 0 | S111: 0 | T111: 0 | U111: 0 | V111: 0 | W111: 0 | X111: 0 | Y111: 0 | Z111: 0 | AA111: 0 | AB111: 0 | AC111: 0 | AD111: 0 | AE111: 0 | AF111: 0 | AG111: 0 | AH111: 0 | AI111: 0 | AJ111: 0 | AK111: 0 | AL111: 0 | AM111: 0 | AN111: 0 | AO111: 0 | AP111: 0 | AQ111: 0 | AR111: 0 | AS111: 0 | AT111: 0 | AU111: 0 | AV111: 0
D112: Add: Default | E112: Euro
D113: Less: Repayment of Default | E113: Euro
D114: Closing Balance | E114: Euro | I114: =I111+I112-I113 -> 0 | J114: =J111+J112-J113 -> 0 | K114: 0 | L114: 0 | M114: 0 | N114: 0 | O114: 0 | P114: 0 | Q114: 0 | R114: 0 | S114: 0 | T114: 0 | U114: 0 | V114: 0 | W114: 0 | X114: 0 | Y114: 0 | Z114: 0 | AA114: 0 | AB114: 0 | AC114: 0 | AD114: 0 | AE114: 0 | AF114: 0 | AG114: 0 | AH114: 0 | AI114: 0 | AJ114: 0 | AK114: 0 | AL114: 0 | AM114: 0 | AN114: 0 | AO114: 0 | AP114: 0 | AQ114: 0 | AR114: 0 | AS114: 0 | AT114: 0 | AU114: 0 | AV114: 0
D115: Interest | E115: Euro | F115: =$F$43 -> 0.045 | I115: =I111*$F$115 -> 0 | J115: =J111*$F$115 -> 0 | K115: 0 | L115: 0 | M115: 0 | N115: 0 | O115: 0 | P115: 0 | Q115: 0 | R115: 0 | S115: 0 | T115: 0 | U115: 0 | V115: 0 | W115: 0 | X115: 0 | Y115: 0 | Z115: 0 | AA115: 0 | AB115: 0 | AC115: 0 | AD115: 0 | AE115: 0 | AF115: 0 | AG115: 0 | AH115: 0 | AI115: 0 | AJ115: 0 | AK115: 0 | AL115: 0 | AM115: 0 | AN115: 0 | AO115: 0 | AP115: 0 | AQ115: 0 | AR115: 0 | AS115: 0 | AT115: 0 | AU115: 0 | AV115: 0
D117: Total Interest | E117: Euro | I117: =I115+I108 -> 0 | J117: =J115+J108 -> 39.18899147 | K117: 37.50311108 | L117: 35.67237838 | M117: 33.68889526 | N117: 31.54438058 | O117: 29.23015245 | P117: 26.73710955 | Q117: 24.92590214 | R117: 24.35347543 | S117: 23.71067634 | T117: 22.99344585 | U117: 22.19752442 | V117: 21.31844267 | W117: 20.35151149 | X117: 19.29181184 | Y117: 18.13418402 | Z117: 16.87321643 | AA117: 15.50323383 | AB117: 14.01828514 | AC117: 12.41213053 | AD117: 10.67822808 | AE117: 8.809719706 | AF117: 6.79941655 | AG117: 4.639783603 | AH117: 2.322923701 | AI117: 0 | AJ117: 0 | AK117: 0 | AL117: 0 | AM117: 0 | AN117: 6.676259545e-15 | AO117: 1.365295077e-14 | AP117: 2.09435931e-14 | AQ117: 2.856231433e-14 | AR117: 3.652387802e-14 | AS117: 4.484371208e-14 | AT117: 5.353793867e-14 | AU117: 6.262340546e-14 | AV117: 7.211771825e-14
B119: Adjusted Cash Waterfall
C120: Adjusted Revenues | E120: Euro | I120: =I91 -> 0 | J120: =J91 -> 86.853 | K120: 88.59006 | L120: 90.3618612 | M120: 92.16909842 | N120: 94.01248039 | O120: 95.89273 | P120: 97.8105846 | Q120: 99.76679629 | R120: 101.7621322 | S120: 103.7973749 | T120: 105.8733224 | U120: 107.9907888 | V120: 110.1506046 | W120: 112.3536167 | X120: 114.600689 | Y120: 116.8927028 | Z120: 119.2305568 | AA120: 121.615168 | AB120: 124.0474713 | AC120: 126.5284208 | AD120: 129.0589892 | AE120: 131.640169 | AF120: 134.2729723 | AG120: 136.9584318 | AH120: 139.6976004 | AI120: 142.4915524 | AJ120: 145.3413835 | AK120: 148.2482112 | AL120: 151.2131754 | AM120: 154.2374389 | AN120: 0 | AO120: 0 | AP120: 0 | AQ120: 0 | AR120: 0 | AS120: 0 | AT120: 0 | AU120: 0 | AV120: 0
C121: Less Operating Expense | E121: Euro | I121: =I12 -> 0 | J121: 10.2 | K121: 10.404 | L121: 10.61208 | M121: 10.8243216 | N121: 11.04080803 | O121: 11.26162419 | P121: 11.48685668 | Q121: 11.71659381 | R121: 11.95092569 | S121: 12.1899442 | T121: 12.43374308 | U121: 12.68241795 | V121: 12.9360663 | W121: 13.19478763 | X121: 13.45868338 | Y121: 13.72785705 | Z121: 14.00241419 | AA121: 14.28246248 | AB121: 14.56811173 | AC121: 14.85947396 | AD121: 15.15666344 | AE121: 15.45979671 | AF121: 15.76899264 | AG121: 16.08437249 | AH121: 16.40605994 | AI121: 16.73418114 | AJ121: 17.06886477 | AK121: 17.41024206 | AL121: 17.7584469 | AM121: 18.11361584 | AN121: 0 | AO121: 0 | AP121: 0 | AQ121: 0 | AR121: 0 | AS121: 0 | AT121: 0 | AU121: 0 | AV121: 0
C122: EBITDA | I122: =I120-I121 -> 0 | J122: =J120-J121 -> 76.653 | K122: 78.18606 | L122: 79.7497812 | M122: 81.34477682 | N122: 82.97167236 | O122: 84.63110581 | P122: 86.32372792 | Q122: 88.05020248 | R122: 89.81120653 | S122: 91.60743066 | T122: 93.43957928 | U122: 95.30837086 | V122: 97.21453828 | W122: 99.15882904 | X122: 101.1420056 | Y122: 103.1648457 | Z122: 105.2281427 | AA122: 107.3327055 | AB122: 109.4793596 | AC122: 111.6689468 | AD122: 113.9023257 | AE122: 116.1803723 | AF122: 118.5039797 | AG122: 120.8740593 | AH122: 123.2915405 | AI122: 125.7573713 | AJ122: 128.2725187 | AK122: 130.8379691 | AL122: 133.4547285 | AM122: 136.123823 | AN122: 0 | AO122: 0 | AP122: 0 | AQ122: 0 | AR122: 0 | AS122: 0 | AT122: 0 | AU122: 0 | AV122: 0
C124: Less: Interest | E124: Euro | I124: =I117 -> 0 | J124: =J117 -> 39.18899147 | K124: 37.50311108 | L124: 35.67237838 | M124: 33.68889526 | N124: 31.54438058 | O124: 29.23015245 | P124: 26.73710955 | Q124: 24.92590214 | R124: 24.35347543 | S124: 23.71067634 | T124: 22.99344585 | U124: 22.19752442 | V124: 21.31844267 | W124: 20.35151149 | X124: 19.29181184 | Y124: 18.13418402 | Z124: 16.87321643 | AA124: 15.50323383 | AB124: 14.01828514 | AC124: 12.41213053 | AD124: 10.67822808 | AE124: 8.809719706 | AF124: 6.79941655 | AG124: 4.639783603 | AH124: 2.322923701 | AI124: 0 | AJ124: 0 | AK124: 0 | AL124: 0 | AM124: 0 | AN124: 6.676259545e-15 | AO124: 1.365295077e-14 | AP124: 2.09435931e-14 | AQ124: 2.856231433e-14 | AR124: 3.652387802e-14 | AS124: 4.484371208e-14 | AT124: 5.353793867e-14 | AU124: 6.262340546e-14 | AV124: 7.211771825e-14
C125: Less: Debt Repayment Scheduled | E125: Euro | I125: =I105 -> 0 | J125: =J105 -> 3.964854686 | K125: 5.00635007 | L125: 6.111974285 | M125: 7.284958359 | N125: 8.52868562 | O125: 9.846698691 | P125: 11.24270679 | Q125: 12.7205934 | R125: 14.28442419 | S125: 15.93845545 | T125: 17.68714277 | U125: 19.53515014 | V125: 21.48735957 | W125: 23.54888098 | X125: 25.72506265 | Y125: 28.02150214 | Z125: 30.44405764 | AA125: 32.9988599 | AB125: 35.69232465 | AC125: 38.53116564 | AD125: 41.52240819 | AE125: 44.67340347 | AF125: 47.99184327 | AG125: 51.4857756 | AH125: 51.6205267 | AI125: 0 | AJ125: 0 | AK125: 0 | AL125: 0 | AM125: -1.483613232e-13 | AN125: -1.550375828e-13 | AO125: -1.62014274e-13 | AP125: -1.693049163e-13 | AQ125: -1.769236376e-13 | AR125: -1.848852013e-13 | AS125: -1.932050353e-13 | AT125: -2.018992619e-13 | AU125: -2.109847287e-13 | AV125: -2.204790415e-13
C126: Cash Flow After Scheduled Debt Service | E126: Euro | I126: =I122-I124-I125 -> 0 | J126: =J122-J124-J125 -> 33.49915385 | K126: 35.67659885 | L126: 37.96542853 | M126: 40.37092321 | N126: 42.89860616 | O126: 45.55425466 | P126: 48.34391158 | Q126: 50.40370695 | R126: 51.17330691 | S126: 51.95829887 | T126: 52.75899066 | U126: 53.57569629 | V126: 54.40873604 | W126: 55.25843658 | X126: 56.12513113 | Y126: 57.00915957 | Z126: 57.91086858 | AA126: 58.83061177 | AB126: 59.76874983 | AC126: 60.72565064 | AD126: 61.70168947 | AE126: 62.69724908 | AF126: 63.71271988 | AG126: 64.7485001 | AH126: 69.34809009 | AI126: 125.7573713 | AJ126: 128.2725187 | AK126: 130.8379691 | AL126: 133.4547285 | AM126: 136.123823 | AN126: 1.483613232e-13 | AO126: 1.483613232e-13 | AP126: 1.483613232e-13 | AQ126: 1.483613232e-13 | AR126: 1.483613232e-13 | AS126: 1.483613232e-13 | AT126: 1.483613232e-13 | AU126: 1.483613232e-13 | AV126: 1.483613232e-13
C128: Cash Sweep | E128: % | G128: 0 | I128: =I97 -> 1 | J128: =J97 -> 1 | K128: 1 | L128: 1 | M128: 1 | N128: 1 | O128: 1 | P128: 0.6 | Q128: 0 | R128: 0 | S128: 0 | T128: 0 | U128: 0 | V128: 0 | W128: 0 | X128: 0 | Y128: 0 | Z128: 0 | AA128: 0 | AB128: 0 | AC128: 0 | AD128: 0 | AE128: 0 | AF128: 0 | AG128: 0 | AH128: 0 | AI128: 0 | AJ128: 0 | AK128: 0 | AL128: 0 | AM128: 0 | AN128: 0 | AO128: 0 | AP128: 0 | AQ128: 0 | AR128: 0 | AS128: 0 | AT128: 0 | AU128: 0 | AV128: 0
C129: Cash Swept Before Constraint | E129: Euro | I129: =MAX(I126,0)*I128 -> 0 | J129: =MAX(J126,0)*J128 -> 33.49915385 | K129: 35.67659885 | L129: 37.96542853 | M129: 40.37092321 | N129: 42.89860616 | O129: 45.55425466 | P129: 29.00634695 | Q129: 0 | R129: 0 | S129: 0 | T129: 0 | U129: 0 | V129: 0 | W129: 0 | X129: 0 | Y129: 0 | Z129: 0 | AA129: 0 | AB129: 0 | AC129: 0 | AD129: 0 | AE129: 0 | AF129: 0 | AG129: 0 | AH129: 0 | AI129: 0 | AJ129: 0 | AK129: 0 | AL129: 0 | AM129: 0 | AN129: 0 | AO129: 0 | AP129: 0 | AQ129: 0 | AR129: 0 | AS129: 0 | AT129: 0 | AU129: 0 | AV129: 0
C130: Cash Swept After Constraint | I130: =MIN(I129,I103-I105) -> 0 | J130: =MIN(J129,J103-J105) -> 33.49915385 | K130: 35.67659885 | L130: 37.96542853 | M130: 40.37092321 | N130: 42.89860616 | O130: 45.55425466 | P130: 29.00634695 | Q130: 0 | R130: 0 | S130: 0 | T130: 0 | U130: 0 | V130: 0 | W130: 0 | X130: 0 | Y130: 0 | Z130: 0 | AA130: 0 | AB130: 0 | AC130: 0 | AD130: 0 | AE130: 0 | AF130: 0 | AG130: 0 | AH130: 0 | AI130: 0 | AJ130: 0 | AK130: 0 | AL130: 0 | AM130: 0 | AN130: 0 | AO130: 0 | AP130: 0 | AQ130: 0 | AR130: 0 | AS130: 0 | AT130: 0 | AU130: 0 | AV130: 0
C132: Cash Flow Before Default | E132: Euro | I132: =I126-I130 -> 0 | J132: =J126-J130 -> 0 | K132: 0 | L132: 0 | M132: 0 | N132: 0 | O132: 0 | P132: 19.33756463 | Q132: 50.40370695 | R132: 51.17330691 | S132: 51.95829887 | T132: 52.75899066 | U132: 53.57569629 | V132: 54.40873604 | W132: 55.25843658 | X132: 56.12513113 | Y132: 57.00915957 | Z132: 57.91086858 | AA132: 58.83061177 | AB132: 59.76874983 | AC132: 60.72565064 | AD132: 61.70168947 | AE132: 62.69724908 | AF132: 63.71271988 | AG132: 64.7485001 | AH132: 69.34809009 | AI132: 125.7573713 | AJ132: 128.2725187 | AK132: 130.8379691 | AL132: 133.4547285 | AM132: 136.123823 | AN132: 1.483613232e-13 | AO132: 1.483613232e-13 | AP132: 1.483613232e-13 | AQ132: 1.483613232e-13 | AR132: 1.483613232e-13 | AS132: 1.483613232e-13 | AT132: 1.483613232e-13 | AU132: 1.483613232e-13 | AV132: 1.483613232e-13
C133: Add: Repayment not Made from Default | E133: Euro | I133: =MAX(-I132,0) -> 0 | J133: =MAX(-J132,0) -> 0 | K133: 0 | L133: 0 | M133: 0 | N133: 0 | O133: 0 | P133: 0 | Q133: 0 | R133: 0 | S133: 0 | T133: 0 | U133: 0 | V133: 0 | W133: 0 | X133: 0 | Y133: 0 | Z133: 0 | AA133: 0 | AB133: 0 | AC133: 0 | AD133: 0 | AE133: 0 | AF133: 0 | AG133: 0 | AH133: 0 | AI133: 0 | AJ133: 0 | AK133: 0 | AL133: 0 | AM133: 0 | AN133: 0 | AO133: 0 | AP133: 0 | AQ133: 0 | AR133: 0 | AS133: 0 | AT133: 0 | AU133: 0 | AV133: 0
C134: Less: Repayment of Default | E134: Euro | I134: =MIN(MAX(I126,0),I111) -> 0 | J134: =MIN(MAX(J126,0),J111) -> 0 | K134: 0 | L134: 0 | M134: 0 | N134: 0 | O134: 0 | P134: 0 | Q134: 0 | R134: 0 | S134: 0 | T134: 0 | U134: 0 | V134: 0 | W134: 0 | X134: 0 | Y134: 0 | Z134: 0 | AA134: 0 | AB134: 0 | AC134: 0 | AD134: 0 | AE134: 0 | AF134: 0 | AG134: 0 | AH134: 0 | AI134: 0 | AJ134: 0 | AK134: 0 | AL134: 0 | AM134: 0 | AN134: 0 | AO134: 0 | AP134: 0 | AQ134: 0 | AR134: 0 | AS134: 0 | AT134: 0 | AU134: 0 | AV134: 0
C136: Cash Flow After Sweep | E136: Euro | I136: =I132+I133-I134 -> 0 | J136: =J132+J133-J134 -> 0 | K136: 0 | L136: 0 | M136: 0 | N136: 0 | O136: 0 | P136: 19.33756463 | Q136: 50.40370695 | R136: 51.17330691 | S136: 51.95829887 | T136: 52.75899066 | U136: 53.57569629 | V136: 54.40873604 | W136: 55.25843658 | X136: 56.12513113 | Y136: 57.00915957 | Z136: 57.91086858 | AA136: 58.83061177 | AB136: 59.76874983 | AC136: 60.72565064 | AD136: 61.70168947 | AE136: 62.69724908 | AF136: 63.71271988 | AG136: 64.7485001 | AH136: 69.34809009 | AI136: 125.7573713 | AJ136: 128.2725187 | AK136: 130.8379691 | AL136: 133.4547285 | AM136: 136.123823 | AN136: 1.483613232e-13 | AO136: 1.483613232e-13 | AP136: 1.483613232e-13 | AQ136: 1.483613232e-13 | AR136: 1.483613232e-13 | AS136: 1.483613232e-13 | AT136: 1.483613232e-13 | AU136: 1.483613232e-13 | AV136: 1.483613232e-13
C138: Dividends | I138: =I136 -> 0 | J138: =J136 -> 0 | K138: 0 | L138: 0 | M138: 0 | N138: 0 | O138: 0 | P138: 19.33756463 | Q138: 50.40370695 | R138: 51.17330691 | S138: 51.95829887 | T138: 52.75899066 | U138: 53.57569629 | V138: 54.40873604 | W138: 55.25843658 | X138: 56.12513113 | Y138: 57.00915957 | Z138: 57.91086858 | AA138: 58.83061177 | AB138: 59.76874983 | AC138: 60.72565064 | AD138: 61.70168947 | AE138: 62.69724908 | AF138: 63.71271988 | AG138: 64.7485001 | AH138: 69.34809009 | AI138: 125.7573713 | AJ138: 128.2725187 | AK138: 130.8379691 | AL138: 133.4547285 | AM138: 136.123823 | AN138: 1.483613232e-13 | AO138: 1.483613232e-13 | AP138: 1.483613232e-13 | AQ138: 1.483613232e-13 | AR138: 1.483613232e-13 | AS138: 1.483613232e-13 | AT138: 1.483613232e-13 | AU138: 1.483613232e-13 | AV138: 1.483613232e-13
B140: Ratios
C141: Equity Cash Flow | I141: =I138-I52 -> -129.1335229 | J141: 0 | K141: 0 | L141: 0 | M141: 0 | N141: 0 | O141: 0 | P141: 19.33756463 | Q141: 50.40370695 | R141: 51.17330691 | S141: 51.95829887 | T141: 52.75899066 | U141: 53.57569629 | V141: 54.40873604 | W141: 55.25843658 | X141: 56.12513113 | Y141: 57.00915957 | Z141: 57.91086858 | AA141: 58.83061177 | AB141: 59.76874983 | AC141: 60.72565064 | AD141: 61.70168947 | AE141: 62.69724908 | AF141: 63.71271988 | AG141: 64.7485001 | AH141: 69.34809009 | AI141: 125.7573713 | AJ141: 128.2725187 | AK141: 130.8379691 | AL141: 133.4547285 | AM141: 136.123823 | AN141: 1.483613232e-13 | AO141: 1.483613232e-13 | AP141: 1.483613232e-13 | AQ141: 1.483613232e-13 | AR141: 1.483613232e-13 | AS141: 1.483613232e-13 | AT141: 1.483613232e-13 | AU141: 1.483613232e-13 | AV141: 1.483613232e-13
C142: Equity IRR | F142: =IRR(I141:AV141) -> 0.1602633872
C144: DSCR | I144: =IFERROR(I122/(I124+I125),FALSE) -> FALSE | J144: =IFERROR(J122/(J124+J125),FALSE) -> 1.776272727 | K144: 1.839262552 | L144: 1.908603966 | M144: 1.985284996 | N144: 2.070509702 | O144: 2.165760631 | P144: 2.27288429 | Q144: 2.338868499 | R144: 2.324432938 | S144: 2.310452373 | T144: 2.296908242 | U144: 2.283782955 | V144: 2.271059838 | W144: 2.258723065 | X144: 2.246757616 | Y144: 2.235149216 | Z144: 2.223884294 | AA144: 2.212949942 | AB144: 2.20233387 | AC144: 2.192024372 | AD144: 2.182010295 | AE144: 2.172280999 | AF144: 2.162826336 | AG144: 2.153636614 | AH144: 2.285570159 | AI144: FALSE | AJ144: FALSE | AK144: FALSE | AL144: FALSE | AM144: -9.175155633e+14 | AN144: 0 | AO144: 0 | AP144: 0 | AQ144: 0 | AR144: 0 | AS144: 0 | AT144: 0 | AU144: 0 | AV144: 0
C146: CFADS for Loan Life | I146: =IF(I34,I122) -> FALSE | J146: 76.653 | K146: 78.18606 | L146: 79.7497812 | M146: 81.34477682 | N146: 82.97167236 | O146: 84.63110581 | P146: 86.32372792 | Q146: 88.05020248 | R146: 89.81120653 | S146: 91.60743066 | T146: 93.43957928 | U146: 95.30837086 | V146: 97.21453828 | W146: 99.15882904 | X146: 101.1420056 | Y146: 103.1648457 | Z146: 105.2281427 | AA146: 107.3327055 | AB146: 109.4793596 | AC146: 111.6689468 | AD146: 113.9023257 | AE146: 116.1803723 | AF146: 118.5039797 | AG146: 120.8740593 | AH146: 123.2915405 | AI146: 125.7573713 | AJ146: 128.2725187 | AK146: 130.8379691 | AL146: 133.4547285 | AM146: FALSE | AN146: FALSE | AO146: FALSE | AP146: FALSE | AQ146: FALSE | AR146: FALSE | AS146: FALSE | AT146: FALSE | AU146: FALSE | AV146: FALSE
C147: NPV of CFADS | F147: =F115 -> 0.045 | G147: =NPV(F147,I146:AV146) -> 1546.896372
C148: Debt Balance | G148: =F40 -> 870.8664771
C149: LLCR | G149: =G147/G148 -> 1.776272727
C151: CFADS for Life | F151: =F147 -> 0.045 | G151: =NPV(F151,I151:AV151) -> 1583.241435 | I151: =IF(I6,I122) -> FALSE | J151: 76.653 | K151: 78.18606 | L151: 79.7497812 | M151: 81.34477682 | N151: 82.97167236 | O151: 84.63110581 | P151: 86.32372792 | Q151: 88.05020248 | R151: 89.81120653 | S151: 91.60743066 | T151: 93.43957928 | U151: 95.30837086 | V151: 97.21453828 | W151: 99.15882904 | X151: 101.1420056 | Y151: 103.1648457 | Z151: 105.2281427 | AA151: 107.3327055 | AB151: 109.4793596 | AC151: 111.6689468 | AD151: 113.9023257 | AE151: 116.1803723 | AF151: 118.5039797 | AG151: 120.8740593 | AH151: 123.2915405 | AI151: 125.7573713 | AJ151: 128.2725187 | AK151: 130.8379691 | AL151: 133.4547285 | AM151: 136.123823 | AN151: FALSE | AO151: FALSE | AP151: FALSE | AQ151: FALSE | AR151: FALSE | AS151: FALSE | AT151: FALSE | AU151: FALSE | AV151: FALSE
C152: Debt Balance | G152: =G148 -> 870.8664771
C153: PLCR | G153: =G151/G152 -> 1.818007096
B155: Graphs
I156: =I66 ->  | J156: 2 | K156: 3 | L156: 4 | M156: 5 | N156: 6 | O156: 7 | P156: 8 | Q156: 9 | R156: 10 | S156: 11 | T156: 12 | U156: 13 | V156: 14 | W156: 15 | X156: 16 | Y156: 17 | Z156: 18 | AA156: 19 | AB156: 20 | AC156: 21 | AD156: 22 | AE156: 23 | AF156: 24 | AG156: 25 | AH156: 26 | AI156: 27 | AJ156: 28 | AK156: 29 | AL156: 30 | AM156: 31
D157: Scheduled Debt Service | I157: =I124+I125 -> 0 | J157: =J124+J125 -> 43.15384615 | K157: 42.50946115 | L157: 41.78435267 | M157: 40.97385361 | N157: 40.07306621 | O157: 39.07685115 | P157: 37.97981635 | Q157: 37.64649553 | R157: 38.63789962 | S157: 39.6491318 | T157: 40.68058861 | U157: 41.73267457 | V157: 42.80580224 | W157: 43.90039247 | X157: 45.0168745 | Y157: 46.15568617 | Z157: 47.31727407 | AA157: 48.50209373 | AB157: 49.71060979 | AC157: 50.94329617 | AD157: 52.20063627 | AE157: 53.48312318 | AF157: 54.79125982 | AG157: 56.1255592 | AH157: 53.9434504 | AI157: 0 | AJ157: 0 | AK157: 0 | AL157: 0 | AM157: -1.483613232e-13 | AN157: -1.483613232e-13 | AO157: -1.483613232e-13 | AP157: -1.483613232e-13 | AQ157: -1.483613232e-13 | AR157: -1.483613232e-13 | AS157: -1.483613232e-13 | AT157: -1.483613232e-13 | AU157: -1.483613232e-13 | AV157: -1.483613232e-13
D158: Sweep | I158: =I130 -> 0 | J158: =J130 -> 33.49915385 | K158: 35.67659885 | L158: 37.96542853 | M158: 40.37092321 | N158: 42.89860616 | O158: 45.55425466 | P158: 29.00634695 | Q158: 0 | R158: 0 | S158: 0 | T158: 0 | U158: 0 | V158: 0 | W158: 0 | X158: 0 | Y158: 0 | Z158: 0 | AA158: 0 | AB158: 0 | AC158: 0 | AD158: 0 | AE158: 0 | AF158: 0 | AG158: 0 | AH158: 0 | AI158: 0 | AJ158: 0 | AK158: 0 | AL158: 0 | AM158: 0 | AN158: 0 | AO158: 0 | AP158: 0 | AQ158: 0 | AR158: 0 | AS158: 0 | AT158: 0 | AU158: 0 | AV158: 0
D159: Repayment of Default | I159: =I134 -> 0 | J159: =J134 -> 0 | K159: 0 | L159: 0 | M159: 0 | N159: 0 | O159: 0 | P159: 0 | Q159: 0 | R159: 0 | S159: 0 | T159: 0 | U159: 0 | V159: 0 | W159: 0 | X159: 0 | Y159: 0 | Z159: 0 | AA159: 0 | AB159: 0 | AC159: 0 | AD159: 0 | AE159: 0 | AF159: 0 | AG159: 0 | AH159: 0 | AI159: 0 | AJ159: 0 | AK159: 0 | AL159: 0 | AM159: 0 | AN159: 0 | AO159: 0 | AP159: 0 | AQ159: 0 | AR159: 0 | AS159: 0 | AT159: 0 | AU159: 0 | AV159: 0
D160: Default | I160: =-I133 -> 0 | J160: =-J133 -> 0 | K160: 0 | L160: 0 | M160: 0 | N160: 0 | O160: 0 | P160: 0 | Q160: 0 | R160: 0 | S160: 0 | T160: 0 | U160: 0 | V160: 0 | W160: 0 | X160: 0 | Y160: 0 | Z160: 0 | AA160: 0 | AB160: 0 | AC160: 0 | AD160: 0 | AE160: 0 | AF160: 0 | AG160: 0 | AH160: 0 | AI160: 0 | AJ160: 0 | AK160: 0 | AL160: 0 | AM160: 0 | AN160: 0 | AO160: 0 | AP160: 0 | AQ160: 0 | AR160: 0 | AS160: 0 | AT160: 0 | AU160: 0 | AV160: 0
D161: Dividend | I161: =I138 -> 0 | J161: =J138 -> 0 | K161: 0 | L161: 0 | M161: 0 | N161: 0 | O161: 0 | P161: 19.33756463 | Q161: 50.40370695 | R161: 51.17330691 | S161: 51.95829887 | T161: 52.75899066 | U161: 53.57569629 | V161: 54.40873604 | W161: 55.25843658 | X161: 56.12513113 | Y161: 57.00915957 | Z161: 57.91086858 | AA161: 58.83061177 | AB161: 59.76874983 | AC161: 60.72565064 | AD161: 61.70168947 | AE161: 62.69724908 | AF161: 63.71271988 | AG161: 64.7485001 | AH161: 69.34809009 | AI161: 125.7573713 | AJ161: 128.2725187 | AK161: 130.8379691 | AL161: 133.4547285 | AM161: 136.123823 | AN161: 1.483613232e-13 | AO161: 1.483613232e-13 | AP161: 1.483613232e-13 | AQ161: 1.483613232e-13 | AR161: 1.483613232e-13 | AS161: 1.483613232e-13 | AT161: 1.483613232e-13 | AU161: 1.483613232e-13 | AV161: 1.483613232e-13
D163: Equity IRR with Sweep | F163: =F142 -> 0.1602633872 | G163: Equity IRR Before | H163: =E70 -> 0.1155576952 | I163: Year of Sweep End | J163: =F94 -> 8 | K163: =F85 -> 1 | L163: Cash Sweep Percent | N163: =F128 -> 0 | O163: Unpaid Debt at Project Life | R163: =#REF! ->  | S163: Unpaid Debt at Loan Life

Sheet Sub Debt
B2: Timing
C3: Period | I3: =_xlfn.SEQUENCE(,120) -> 1 | J3: 2 | K3: 3 | L3: 4 | M3: 5 | N3: 6 | O3: 7 | P3: 8 | Q3: 9 | R3: 10 | S3: 11 | T3: 12 | U3: 13 | V3: 14 | W3: 15 | X3: 16 | Y3: 17 | Z3: 18 | AA3: 19 | AB3: 20 | AC3: 21 | AD3: 22 | AE3: 23 | AF3: 24 | AG3: 25 | AH3: 26 | AI3: 27 | AJ3: 28 | AK3: 29 | AL3: 30 | AM3: 31 | AN3: 32 | AO3: 33 | AP3: 34 | AQ3: 35 | AR3: 36 | AS3: 37 | AT3: 38 | AU3: 39 | AV3: 40 | AW3: 41 | AX3: 42 | AY3: 43 | AZ3: 44 | BA3: 45 | BB3: 46 | BC3: 47 | BD3: 48 | BE3: 49 | BF3: 50 | BG3: 51 | BH3: 52 | BI3: 53 | BJ3: 54 | BK3: 55 | BL3: 56 | BM3: 57 | BN3: 58 | BO3: 59 | BP3: 60 | BQ3: 61 | BR3: 62 | BS3: 63 | BT3: 64 | BU3: 65 | BV3: 66 | BW3: 67 | BX3: 68 | BY3: 69 | BZ3: 70 | CA3: 71 | CB3: 72 | CC3: 73 | CD3: 74 | CE3: 75 | CF3: 76 | CG3: 77 | CH3: 78 | CI3: 79 | CJ3: 80 | CK3: 81 | CL3: 82 | CM3: 83 | CN3: 84 | CO3: 85 | CP3: 86 | CQ3: 87 | CR3: 88 | CS3: 89 | CT3: 90 | CU3: 91 | CV3: 92 | CW3: 93 | CX3: 94 | CY3: 95 | CZ3: 96 | DA3: 97 | DB3: 98 | DC3: 99 | DD3: 100 | DE3: 101 | DF3: 102 | DG3: 103 | DH3: 104 | DI3: 105 | DJ3: 106 | DK3: 107 | DL3: 108 | DM3: 109 | DN3: 110 | DO3: 111 | DP3: 112 | DQ3: 113 | DR3: 114 | DS3: 115 | DT3: 116 | DU3: 117 | DV3: 118 | DW3: 119 | DX3: 120
C4: Construction Periods | E4: Years | F4: 1 | I4: =I3<=$F$4 -> TRUE | J4: =J3<=$F$4 -> FALSE | K4: FALSE | L4: FALSE | M4: FALSE | N4: FALSE | O4: FALSE | P4: FALSE | Q4: FALSE | R4: FALSE | S4: FALSE | T4: FALSE | U4: FALSE | V4: FALSE | W4: FALSE | X4: FALSE | Y4: FALSE | Z4: FALSE | AA4: FALSE | AB4: FALSE | AC4: FALSE | AD4: FALSE | AE4: FALSE | AF4: FALSE | AG4: FALSE | AH4: FALSE | AI4: FALSE | AJ4: FALSE | AK4: FALSE | AL4: FALSE | AM4: FALSE | AN4: FALSE | AO4: FALSE | AP4: FALSE | AQ4: FALSE | AR4: FALSE | AS4: FALSE | AT4: FALSE | AU4: FALSE | AV4: FALSE | AW4: FALSE | AX4: FALSE | AY4: FALSE | AZ4: FALSE | BA4: FALSE | BB4: FALSE | BC4: FALSE | BD4: FALSE | BE4: FALSE | BF4: FALSE | BG4: FALSE | BH4: FALSE | BI4: FALSE | BJ4: FALSE | BK4: FALSE | BL4: FALSE | BM4: FALSE | BN4: FALSE | BO4: FALSE | BP4: FALSE | BQ4: FALSE | BR4: FALSE | BS4: FALSE | BT4: FALSE | BU4: FALSE | BV4: =BV3<=$F$4 -> FALSE | BW4: FALSE | BX4: FALSE | BY4: FALSE | BZ4: FALSE | CA4: FALSE | CB4: FALSE | CC4: FALSE | CD4: FALSE | CE4: FALSE | CF4: FALSE | CG4: FALSE | CH4: FALSE | CI4: FALSE | CJ4: FALSE | CK4: FALSE | CL4: FALSE | CM4: FALSE | CN4: FALSE | CO4: FALSE | CP4: FALSE | CQ4: FALSE | CR4: FALSE | CS4: FALSE | CT4: FALSE | CU4: FALSE | CV4: FALSE | CW4: FALSE | CX4: FALSE | CY4: FALSE | CZ4: FALSE | DA4: FALSE | DB4: FALSE | DC4: FALSE | DD4: FALSE | DE4: FALSE | DF4: FALSE | DG4: FALSE | DH4: FALSE | DI4: FALSE | DJ4: FALSE | DK4: FALSE | DL4: FALSE | DM4: FALSE | DN4: FALSE | DO4: FALSE | DP4: FALSE | DQ4: FALSE | DR4: FALSE | DS4: FALSE | DT4: FALSE | DU4: FALSE | DV4: FALSE | DW4: FALSE | DX4: FALSE
C5: Operating Life | E5: Life | F5: 30 | G5: =F5+F4 -> 31 | I5: =AND(NOT(I4),I3<=$G$5) -> FALSE | J5: =AND(NOT(J4),J3<=$G$5) -> TRUE | K5: =AND(NOT(K4),K3<=$G$5) -> TRUE | L5: TRUE | M5: TRUE | N5: TRUE | O5: TRUE | P5: TRUE | Q5: TRUE | R5: TRUE | S5: TRUE | T5: TRUE | U5: TRUE | V5: TRUE | W5: TRUE | X5: TRUE | Y5: TRUE | Z5: TRUE | AA5: TRUE | AB5: TRUE | AC5: TRUE | AD5: TRUE | AE5: TRUE | AF5: TRUE | AG5: TRUE | AH5: TRUE | AI5: TRUE | AJ5: TRUE | AK5: TRUE | AL5: TRUE | AM5: TRUE | AN5: FALSE | AO5: FALSE | AP5: FALSE | AQ5: FALSE | AR5: FALSE | AS5: FALSE | AT5: FALSE | AU5: FALSE | AV5: FALSE | AW5: FALSE | AX5: FALSE | AY5: FALSE | AZ5: FALSE | BA5: FALSE | BB5: FALSE | BC5: FALSE | BD5: FALSE | BE5: FALSE | BF5: FALSE | BG5: FALSE | BH5: FALSE | BI5: FALSE | BJ5: FALSE | BK5: FALSE | BL5: FALSE | BM5: FALSE | BN5: FALSE | BO5: FALSE | BP5: FALSE | BQ5: FALSE | BR5: FALSE | BS5: FALSE | BT5: FALSE | BU5: FALSE | BV5: FALSE | BW5: =AND(NOT(BW4),BW3<=$G$5) -> FALSE | BX5: FALSE | BY5: FALSE | BZ5: FALSE | CA5: FALSE | CB5: FALSE | CC5: FALSE | CD5: FALSE | CE5: FALSE | CF5: FALSE | CG5: FALSE | CH5: FALSE | CI5: FALSE | CJ5: FALSE | CK5: FALSE | CL5: FALSE | CM5: FALSE | CN5: FALSE | CO5: FALSE | CP5: FALSE | CQ5: FALSE | CR5: FALSE | CS5: FALSE | CT5: FALSE | CU5: FALSE | CV5: FALSE | CW5: FALSE | CX5: FALSE | CY5: FALSE | CZ5: FALSE | DA5: FALSE | DB5: FALSE | DC5: FALSE | DD5: FALSE | DE5: FALSE | DF5: FALSE | DG5: FALSE | DH5: FALSE | DI5: FALSE | DJ5: FALSE | DK5: FALSE | DL5: FALSE | DM5: FALSE | DN5: FALSE | DO5: FALSE | DP5: FALSE | DQ5: FALSE | DR5: FALSE | DS5: FALSE | DT5: FALSE | DU5: FALSE | DV5: FALSE | DW5: FALSE | DX5: FALSE
B7: Operating Cash Flow
C8: Inflation Index | E8: % | F8: 0.01 | G8: 1 | I8: =G8*(1+$F$8*I5) -> 1 | J8: =I8*(1+$F$8*J5) -> 1.01 | K8: 1.0201 | L8: 1.030301 | M8: 1.04060401 | N8: 1.05101005 | O8: 1.061520151 | P8: 1.072135352 | Q8: 1.082856706 | R8: 1.093685273 | S8: 1.104622125 | T8: 1.115668347 | U8: 1.12682503 | V8: 1.13809328 | W8: 1.149474213 | X8: 1.160968955 | Y8: 1.172578645 | Z8: 1.184304431 | AA8: 1.196147476 | AB8: 1.20810895 | AC8: 1.22019004 | AD8: 1.23239194 | AE8: 1.24471586 | AF8: 1.257163018 | AG8: 1.269734649 | AH8: 1.282431995 | AI8: 1.295256315 | AJ8: 1.308208878 | AK8: 1.321290967 | AL8: 1.334503877 | AM8: 1.347848915 | AN8: 1.347848915 | AO8: 1.347848915 | AP8: 1.347848915 | AQ8: 1.347848915 | AR8: 1.347848915 | AS8: 1.347848915 | AT8: 1.347848915 | AU8: 1.347848915 | AV8: 1.347848915 | AW8: 1.347848915 | AX8: 1.347848915 | AY8: 1.347848915 | AZ8: 1.347848915 | BA8: 1.347848915 | BB8: 1.347848915 | BC8: 1.347848915 | BD8: 1.347848915 | BE8: 1.347848915 | BF8: 1.347848915 | BG8: 1.347848915 | BH8: 1.347848915 | BI8: 1.347848915 | BJ8: 1.347848915 | BK8: 1.347848915 | BL8: 1.347848915 | BM8: 1.347848915 | BN8: 1.347848915 | BO8: 1.347848915 | BP8: 1.347848915 | BQ8: 1.347848915 | BR8: 1.347848915 | BS8: 1.347848915 | BT8: 1.347848915 | BU8: 1.347848915 | BV8: =BU8*(1+$F$8*BV5) -> 1.347848915 | BW8: 1.347848915 | BX8: 1.347848915 | BY8: 1.347848915 | BZ8: 1.347848915 | CA8: 1.347848915 | CB8: 1.347848915 | CC8: 1.347848915 | CD8: 1.347848915 | CE8: 1.347848915 | CF8: 1.347848915 | CG8: 1.347848915 | CH8: 1.347848915 | CI8: 1.347848915 | CJ8: 1.347848915 | CK8: 1.347848915 | CL8: 1.347848915 | CM8: 1.347848915 | CN8: 1.347848915 | CO8: 1.347848915 | CP8: 1.347848915 | CQ8: 1.347848915 | CR8: 1.347848915 | CS8: 1.347848915 | CT8: 1.347848915 | CU8: 1.347848915 | CV8: 1.347848915 | CW8: 1.347848915 | CX8: 1.347848915 | CY8: 1.347848915 | CZ8: 1.347848915 | DA8: 1.347848915 | DB8: 1.347848915 | DC8: 1.347848915 | DD8: 1.347848915 | DE8: 1.347848915 | DF8: 1.347848915 | DG8: 1.347848915 | DH8: 1.347848915 | DI8: 1.347848915 | DJ8: 1.347848915 | DK8: 1.347848915 | DL8: 1.347848915 | DM8: 1.347848915 | DN8: 1.347848915 | DO8: 1.347848915 | DP8: 1.347848915 | DQ8: 1.347848915 | DR8: 1.347848915 | DS8: 1.347848915 | DT8: 1.347848915 | DU8: 1.347848915 | DV8: 1.347848915 | DW8: 1.347848915 | DX8: 1.347848915
C10: Revenues (Minimum Traffic Case) | E10: Annual Euro | F10: 85 | H10: =SUM(I10:XFD10) -> 2986.282938 | I10: =$F$10*I8*I5 -> 0 | J10: =$F$10*J8*J5 -> 85.85 | K10: 86.7085 | L10: 87.575585 | M10: 88.45134085 | N10: 89.33585426 | O10: 90.2292128 | P10: 91.13150493 | Q10: 92.04281998 | R10: 92.96324818 | S10: 93.89288066 | T10: 94.83180947 | U10: 95.78012756 | V10: 96.73792884 | W10: 97.70530813 | X10: 98.68236121 | Y10: 99.66918482 | Z10: 100.6658767 | AA10: 101.6725354 | AB10: 102.6892608 | AC10: 103.7161534 | AD10: 104.7533149 | AE10: 105.8008481 | AF10: 106.8588566 | AG10: 107.9274451 | AH10: 109.0067196 | AI10: 110.0967868 | AJ10: 111.1977546 | AK10: 112.3097322 | AL10: 113.4328295 | AM10: 114.5671578 | AN10: 0 | AO10: 0 | AP10: 0 | AQ10: 0 | AR10: 0 | AS10: 0 | AT10: 0 | AU10: 0 | AV10: 0 | AW10: 0 | AX10: 0 | AY10: 0 | AZ10: 0 | BA10: 0 | BB10: 0 | BC10: 0 | BD10: 0 | BE10: 0 | BF10: 0 | BG10: 0 | BH10: 0 | BI10: 0 | BJ10: 0 | BK10: 0 | BL10: 0 | BM10: 0 | BN10: 0 | BO10: 0 | BP10: 0 | BQ10: 0 | BR10: 0 | BS10: 0 | BT10: 0 | BU10: 0 | BV10: =$F$10*BV8*BV5 -> 0 | BW10: 0 | BX10: 0 | BY10: 0 | BZ10: 0 | CA10: 0 | CB10: 0 | CC10: 0 | CD10: 0 | CE10: 0 | CF10: 0 | CG10: 0 | CH10: 0 | CI10: 0 | CJ10: 0 | CK10: 0 | CL10: 0 | CM10: 0 | CN10: 0 | CO10: 0 | CP10: 0 | CQ10: 0 | CR10: 0 | CS10: 0 | CT10: 0 | CU10: 0 | CV10: 0 | CW10: 0 | CX10: 0 | CY10: 0 | CZ10: 0 | DA10: 0 | DB10: 0 | DC10: 0 | DD10: 0 | DE10: 0 | DF10: 0 | DG10: 0 | DH10: 0 | DI10: 0 | DJ10: 0 | DK10: 0 | DL10: 0 | DM10: 0 | DN10: 0 | DO10: 0 | DP10: 0 | DQ10: 0 | DR10: 0 | DS10: 0 | DT10: 0 | DU10: 0 | DV10: 0 | DW10: 0 | DX10: 0
C11: Operating Expense | E11: Annual Euro | F11: 10 | H11: =SUM(I11:XFD11) -> 351.3274045 | I11: =$F$11*I8*I5 -> 0 | J11: =$F$11*J8*J5 -> 10.1 | K11: 10.201 | L11: 10.30301 | M11: 10.4060401 | N11: 10.5101005 | O11: 10.61520151 | P11: 10.72135352 | Q11: 10.82856706 | R11: 10.93685273 | S11: 11.04622125 | T11: 11.15668347 | U11: 11.2682503 | V11: 11.3809328 | W11: 11.49474213 | X11: 11.60968955 | Y11: 11.72578645 | Z11: 11.84304431 | AA11: 11.96147476 | AB11: 12.0810895 | AC11: 12.2019004 | AD11: 12.3239194 | AE11: 12.4471586 | AF11: 12.57163018 | AG11: 12.69734649 | AH11: 12.82431995 | AI11: 12.95256315 | AJ11: 13.08208878 | AK11: 13.21290967 | AL11: 13.34503877 | AM11: 13.47848915 | AN11: 0 | AO11: 0 | AP11: 0 | AQ11: 0 | AR11: 0 | AS11: 0 | AT11: 0 | AU11: 0 | AV11: 0 | AW11: 0 | AX11: 0 | AY11: 0 | AZ11: 0 | BA11: 0 | BB11: 0 | BC11: 0 | BD11: 0 | BE11: 0 | BF11: 0 | BG11: 0 | BH11: 0 | BI11: 0 | BJ11: 0 | BK11: 0 | BL11: 0 | BM11: 0 | BN11: 0 | BO11: 0 | BP11: 0 | BQ11: 0 | BR11: 0 | BS11: 0 | BT11: 0 | BU11: 0 | BV11: =$F$11*BV8*BV5 -> 0 | BW11: 0 | BX11: 0 | BY11: 0 | BZ11: 0 | CA11: 0 | CB11: 0 | CC11: 0 | CD11: 0 | CE11: 0 | CF11: 0 | CG11: 0 | CH11: 0 | CI11: 0 | CJ11: 0 | CK11: 0 | CL11: 0 | CM11: 0 | CN11: 0 | CO11: 0 | CP11: 0 | CQ11: 0 | CR11: 0 | CS11: 0 | CT11: 0 | CU11: 0 | CV11: 0 | CW11: 0 | CX11: 0 | CY11: 0 | CZ11: 0 | DA11: 0 | DB11: 0 | DC11: 0 | DD11: 0 | DE11: 0 | DF11: 0 | DG11: 0 | DH11: 0 | DI11: 0 | DJ11: 0 | DK11: 0 | DL11: 0 | DM11: 0 | DN11: 0 | DO11: 0 | DP11: 0 | DQ11: 0 | DR11: 0 | DS11: 0 | DT11: 0 | DU11: 0 | DV11: 0 | DW11: 0 | DX11: 0
C12: Capital Expenditure | E12: One Time | F12: 1000 | G12: =F4 -> 1 | I12: =$F$12/$G$12*I4 -> 1000 | J12: =$F$12/$G$12*J4 -> 0 | K12: 0 | L12: 0 | M12: 0 | N12: 0 | O12: 0 | P12: 0 | Q12: 0 | R12: 0 | S12: 0 | T12: 0 | U12: 0 | V12: 0 | W12: 0 | X12: 0 | Y12: 0 | Z12: 0 | AA12: 0 | AB12: 0 | AC12: 0 | AD12: 0 | AE12: 0 | AF12: 0 | AG12: 0 | AH12: 0 | AI12: 0 | AJ12: 0 | AK12: 0 | AL12: 0 | AM12: 0 | AN12: 0 | AO12: 0 | AP12: 0 | AQ12: 0 | AR12: 0 | AS12: 0 | AT12: 0 | AU12: 0 | AV12: 0 | AW12: 0 | AX12: 0 | AY12: 0 | AZ12: 0 | BA12: 0 | BB12: 0 | BC12: 0 | BD12: 0 | BE12: 0 | BF12: 0 | BG12: 0 | BH12: 0 | BI12: 0 | BJ12: 0 | BK12: 0 | BL12: 0 | BM12: 0 | BN12: 0 | BO12: 0 | BP12: 0 | BQ12: 0 | BR12: 0 | BS12: 0 | BT12: 0 | BU12: 0 | BV12: =$F$12/$G$12*BV4 -> 0 | BW12: 0 | BX12: 0 | BY12: 0 | BZ12: 0 | CA12: 0 | CB12: 0 | CC12: 0 | CD12: 0 | CE12: 0 | CF12: 0 | CG12: 0 | CH12: 0 | CI12: 0 | CJ12: 0 | CK12: 0 | CL12: 0 | CM12: 0 | CN12: 0 | CO12: 0 | CP12: 0 | CQ12: 0 | CR12: 0 | CS12: 0 | CT12: 0 | CU12: 0 | CV12: 0 | CW12: 0 | CX12: 0 | CY12: 0 | CZ12: 0 | DA12: 0 | DB12: 0 | DC12: 0 | DD12: 0 | DE12: 0 | DF12: 0 | DG12: 0 | DH12: 0 | DI12: 0 | DJ12: 0 | DK12: 0 | DL12: 0 | DM12: 0 | DN12: 0 | DO12: 0 | DP12: 0 | DQ12: 0 | DR12: 0 | DS12: 0 | DT12: 0 | DU12: 0 | DV12: 0 | DW12: 0 | DX12: 0
C14: EBITDA | E14: Euro | H14: =SUM(I14:XFD14) -> 2634.955534 | I14: =I10-I11 -> 0 | J14: =J10-J11 -> 75.75 | K14: 76.5075 | L14: 77.272575 | M14: 78.04530075 | N14: 78.82575376 | O14: 79.6140113 | P14: 80.41015141 | Q14: 81.21425292 | R14: 82.02639545 | S14: 82.84665941 | T14: 83.675126 | U14: 84.51187726 | V14: 85.35699603 | W14: 86.21056599 | X14: 87.07267165 | Y14: 87.94339837 | Z14: 88.82283235 | AA14: 89.71106068 | AB14: 90.60817128 | AC14: 91.514253 | AD14: 92.42939553 | AE14: 93.35368948 | AF14: 94.28722638 | AG14: 95.23009864 | AH14: 96.18239963 | AI14: 97.14422362 | AJ14: 98.11566586 | AK14: 99.09682252 | AL14: 100.0877907 | AM14: 101.0886686 | AN14: 0 | AO14: 0 | AP14: 0 | AQ14: 0 | AR14: 0 | AS14: 0 | AT14: 0 | AU14: 0 | AV14: 0 | AW14: 0 | AX14: 0 | AY14: 0 | AZ14: 0 | BA14: 0 | BB14: 0 | BC14: 0 | BD14: 0 | BE14: 0 | BF14: 0 | BG14: 0 | BH14: 0 | BI14: 0 | BJ14: 0 | BK14: 0 | BL14: 0 | BM14: 0 | BN14: 0 | BO14: 0 | BP14: 0 | BQ14: 0 | BR14: 0 | BS14: 0 | BT14: 0 | BU14: 0 | BV14: =BV10-BV11 -> 0 | BW14: 0 | BX14: 0 | BY14: 0 | BZ14: 0 | CA14: 0 | CB14: 0 | CC14: 0 | CD14: 0 | CE14: 0 | CF14: 0 | CG14: 0 | CH14: 0 | CI14: 0 | CJ14: 0 | CK14: 0 | CL14: 0 | CM14: 0 | CN14: 0 | CO14: 0 | CP14: 0 | CQ14: 0 | CR14: 0 | CS14: 0 | CT14: 0 | CU14: 0 | CV14: 0 | CW14: 0 | CX14: 0 | CY14: 0 | CZ14: 0 | DA14: 0 | DB14: 0 | DC14: 0 | DD14: 0 | DE14: 0 | DF14: 0 | DG14: 0 | DH14: 0 | DI14: 0 | DJ14: 0 | DK14: 0 | DL14: 0 | DM14: 0 | DN14: 0 | DO14: 0 | DP14: 0 | DQ14: 0 | DR14: 0 | DS14: 0 | DT14: 0 | DU14: 0 | DV14: 0 | DW14: 0 | DX14: 0
C15: Free Cash Flow | E15: Euro | H15: =SUM(I15:XFD15) -> 1634.955534 | I15: =I14-I12 -> -1000 | J15: =J14-J12 -> 75.75 | K15: 76.5075 | L15: 77.272575 | M15: 78.04530075 | N15: 78.82575376 | O15: 79.6140113 | P15: 80.41015141 | Q15: 81.21425292 | R15: 82.02639545 | S15: 82.84665941 | T15: 83.675126 | U15: 84.51187726 | V15: 85.35699603 | W15: 86.21056599 | X15: 87.07267165 | Y15: 87.94339837 | Z15: 88.82283235 | AA15: 89.71106068 | AB15: 90.60817128 | AC15: 91.514253 | AD15: 92.42939553 | AE15: 93.35368948 | AF15: 94.28722638 | AG15: 95.23009864 | AH15: 96.18239963 | AI15: 97.14422362 | AJ15: 98.11566586 | AK15: 99.09682252 | AL15: 100.0877907 | AM15: 101.0886686 | AN15: 0 | AO15: 0 | AP15: 0 | AQ15: 0 | AR15: 0 | AS15: 0 | AT15: 0 | AU15: 0 | AV15: 0 | AW15: 0 | AX15: 0 | AY15: 0 | AZ15: 0 | BA15: 0 | BB15: 0 | BC15: 0 | BD15: 0 | BE15: 0 | BF15: 0 | BG15: 0 | BH15: 0 | BI15: 0 | BJ15: 0 | BK15: 0 | BL15: 0 | BM15: 0 | BN15: 0 | BO15: 0 | BP15: 0 | BQ15: 0 | BR15: 0 | BS15: 0 | BT15: 0 | BU15: 0 | BV15: =BV14-BV12 -> 0 | BW15: 0 | BX15: 0 | BY15: 0 | BZ15: 0 | CA15: 0 | CB15: 0 | CC15: 0 | CD15: 0 | CE15: 0 | CF15: 0 | CG15: 0 | CH15: 0 | CI15: 0 | CJ15: 0 | CK15: 0 | CL15: 0 | CM15: 0 | CN15: 0 | CO15: 0 | CP15: 0 | CQ15: 0 | CR15: 0 | CS15: 0 | CT15: 0 | CU15: 0 | CV15: 0 | CW15: 0 | CX15: 0 | CY15: 0 | CZ15: 0 | DA15: 0 | DB15: 0 | DC15: 0 | DD15: 0 | DE15: 0 | DF15: 0 | DG15: 0 | DH15: 0 | DI15: 0 | DJ15: 0 | DK15: 0 | DL15: 0 | DM15: 0 | DN15: 0 | DO15: 0 | DP15: 0 | DQ15: 0 | DR15: 0 | DS15: 0 | DT15: 0 | DU15: 0 | DV15: 0 | DW15: 0 | DX15: 0
C16: PIRR | E16: % p.a. | F16: =IRR(I15:DX15) -> 0.07363497442
C18: Opening Balance | E18: Euro | I18: =H21 -> 0 | J18: =I21 -> 0 | K18: 75.75 | L18: 157.8353493 | M18: 246.7301262 | N18: 342.9433935 | O18: 447.0217753 | P18: 559.5522236 | Q18: 681.1649886 | R18: 812.5368081 | S18: 954.3943306 | T18: 1107.517792 | U18: 1272.744962 | V18: 1450.975382 | W18: 1643.174914 | X18: 1850.380622 | Y18: 2073.706024 | Z18: 2314.346712 | AA18: 2573.586405 | AB18: 2852.803435 | AC18: 3153.477715 | AD18: 3477.198218 | AE18: 3825.671016 | AF18: 4200.727893 | AG18: 4604.33561 | AH18: 5038.605843 | AI18: 5505.805855 | AJ18: 6008.369952 | AK18: 6548.911786 | AL18: 7130.23756 | AM18: 7755.360211 | AN18: 8427.514631 | AO18: 8427.514631 | AP18: 8427.514631 | AQ18: 8427.514631 | AR18: 8427.514631 | AS18: 8427.514631 | AT18: 8427.514631 | AU18: 8427.514631 | AV18: 8427.514631 | AW18: 8427.514631 | AX18: 8427.514631 | AY18: 8427.514631 | AZ18: 8427.514631 | BA18: 8427.514631 | BB18: 8427.514631 | BC18: 8427.514631 | BD18: 8427.514631 | BE18: 8427.514631 | BF18: 8427.514631 | BG18: 8427.514631 | BH18: 8427.514631 | BI18: 8427.514631 | BJ18: 8427.514631 | BK18: 8427.514631 | BL18: 8427.514631 | BM18: 8427.514631 | BN18: 8427.514631 | BO18: 8427.514631 | BP18: 8427.514631 | BQ18: 8427.514631 | BR18: 8427.514631 | BS18: 8427.514631 | BT18: 8427.514631 | BU18: 8427.514631 | BV18: =BU21 -> 8427.514631 | BW18: 8427.514631 | BX18: 8427.514631 | BY18: 8427.514631 | BZ18: 8427.514631 | CA18: 8427.514631 | CB18: 8427.514631 | CC18: 8427.514631 | CD18: 8427.514631 | CE18: 8427.514631 | CF18: 8427.514631 | CG18: 8427.514631 | CH18: 8427.514631 | CI18: 8427.514631 | CJ18: 8427.514631 | CK18: 8427.514631 | CL18: 8427.514631 | CM18: 8427.514631 | CN18: 8427.514631 | CO18: 8427.514631 | CP18: 8427.514631 | CQ18: 8427.514631 | CR18: 8427.514631 | CS18: 8427.514631 | CT18: 8427.514631 | CU18: 8427.514631 | CV18: 8427.514631 | CW18: 8427.514631 | CX18: 8427.514631 | CY18: 8427.514631 | CZ18: 8427.514631 | DA18: 8427.514631 | DB18: 8427.514631 | DC18: 8427.514631 | DD18: 8427.514631 | DE18: 8427.514631 | DF18: 8427.514631 | DG18: 8427.514631 | DH18: 8427.514631 | DI18: 8427.514631 | DJ18: 8427.514631 | DK18: 8427.514631 | DL18: 8427.514631 | DM18: 8427.514631 | DN18: 8427.514631 | DO18: 8427.514631 | DP18: 8427.514631 | DQ18: 8427.514631 | DR18: 8427.514631 | DS18: 8427.514631 | DT18: 8427.514631 | DU18: 8427.514631 | DV18: 8427.514631 | DW18: 8427.514631 | DX18: 8427.514631
C19: Add: Re-Investment | E19: Euro | F19: =F16 -> 0.07363497442 | I19: =I18*$F$19*I5 -> 0 | J19: =J18*$F$19*J5 -> 0 | K19: 5.577849312 | L19: 11.62220191 | M19: 18.16796653 | N19: 25.25262801 | O19: 32.91643699 | P19: 41.20261367 | Q19: 50.15756651 | R19: 59.83112708 | S19: 70.27680212 | T19: 81.55204429 | U19: 93.71854275 | V19: 106.8425352 | W19: 120.9951427 | X19: 136.2527298 | Y19: 152.69729 | Z19: 170.4168609 | AA19: 189.5059691 | AB19: 210.066108 | AC19: 232.2062508 | AD19: 256.0434019 | AE19: 281.7031874 | AF19: 309.3204909 | AG19: 339.0401349 | AH19: 371.0176124 | AI19: 405.4198733 | AJ19: 442.4261677 | AK19: 482.2289518 | AL19: 525.0348604 | AM19: 571.0657508 | AN19: 0 | AO19: 0 | AP19: 0 | AQ19: 0 | AR19: 0 | AS19: 0 | AT19: 0 | AU19: 0 | AV19: 0 | AW19: 0 | AX19: 0 | AY19: 0 | AZ19: 0 | BA19: 0 | BB19: 0 | BC19: 0 | BD19: 0 | BE19: 0 | BF19: 0 | BG19: 0 | BH19: 0 | BI19: 0 | BJ19: 0 | BK19: 0 | BL19: 0 | BM19: 0 | BN19: 0 | BO19: 0 | BP19: 0 | BQ19: 0 | BR19: 0 | BS19: 0 | BT19: 0 | BU19: 0 | BV19: =BV18*$F$19*BV5 -> 0 | BW19: 0 | BX19: 0 | BY19: 0 | BZ19: 0 | CA19: 0 | CB19: 0 | CC19: 0 | CD19: 0 | CE19: 0 | CF19: 0 | CG19: 0 | CH19: 0 | CI19: 0 | CJ19: 0 | CK19: 0 | CL19: 0 | CM19: 0 | CN19: 0 | CO19: 0 | CP19: 0 | CQ19: 0 | CR19: 0 | CS19: 0 | CT19: 0 | CU19: 0 | CV19: 0 | CW19: 0 | CX19: 0 | CY19: 0 | CZ19: 0 | DA19: 0 | DB19: 0 | DC19: 0 | DD19: 0 | DE19: 0 | DF19: 0 | DG19: 0 | DH19: 0 | DI19: 0 | DJ19: 0 | DK19: 0 | DL19: 0 | DM19: 0 | DN19: 0 | DO19: 0 | DP19: 0 | DQ19: 0 | DR19: 0 | DS19: 0 | DT19: 0 | DU19: 0 | DV19: 0 | DW19: 0 | DX19: 0
C20: Add: Dividends | E20: Euro | I20: =I14 -> 0 | J20: =J14 -> 75.75 | K20: 76.5075 | L20: 77.272575 | M20: 78.04530075 | N20: 78.82575376 | O20: 79.6140113 | P20: 80.41015141 | Q20: 81.21425292 | R20: 82.02639545 | S20: 82.84665941 | T20: 83.675126 | U20: 84.51187726 | V20: 85.35699603 | W20: 86.21056599 | X20: 87.07267165 | Y20: 87.94339837 | Z20: 88.82283235 | AA20: 89.71106068 | AB20: 90.60817128 | AC20: 91.514253 | AD20: 92.42939553 | AE20: 93.35368948 | AF20: 94.28722638 | AG20: 95.23009864 | AH20: 96.18239963 | AI20: 97.14422362 | AJ20: 98.11566586 | AK20: 99.09682252 | AL20: 100.0877907 | AM20: 101.0886686 | AN20: 0 | AO20: 0 | AP20: 0 | AQ20: 0 | AR20: 0 | AS20: 0 | AT20: 0 | AU20: 0 | AV20: 0 | AW20: 0 | AX20: 0 | AY20: 0 | AZ20: 0 | BA20: 0 | BB20: 0 | BC20: 0 | BD20: 0 | BE20: 0 | BF20: 0 | BG20: 0 | BH20: 0 | BI20: 0 | BJ20: 0 | BK20: 0 | BL20: 0 | BM20: 0 | BN20: 0 | BO20: 0 | BP20: 0 | BQ20: 0 | BR20: 0 | BS20: 0 | BT20: 0 | BU20: 0 | BV20: =BV14 -> 0 | BW20: 0 | BX20: 0 | BY20: 0 | BZ20: 0 | CA20: 0 | CB20: 0 | CC20: 0 | CD20: 0 | CE20: 0 | CF20: 0 | CG20: 0 | CH20: 0 | CI20: 0 | CJ20: 0 | CK20: 0 | CL20: 0 | CM20: 0 | CN20: 0 | CO20: 0 | CP20: 0 | CQ20: 0 | CR20: 0 | CS20: 0 | CT20: 0 | CU20: 0 | CV20: 0 | CW20: 0 | CX20: 0 | CY20: 0 | CZ20: 0 | DA20: 0 | DB20: 0 | DC20: 0 | DD20: 0 | DE20: 0 | DF20: 0 | DG20: 0 | DH20: 0 | DI20: 0 | DJ20: 0 | DK20: 0 | DL20: 0 | DM20: 0 | DN20: 0 | DO20: 0 | DP20: 0 | DQ20: 0 | DR20: 0 | DS20: 0 | DT20: 0 | DU20: 0 | DV20: 0 | DW20: 0 | DX20: 0
C21: Closing Balance | E21: Euro | I21: =SUM(I18:I20) -> 0 | J21: =SUM(J18:J20) -> 75.75 | K21: 157.8353493 | L21: 246.7301262 | M21: 342.9433935 | N21: 447.0217753 | O21: 559.5522236 | P21: 681.1649886 | Q21: 812.5368081 | R21: 954.3943306 | S21: 1107.517792 | T21: 1272.744962 | U21: 1450.975382 | V21: 1643.174914 | W21: 1850.380622 | X21: 2073.706024 | Y21: 2314.346712 | Z21: 2573.586405 | AA21: 2852.803435 | AB21: 3153.477715 | AC21: 3477.198218 | AD21: 3825.671016 | AE21: 4200.727893 | AF21: 4604.33561 | AG21: 5038.605843 | AH21: 5505.805855 | AI21: 6008.369952 | AJ21: 6548.911786 | AK21: 7130.23756 | AL21: 7755.360211 | AM21: 8427.514631 | AN21: 8427.514631 | AO21: 8427.514631 | AP21: 8427.514631 | AQ21: 8427.514631 | AR21: 8427.514631 | AS21: 8427.514631 | AT21: 8427.514631 | AU21: 8427.514631 | AV21: 8427.514631 | AW21: 8427.514631 | AX21: 8427.514631 | AY21: 8427.514631 | AZ21: 8427.514631 | BA21: 8427.514631 | BB21: 8427.514631 | BC21: 8427.514631 | BD21: 8427.514631 | BE21: 8427.514631 | BF21: 8427.514631 | BG21: 8427.514631 | BH21: 8427.514631 | BI21: 8427.514631 | BJ21: 8427.514631 | BK21: 8427.514631 | BL21: 8427.514631 | BM21: 8427.514631 | BN21: 8427.514631 | BO21: 8427.514631 | BP21: 8427.514631 | BQ21: 8427.514631 | BR21: 8427.514631 | BS21: 8427.514631 | BT21: 8427.514631 | BU21: 8427.514631 | BV21: =SUM(BV18:BV20) -> 8427.514631 | BW21: 8427.514631 | BX21: 8427.514631 | BY21: 8427.514631 | BZ21: 8427.514631 | CA21: 8427.514631 | CB21: 8427.514631 | CC21: 8427.514631 | CD21: 8427.514631 | CE21: 8427.514631 | CF21: 8427.514631 | CG21: 8427.514631 | CH21: 8427.514631 | CI21: 8427.514631 | CJ21: 8427.514631 | CK21: 8427.514631 | CL21: 8427.514631 | CM21: 8427.514631 | CN21: 8427.514631 | CO21: 8427.514631 | CP21: 8427.514631 | CQ21: 8427.514631 | CR21: 8427.514631 | CS21: 8427.514631 | CT21: 8427.514631 | CU21: 8427.514631 | CV21: 8427.514631 | CW21: 8427.514631 | CX21: 8427.514631 | CY21: 8427.514631 | CZ21: 8427.514631 | DA21: 8427.514631 | DB21: 8427.514631 | DC21: 8427.514631 | DD21: 8427.514631 | DE21: 8427.514631 | DF21: 8427.514631 | DG21: 8427.514631 | DH21: 8427.514631 | DI21: 8427.514631 | DJ21: 8427.514631 | DK21: 8427.514631 | DL21: 8427.514631 | DM21: 8427.514631 | DN21: 8427.514631 | DO21: 8427.514631 | DP21: 8427.514631 | DQ21: 8427.514631 | DR21: 8427.514631 | DS21: 8427.514631 | DT21: 8427.514631 | DU21: 8427.514631 | DV21: 8427.514631 | DW21: 8427.514631 | DX21: 8427.514631
C23: Ending Balance | E23: Euro
C24: Investment | E24: Euro
C25: Growth Ratio | E25: x
C26: Annual Growth | E26: % p.a.
B28: Debt Structuring
C30: Senior Debt
D31: Tenure of Debt | E31: Years | F31: 21
D32: Interest Rate | E32: % p.a. | F32: 0.045
D33: DSCR for Sizing | E33: x | F33: 1.75
D35: Flag for Tenure | E35: Flag | F35: =F31 -> 21 | I35: =AND(NOT(I4),I3<=$F$35) -> FALSE | J35: TRUE | K35: TRUE | L35: TRUE | M35: TRUE | N35: TRUE | O35: TRUE | P35: TRUE | Q35: TRUE | R35: TRUE | S35: TRUE | T35: TRUE | U35: TRUE | V35: TRUE | W35: TRUE | X35: TRUE | Y35: TRUE | Z35: TRUE | AA35: TRUE | AB35: TRUE | AC35: TRUE | AD35: FALSE | AE35: FALSE | AF35: FALSE | AG35: FALSE | AH35: FALSE | AI35: FALSE | AJ35: FALSE | AK35: FALSE | AL35: FALSE | AM35: FALSE | AN35: FALSE | AO35: =AND(NOT(AO4),AO3<=$F$35) -> FALSE | AP35: FALSE | AQ35: FALSE | AR35: FALSE | AS35: FALSE | AT35: FALSE | AU35: FALSE | AV35: FALSE | AW35: FALSE | AX35: FALSE | AY35: FALSE | AZ35: FALSE | BA35: FALSE | BB35: FALSE | BC35: FALSE | BD35: FALSE | BE35: FALSE | BF35: FALSE | BG35: FALSE | BH35: FALSE | BI35: FALSE | BJ35: FALSE | BK35: FALSE | BL35: FALSE | BM35: FALSE | BN35: FALSE | BO35: FALSE | BP35: FALSE | BQ35: FALSE | BR35: FALSE | BS35: FALSE | BT35: FALSE | BU35: =AND(NOT(BU4),BU3<=$F$35) -> FALSE | BV35: FALSE | BW35: FALSE | BX35: FALSE | BY35: FALSE | BZ35: FALSE | CA35: FALSE | CB35: FALSE | CC35: FALSE | CD35: FALSE | CE35: FALSE | CF35: FALSE | CG35: FALSE | CH35: FALSE | CI35: FALSE | CJ35: FALSE | CK35: FALSE | CL35: FALSE | CM35: FALSE | CN35: FALSE | CO35: FALSE | CP35: FALSE | CQ35: FALSE | CR35: FALSE | CS35: FALSE | CT35: FALSE | CU35: FALSE | CV35: FALSE | CW35: FALSE | CX35: FALSE | CY35: FALSE | CZ35: FALSE | DA35: =AND(NOT(DA4),DA3<=$F$35) -> FALSE | DB35: FALSE | DC35: FALSE | DD35: FALSE | DE35: FALSE | DF35: FALSE | DG35: FALSE | DH35: FALSE | DI35: FALSE | DJ35: FALSE | DK35: FALSE | DL35: FALSE | DM35: FALSE | DN35: FALSE | DO35: FALSE | DP35: FALSE | DQ35: FALSE | DR35: FALSE | DS35: FALSE | DT35: FALSE | DU35: FALSE | DV35: FALSE | DW35: FALSE | DX35: FALSE
D36: CFADS for Tenure | E36: Euro | I36: =IF(I35,I14) -> FALSE | J36: 75.75 | K36: 76.5075 | L36: 77.272575 | M36: 78.04530075 | N36: 78.82575376 | O36: 79.6140113 | P36: 80.41015141 | Q36: 81.21425292 | R36: 82.02639545 | S36: 82.84665941 | T36: 83.675126 | U36: 84.51187726 | V36: 85.35699603 | W36: 86.21056599 | X36: 87.07267165 | Y36: 87.94339837 | Z36: 88.82283235 | AA36: 89.71106068 | AB36: 90.60817128 | AC36: 91.514253 | AD36: FALSE | AE36: FALSE | AF36: FALSE | AG36: FALSE | AH36: FALSE | AI36: FALSE | AJ36: FALSE | AK36: FALSE | AL36: FALSE | AM36: FALSE | AN36: FALSE | AO36: =IF(AO35,AO14) -> FALSE | AP36: FALSE | AQ36: FALSE | AR36: FALSE | AS36: FALSE | AT36: FALSE | AU36: FALSE | AV36: FALSE | AW36: FALSE | AX36: FALSE | AY36: FALSE | AZ36: FALSE | BA36: FALSE | BB36: FALSE | BC36: FALSE | BD36: FALSE | BE36: FALSE | BF36: FALSE | BG36: FALSE | BH36: FALSE | BI36: FALSE | BJ36: FALSE | BK36: FALSE | BL36: FALSE | BM36: FALSE | BN36: FALSE | BO36: FALSE | BP36: FALSE | BQ36: FALSE | BR36: FALSE | BS36: FALSE | BT36: FALSE | BU36: =IF(BU35,BU14) -> FALSE | BV36: FALSE | BW36: FALSE | BX36: FALSE | BY36: FALSE | BZ36: FALSE | CA36: FALSE | CB36: FALSE | CC36: FALSE | CD36: FALSE | CE36: FALSE | CF36: FALSE | CG36: FALSE | CH36: FALSE | CI36: FALSE | CJ36: FALSE | CK36: FALSE | CL36: FALSE | CM36: FALSE | CN36: FALSE | CO36: FALSE | CP36: FALSE | CQ36: FALSE | CR36: FALSE | CS36: FALSE | CT36: FALSE | CU36: FALSE | CV36: FALSE | CW36: FALSE | CX36: FALSE | CY36: FALSE | CZ36: FALSE | DA36: =IF(DA35,DA14) -> FALSE | DB36: FALSE | DC36: FALSE | DD36: FALSE | DE36: FALSE | DF36: FALSE | DG36: FALSE | DH36: FALSE | DI36: FALSE | DJ36: FALSE | DK36: FALSE | DL36: FALSE | DM36: FALSE | DN36: FALSE | DO36: FALSE | DP36: FALSE | DQ36: FALSE | DR36: FALSE | DS36: FALSE | DT36: FALSE | DU36: FALSE | DV36: FALSE | DW36: FALSE | DX36: FALSE
D37: Target Debt Service =CFADS/DSCR | E37: Euro | F37: =F33 -> 1.75 | I37: =IF(I35,I36/$F$37) -> FALSE | J37: =IF(J35,J36/$F$37) -> 43.28571429 | K37: 43.71857143 | L37: 44.15575714 | M37: 44.59731471 | N37: 45.04328786 | O37: 45.49372074 | P37: 45.94865795 | Q37: 46.40814453 | R37: 46.87222597 | S37: 47.34094823 | T37: 47.81435771 | U37: 48.29250129 | V37: 48.7754263 | W37: 49.26318057 | X37: 49.75581237 | Y37: 50.2533705 | Z37: 50.7559042 | AA37: 51.26346324 | AB37: 51.77609788 | AC37: 52.29385885 | AD37: FALSE | AE37: FALSE | AF37: FALSE | AG37: FALSE | AH37: FALSE | AI37: FALSE | AJ37: FALSE | AK37: FALSE | AL37: FALSE | AM37: FALSE | AN37: FALSE | AO37: FALSE | AP37: FALSE | AQ37: FALSE | AR37: FALSE | AS37: FALSE | AT37: FALSE | AU37: FALSE | AV37: FALSE | AW37: FALSE | AX37: FALSE | AY37: FALSE | AZ37: FALSE | BA37: FALSE | BB37: FALSE | BC37: FALSE | BD37: FALSE | BE37: FALSE | BF37: FALSE | BG37: FALSE | BH37: FALSE | BI37: FALSE | BJ37: FALSE | BK37: FALSE | BL37: FALSE | BM37: FALSE | BN37: FALSE | BO37: FALSE | BP37: FALSE | BQ37: FALSE | BR37: FALSE | BS37: FALSE | BT37: FALSE | BU37: FALSE | BV37: =IF(BV35,BV36/$F$37) -> FALSE | BW37: FALSE | BX37: FALSE | BY37: FALSE | BZ37: FALSE | CA37: FALSE | CB37: FALSE | CC37: FALSE | CD37: FALSE | CE37: FALSE | CF37: FALSE | CG37: FALSE | CH37: FALSE | CI37: FALSE | CJ37: FALSE | CK37: FALSE | CL37: FALSE | CM37: FALSE | CN37: FALSE | CO37: FALSE | CP37: FALSE | CQ37: FALSE | CR37: FALSE | CS37: FALSE | CT37: FALSE | CU37: FALSE | CV37: FALSE | CW37: FALSE | CX37: FALSE | CY37: FALSE | CZ37: FALSE | DA37: FALSE | DB37: FALSE | DC37: FALSE | DD37: FALSE | DE37: FALSE | DF37: FALSE | DG37: FALSE | DH37: FALSE | DI37: FALSE | DJ37: FALSE | DK37: FALSE | DL37: FALSE | DM37: FALSE | DN37: FALSE | DO37: FALSE | DP37: FALSE | DQ37: FALSE | DR37: FALSE | DS37: FALSE | DT37: FALSE | DU37: FALSE | DV37: FALSE | DW37: FALSE | DX37: FALSE
D38: PV of Debt =Debt | E38: Euro | F38: =NPV(F32,I37:DX37) -> 611.0173244 | G38: =F38/F12 -> 0.6110173244
D40: Opening Balance | E40: Euro | I40: =G43 -> 0 | J40: =I43 -> 611.0173244 | K40: 595.2273897 | L40: 578.2940508 | M40: 560.161526 | N40: 540.7714799 | O40: 520.0629087 | P40: 497.9720188 | Q40: 474.4321017 | R40: 449.3734018 | S40: 422.7229789 | T40: 394.4045647 | U40: 364.3384124 | V40: 332.4411397 | W40: 298.6255646 | X40: 262.8005345 | Y40: 224.8707462 | Z40: 184.7365592 | AA40: 142.2938002 | AB40: 97.43355796 | AC40: 50.0419702 | AD40: 1.278976924e-12 | AE40: 1.336530886e-12 | AF40: 1.396674776e-12 | AG40: 1.459525141e-12 | AH40: 1.525203772e-12 | AI40: 1.593837942e-12 | AJ40: 1.665560649e-12 | AK40: 1.740510878e-12 | AL40: 1.818833868e-12 | AM40: 1.900681392e-12 | AN40: 1.986212055e-12 | AO40: 2.075591597e-12 | AP40: 2.168993219e-12 | AQ40: 2.266597914e-12 | AR40: 2.36859482e-12 | AS40: 2.475181587e-12 | AT40: 2.586564758e-12 | AU40: 2.702960172e-12 | AV40: 2.82459338e-12 | AW40: 2.951700082e-12 | AX40: 3.084526586e-12 | AY40: 3.223330282e-12 | AZ40: 3.368380145e-12 | BA40: 3.519957252e-12 | BB40: 3.678355328e-12 | BC40: 3.843881318e-12 | BD40: 4.016855977e-12 | BE40: 4.197614496e-12 | BF40: 4.386507148e-12 | BG40: 4.58389997e-12 | BH40: 4.790175468e-12 | BI40: 5.005733365e-12 | BJ40: 5.230991366e-12 | BK40: 5.466385977e-12 | BL40: 5.712373346e-12 | BM40: 5.969430147e-12 | BN40: 6.238054504e-12 | BO40: 6.518766956e-12 | BP40: 6.812111469e-12 | BQ40: 7.118656485e-12 | BR40: 7.438996027e-12 | BS40: 7.773750849e-12 | BT40: 8.123569637e-12 | BU40: 8.48913027e-12 | BV40: =BU43 -> 8.871141133e-12 | BW40: 9.270342483e-12 | BX40: 9.687507895e-12 | BY40: 1.012344575e-11 | BZ40: 1.057900081e-11 | CA40: 1.105505585e-11 | CB40: 1.155253336e-11 | CC40: 1.207239736e-11 | CD40: 1.261565524e-11 | CE40: 1.318335973e-11 | CF40: 1.377661091e-11 | CG40: 1.439655841e-11 | CH40: 1.504440353e-11 | CI40: 1.572140169e-11 | CJ40: 1.642886477e-11 | CK40: 1.716816368e-11 | CL40: 1.794073105e-11 | CM40: 1.874806395e-11 | CN40: 1.959172682e-11 | CO40: 2.047335453e-11 | CP40: 2.139465549e-11 | CQ40: 2.235741498e-11 | CR40: 2.336349866e-11 | CS40: 2.44148561e-11 | CT40: 2.551352462e-11 | CU40: 2.666163323e-11 | CV40: 2.786140672e-11 | CW40: 2.911517003e-11 | CX40: 3.042535268e-11 | CY40: 3.179449355e-11 | CZ40: 3.322524576e-11 | DA40: 3.472038182e-11 | DB40: 3.6282799e-11 | DC40: 3.791552495e-11 | DD40: 3.962172358e-11 | DE40: 4.140470114e-11 | DF40: 4.326791269e-11 | DG40: 4.521496876e-11 | DH40: 4.724964235e-11 | DI40: 4.937587626e-11 | DJ40: 5.159779069e-11 | DK40: 5.391969127e-11 | DL40: 5.634607738e-11 | DM40: 5.888165086e-11 | DN40: 6.153132515e-11 | DO40: 6.430023478e-11 | DP40: 6.719374535e-11 | DQ40: 7.021746389e-11 | DR40: 7.337724976e-11 | DS40: 7.6679226e-11 | DT40: 8.012979117e-11 | DU40: 8.373563178e-11 | DV40: 8.750373521e-11 | DW40: 9.144140329e-11 | DX40: 9.555626644e-11
D41: Add: Debt Draws | E41: Euro | F41: =F38 -> 611.0173244 | I41: =$F$41*I4 -> 611.0173244 | J41: 0 | K41: 0 | L41: 0 | M41: 0 | N41: 0 | O41: 0 | P41: 0 | Q41: 0 | R41: 0 | S41: 0 | T41: 0 | U41: 0 | V41: 0 | W41: 0 | X41: 0 | Y41: 0 | Z41: 0 | AA41: 0 | AB41: 0 | AC41: 0 | AD41: 0 | AE41: 0 | AF41: 0 | AG41: 0 | AH41: 0 | AI41: 0 | AJ41: 0 | AK41: 0 | AL41: 0 | AM41: 0 | AN41: 0 | AO41: =$F$41*AO4 -> 0 | AP41: 0 | AQ41: 0 | AR41: 0 | AS41: 0 | AT41: 0 | AU41: 0 | AV41: 0 | AW41: 0 | AX41: 0 | AY41: 0 | AZ41: 0 | BA41: 0 | BB41: 0 | BC41: 0 | BD41: 0 | BE41: 0 | BF41: 0 | BG41: 0 | BH41: 0 | BI41: 0 | BJ41: 0 | BK41: 0 | BL41: 0 | BM41: 0 | BN41: 0 | BO41: 0 | BP41: 0 | BQ41: 0 | BR41: 0 | BS41: 0 | BT41: 0 | BU41: =$F$41*BU4 -> 0 | BV41: 0 | BW41: 0 | BX41: 0 | BY41: 0 | BZ41: 0 | CA41: 0 | CB41: 0 | CC41: 0 | CD41: 0 | CE41: 0 | CF41: 0 | CG41: 0 | CH41: 0 | CI41: 0 | CJ41: 0 | CK41: 0 | CL41: 0 | CM41: 0 | CN41: 0 | CO41: 0 | CP41: 0 | CQ41: 0 | CR41: 0 | CS41: 0 | CT41: 0 | CU41: 0 | CV41: 0 | CW41: 0 | CX41: 0 | CY41: 0 | CZ41: 0 | DA41: =$F$41*DA4 -> 0 | DB41: 0 | DC41: 0 | DD41: 0 | DE41: 0 | DF41: 0 | DG41: 0 | DH41: 0 | DI41: 0 | DJ41: 0 | DK41: 0 | DL41: 0 | DM41: 0 | DN41: 0 | DO41: 0 | DP41: 0 | DQ41: 0 | DR41: 0 | DS41: 0 | DT41: 0 | DU41: 0 | DV41: 0 | DW41: 0 | DX41: 0
D42: Less: Debt Repayment =DS - Int | E42: Euro | I42: =I37-I44 -> 0 | J42: =J37-J44 -> 15.78993469 | K42: 16.93333889 | L42: 18.13252486 | M42: 19.39004605 | N42: 20.70857126 | O42: 22.09088985 | P42: 23.5399171 | Q42: 25.05869995 | R42: 26.65042289 | S42: 28.31841418 | T42: 30.0661523 | U42: 31.89727273 | V42: 33.81557502 | W42: 35.82503016 | X42: 37.92978832 | Y42: 40.13418692 | Z42: 42.44275904 | AA42: 44.86024223 | AB42: 47.39158777 | AC42: 50.0419702 | AD42: -5.75539616e-14 | AE42: -6.014388987e-14 | AF42: -6.285036491e-14 | AG42: -6.567863133e-14 | AH42: -6.863416974e-14 | AI42: -7.172270738e-14 | AJ42: -7.495022921e-14 | AK42: -7.832298953e-14 | AL42: -8.184752406e-14 | AM42: -8.553066264e-14 | AN42: -8.937954246e-14 | AO42: -9.340162187e-14 | AP42: -9.760469485e-14 | AQ42: -1.019969061e-13 | AR42: -1.065867669e-13 | AS42: -1.113831714e-13 | AT42: -1.163954141e-13 | AU42: -1.216332078e-13 | AV42: -1.271067021e-13 | AW42: -1.328265037e-13 | AX42: -1.388036964e-13 | AY42: -1.450498627e-13 | AZ42: -1.515771065e-13 | BA42: -1.583980763e-13 | BB42: -1.655259898e-13 | BC42: -1.729746593e-13 | BD42: -1.80758519e-13 | BE42: -1.888926523e-13 | BF42: -1.973928217e-13 | BG42: -2.062754986e-13 | BH42: -2.155578961e-13 | BI42: -2.252580014e-13 | BJ42: -2.353946115e-13 | BK42: -2.45987369e-13 | BL42: -2.570568006e-13 | BM42: -2.686243566e-13 | BN42: -2.807124527e-13 | BO42: -2.93344513e-13 | BP42: -3.065450161e-13 | BQ42: -3.203395418e-13 | BR42: -3.347548212e-13 | BS42: -3.498187882e-13 | BT42: -3.655606337e-13 | BU42: -3.820108622e-13 | BV42: =BV37-BV44 -> -3.99201351e-13 | BW42: -4.171654118e-13 | BX42: -4.359378553e-13 | BY42: -4.555550588e-13 | BZ42: -4.760550364e-13 | CA42: -4.974775131e-13 | CB42: -5.198640011e-13 | CC42: -5.432578812e-13 | CD42: -5.677044859e-13 | CE42: -5.932511877e-13 | CF42: -6.199474912e-13 | CG42: -6.478451283e-13 | CH42: -6.76998159e-13 | CI42: -7.074630762e-13 | CJ42: -7.392989146e-13 | CK42: -7.725673658e-13 | CL42: -8.073328972e-13 | CM42: -8.436628776e-13 | CN42: -8.816277071e-13 | CO42: -9.213009539e-13 | CP42: -9.627594969e-13 | CQ42: -1.006083674e-12 | CR42: -1.05135744e-12 | CS42: -1.098668524e-12 | CT42: -1.148108608e-12 | CU42: -1.199773495e-12 | CV42: -1.253763303e-12 | CW42: -1.310182651e-12 | CX42: -1.36914087e-12 | CY42: -1.43075221e-12 | CZ42: -1.495136059e-12 | DA42: -1.562417182e-12 | DB42: -1.632725955e-12 | DC42: -1.706198623e-12 | DD42: -1.782977561e-12 | DE42: -1.863211551e-12 | DF42: -1.947056071e-12 | DG42: -2.034673594e-12 | DH42: -2.126233906e-12 | DI42: -2.221914432e-12 | DJ42: -2.321900581e-12 | DK42: -2.426386107e-12 | DL42: -2.535573482e-12 | DM42: -2.649674289e-12 | DN42: -2.768909632e-12 | DO42: -2.893510565e-12 | DP42: -3.023718541e-12 | DQ42: -3.159785875e-12 | DR42: -3.301976239e-12 | DS42: -3.45056517e-12 | DT42: -3.605840603e-12 | DU42: -3.76810343e-12 | DV42: -3.937668084e-12 | DW42: -4.114863148e-12 | DX42: -4.30003199e-12
D43: Closing Balance | E43: Euro | I43: =I40+I41-I42 -> 611.0173244 | J43: =J40+J41-J42 -> 595.2273897 | K43: 578.2940508 | L43: 560.161526 | M43: 540.7714799 | N43: 520.0629087 | O43: 497.9720188 | P43: 474.4321017 | Q43: 449.3734018 | R43: 422.7229789 | S43: 394.4045647 | T43: 364.3384124 | U43: 332.4411397 | V43: 298.6255646 | W43: 262.8005345 | X43: 224.8707462 | Y43: 184.7365592 | Z43: 142.2938002 | AA43: 97.43355796 | AB43: 50.0419702 | AC43: 1.278976924e-12 | AD43: 1.336530886e-12 | AE43: 1.396674776e-12 | AF43: 1.459525141e-12 | AG43: 1.525203772e-12 | AH43: 1.593837942e-12 | AI43: 1.665560649e-12 | AJ43: 1.740510878e-12 | AK43: 1.818833868e-12 | AL43: 1.900681392e-12 | AM43: 1.986212055e-12 | AN43: 2.075591597e-12 | AO43: 2.168993219e-12 | AP43: 2.266597914e-12 | AQ43: 2.36859482e-12 | AR43: 2.475181587e-12 | AS43: 2.586564758e-12 | AT43: 2.702960172e-12 | AU43: 2.82459338e-12 | AV43: 2.951700082e-12 | AW43: 3.084526586e-12 | AX43: 3.223330282e-12 | AY43: 3.368380145e-12 | AZ43: 3.519957252e-12 | BA43: 3.678355328e-12 | BB43: 3.843881318e-12 | BC43: 4.016855977e-12 | BD43: 4.197614496e-12 | BE43: 4.386507148e-12 | BF43: 4.58389997e-12 | BG43: 4.790175468e-12 | BH43: 5.005733365e-12 | BI43: 5.230991366e-12 | BJ43: 5.466385977e-12 | BK43: 5.712373346e-12 | BL43: 5.969430147e-12 | BM43: 6.238054504e-12 | BN43: 6.518766956e-12 | BO43: 6.812111469e-12 | BP43: 7.118656485e-12 | BQ43: 7.438996027e-12 | BR43: 7.773750849e-12 | BS43: 8.123569637e-12 | BT43: 8.48913027e-12 | BU43: 8.871141133e-12 | BV43: =BV40+BV41-BV42 -> 9.270342483e-12 | BW43: 9.687507895e-12 | BX43: 1.012344575e-11 | BY43: 1.057900081e-11 | BZ43: 1.105505585e-11 | CA43: 1.155253336e-11 | CB43: 1.207239736e-11 | CC43: 1.261565524e-11 | CD43: 1.318335973e-11 | CE43: 1.377661091e-11 | CF43: 1.439655841e-11 | CG43: 1.504440353e-11 | CH43: 1.572140169e-11 | CI43: 1.642886477e-11 | CJ43: 1.716816368e-11 | CK43: 1.794073105e-11 | CL43: 1.874806395e-11 | CM43: 1.959172682e-11 | CN43: 2.047335453e-11 | CO43: 2.139465549e-11 | CP43: 2.235741498e-11 | CQ43: 2.336349866e-11 | CR43: 2.44148561e-11 | CS43: 2.551352462e-11 | CT43: 2.666163323e-11 | CU43: 2.786140672e-11 | CV43: 2.911517003e-11 | CW43: 3.042535268e-11 | CX43: 3.179449355e-11 | CY43: 3.322524576e-11 | CZ43: 3.472038182e-11 | DA43: 3.6282799e-11 | DB43: 3.791552495e-11 | DC43: 3.962172358e-11 | DD43: 4.140470114e-11 | DE43: 4.326791269e-11 | DF43: 4.521496876e-11 | DG43: 4.724964235e-11 | DH43: 4.937587626e-11 | DI43: 5.159779069e-11 | DJ43: 5.391969127e-11 | DK43: 5.634607738e-11 | DL43: 5.888165086e-11 | DM43: 6.153132515e-11 | DN43: 6.430023478e-11 | DO43: 6.719374535e-11 | DP43: 7.021746389e-11 | DQ43: 7.337724976e-11 | DR43: 7.6679226e-11 | DS43: 8.012979117e-11 | DT43: 8.373563178e-11 | DU43: 8.750373521e-11 | DV43: 9.144140329e-11 | DW43: 9.555626644e-11 | DX43: 9.985629843e-11
D44: Interest Opening Balance x Int Rate | E44: Euro | F44: =F32 -> 0.045 | I44: =I40*$F$44 -> 0 | J44: =J40*$F$44 -> 27.4957796 | K44: 26.78523254 | L44: 26.02323229 | M44: 25.20726867 | N44: 24.3347166 | O44: 23.40283089 | P44: 22.40874085 | Q44: 21.34944458 | R44: 20.22180308 | S44: 19.02253405 | T44: 17.74820541 | U44: 16.39522856 | V44: 14.95985128 | W44: 13.43815041 | X44: 11.82602405 | Y44: 10.11918358 | Z44: 8.313145166 | AA44: 6.403221009 | AB44: 4.384510108 | AC44: 2.251888659 | AD44: 5.75539616e-14 | AE44: 6.014388987e-14 | AF44: 6.285036491e-14 | AG44: 6.567863133e-14 | AH44: 6.863416974e-14 | AI44: 7.172270738e-14 | AJ44: 7.495022921e-14 | AK44: 7.832298953e-14 | AL44: 8.184752406e-14 | AM44: 8.553066264e-14 | AN44: 8.937954246e-14 | AO44: 9.340162187e-14 | AP44: 9.760469485e-14 | AQ44: 1.019969061e-13 | AR44: 1.065867669e-13 | AS44: 1.113831714e-13 | AT44: 1.163954141e-13 | AU44: 1.216332078e-13 | AV44: 1.271067021e-13 | AW44: 1.328265037e-13 | AX44: 1.388036964e-13 | AY44: 1.450498627e-13 | AZ44: 1.515771065e-13 | BA44: 1.583980763e-13 | BB44: 1.655259898e-13 | BC44: 1.729746593e-13 | BD44: 1.80758519e-13 | BE44: 1.888926523e-13 | BF44: 1.973928217e-13 | BG44: 2.062754986e-13 | BH44: 2.155578961e-13 | BI44: 2.252580014e-13 | BJ44: 2.353946115e-13 | BK44: 2.45987369e-13 | BL44: 2.570568006e-13 | BM44: 2.686243566e-13 | BN44: 2.807124527e-13 | BO44: 2.93344513e-13 | BP44: 3.065450161e-13 | BQ44: 3.203395418e-13 | BR44: 3.347548212e-13 | BS44: 3.498187882e-13 | BT44: 3.655606337e-13 | BU44: 3.820108622e-13 | BV44: =BV40*$F$44 -> 3.99201351e-13 | BW44: 4.171654118e-13 | BX44: 4.359378553e-13 | BY44: 4.555550588e-13 | BZ44: 4.760550364e-13 | CA44: 4.974775131e-13 | CB44: 5.198640011e-13 | CC44: 5.432578812e-13 | CD44: 5.677044859e-13 | CE44: 5.932511877e-13 | CF44: 6.199474912e-13 | CG44: 6.478451283e-13 | CH44: 6.76998159e-13 | CI44: 7.074630762e-13 | CJ44: 7.392989146e-13 | CK44: 7.725673658e-13 | CL44: 8.073328972e-13 | CM44: 8.436628776e-13 | CN44: 8.816277071e-13 | CO44: 9.213009539e-13 | CP44: 9.627594969e-13 | CQ44: 1.006083674e-12 | CR44: 1.05135744e-12 | CS44: 1.098668524e-12 | CT44: 1.148108608e-12 | CU44: 1.199773495e-12 | CV44: 1.253763303e-12 | CW44: 1.310182651e-12 | CX44: 1.36914087e-12 | CY44: 1.43075221e-12 | CZ44: 1.495136059e-12 | DA44: 1.562417182e-12 | DB44: 1.632725955e-12 | DC44: 1.706198623e-12 | DD44: 1.782977561e-12 | DE44: 1.863211551e-12 | DF44: 1.947056071e-12 | DG44: 2.034673594e-12 | DH44: 2.126233906e-12 | DI44: 2.221914432e-12 | DJ44: 2.321900581e-12 | DK44: 2.426386107e-12 | DL44: 2.535573482e-12 | DM44: 2.649674289e-12 | DN44: 2.768909632e-12 | DO44: 2.893510565e-12 | DP44: 3.023718541e-12 | DQ44: 3.159785875e-12 | DR44: 3.301976239e-12 | DS44: 3.45056517e-12 | DT44: 3.605840603e-12 | DU44: 3.76810343e-12 | DV44: 3.937668084e-12 | DW44: 4.114863148e-12 | DX44: 4.30003199e-12
C46: Subordinated Debt
D47: Aggregate DSCR =CFADS/(DSsen + DSsub)
D48: Aggregate DSCR * (DSsen + DSsub) =CFADS
D49: (DSsen + DSsub) =CFADS/Aggregate DSCR
D50: DSsub =CFADS/Aggregate DSCR - DSsen
D52: Assumptions
D53: Tenure | E53: Years | F53: 24
D54: Aggregate DSCR | E54: x | F54: 1.2
D55: Interest Rate | E55: % | F55: 0.065
D57: Debt Tenor Flag over Sub-Debt Tenor | F57: =F53 -> 24 | I57: =(AND(I5,(I3<=$F$57)*1))*1 -> 0 | J57: 1 | K57: 1 | L57: 1 | M57: 1 | N57: 1 | O57: 1 | P57: 1 | Q57: 1 | R57: 1 | S57: 1 | T57: 1 | U57: 1 | V57: 1 | W57: 1 | X57: 1 | Y57: 1 | Z57: 1 | AA57: 1 | AB57: 1 | AC57: 1 | AD57: 1 | AE57: 1 | AF57: 1 | AG57: 0 | AH57: 0 | AI57: 0 | AJ57: 0 | AK57: 0 | AL57: 0 | AM57: 0 | AN57: 0 | AO57: =(AND(AO5,(AO3<=$F$57)*1))*1 -> 0 | AP57: 0 | AQ57: 0 | AR57: 0 | AS57: 0 | AT57: 0 | AU57: 0 | AV57: 0 | AW57: 0 | AX57: 0 | AY57: 0 | AZ57: 0 | BA57: 0 | BB57: 0 | BC57: 0 | BD57: 0 | BE57: 0 | BF57: 0 | BG57: 0 | BH57: 0 | BI57: 0 | BJ57: 0 | BK57: 0 | BL57: 0 | BM57: 0 | BN57: 0 | BO57: 0 | BP57: 0 | BQ57: 0 | BR57: 0 | BS57: 0 | BT57: 0 | BU57: =(AND(BU5,(BU3<=$F$57)*1))*1 -> 0 | BV57: 0 | BW57: 0 | BX57: 0 | BY57: 0 | BZ57: 0 | CA57: 0 | CB57: 0 | CC57: 0 | CD57: 0 | CE57: 0 | CF57: 0 | CG57: 0 | CH57: 0 | CI57: 0 | CJ57: 0 | CK57: 0 | CL57: 0 | CM57: 0 | CN57: 0 | CO57: 0 | CP57: 0 | CQ57: 0 | CR57: 0 | CS57: 0 | CT57: 0 | CU57: 0 | CV57: 0 | CW57: 0 | CX57: 0 | CY57: 0 | CZ57: 0 | DA57: =(AND(DA5,(DA3<=$F$57)*1))*1 -> 0 | DB57: 0 | DC57: 0 | DD57: 0 | DE57: 0 | DF57: 0 | DG57: 0 | DH57: 0 | DI57: 0 | DJ57: 0 | DK57: 0 | DL57: 0 | DM57: 0 | DN57: 0 | DO57: 0 | DP57: 0 | DQ57: 0 | DR57: 0 | DS57: 0 | DT57: 0 | DU57: 0 | DV57: 0 | DW57: 0 | DX57: 0
D58: CFADS over Sub Debt Tenor | I58: =IF(I57,I14) -> FALSE | J58: 75.75 | K58: 76.5075 | L58: 77.272575 | M58: 78.04530075 | N58: 78.82575376 | O58: 79.6140113 | P58: 80.41015141 | Q58: 81.21425292 | R58: 82.02639545 | S58: 82.84665941 | T58: 83.675126 | U58: 84.51187726 | V58: 85.35699603 | W58: 86.21056599 | X58: 87.07267165 | Y58: 87.94339837 | Z58: 88.82283235 | AA58: 89.71106068 | AB58: 90.60817128 | AC58: 91.514253 | AD58: 92.42939553 | AE58: 93.35368948 | AF58: 94.28722638 | AG58: FALSE | AH58: FALSE | AI58: FALSE | AJ58: FALSE | AK58: FALSE | AL58: FALSE | AM58: FALSE | AN58: FALSE | AO58: =IF(AO57,AO14) -> FALSE | AP58: FALSE | AQ58: FALSE | AR58: FALSE | AS58: FALSE | AT58: FALSE | AU58: FALSE | AV58: FALSE | AW58: FALSE | AX58: FALSE | AY58: FALSE | AZ58: FALSE | BA58: FALSE | BB58: FALSE | BC58: FALSE | BD58: FALSE | BE58: FALSE | BF58: FALSE | BG58: FALSE | BH58: FALSE | BI58: FALSE | BJ58: FALSE | BK58: FALSE | BL58: FALSE | BM58: FALSE | BN58: FALSE | BO58: FALSE | BP58: FALSE | BQ58: FALSE | BR58: FALSE | BS58: FALSE | BT58: FALSE | BU58: =IF(BU57,BU14) -> FALSE | BV58: FALSE | BW58: FALSE | BX58: FALSE | BY58: FALSE | BZ58: FALSE | CA58: FALSE | CB58: FALSE | CC58: FALSE | CD58: FALSE | CE58: FALSE | CF58: FALSE | CG58: FALSE | CH58: FALSE | CI58: FALSE | CJ58: FALSE | CK58: FALSE | CL58: FALSE | CM58: FALSE | CN58: FALSE | CO58: FALSE | CP58: FALSE | CQ58: FALSE | CR58: FALSE | CS58: FALSE | CT58: FALSE | CU58: FALSE | CV58: FALSE | CW58: FALSE | CX58: FALSE | CY58: FALSE | CZ58: FALSE | DA58: =IF(DA57,DA14) -> FALSE | DB58: FALSE | DC58: FALSE | DD58: FALSE | DE58: FALSE | DF58: FALSE | DG58: FALSE | DH58: FALSE | DI58: FALSE | DJ58: FALSE | DK58: FALSE | DL58: FALSE | DM58: FALSE | DN58: FALSE | DO58: FALSE | DP58: FALSE | DQ58: FALSE | DR58: FALSE | DS58: FALSE | DT58: FALSE | DU58: FALSE | DV58: FALSE | DW58: FALSE | DX58: FALSE
D59: Total Debt Service with Senior | F59: =F54 -> 1.2 | I59: =IF(I57,I58/$F$59) -> FALSE | J59: =IF(J57,J58/$F$59) -> 63.125 | K59: 63.75625 | L59: 64.3938125 | M59: 65.03775063 | N59: 65.68812813 | O59: 66.34500941 | P59: 67.00845951 | Q59: 67.6785441 | R59: 68.35532954 | S59: 69.03888284 | T59: 69.72927167 | U59: 70.42656438 | V59: 71.13083003 | W59: 71.84213833 | X59: 72.56055971 | Y59: 73.28616531 | Z59: 74.01902696 | AA59: 74.75921723 | AB59: 75.5068094 | AC59: 76.2618775 | AD59: 77.02449627 | AE59: 77.79474123 | AF59: 78.57268865 | AG59: FALSE | AH59: FALSE | AI59: FALSE | AJ59: FALSE | AK59: FALSE | AL59: FALSE | AM59: FALSE | AN59: FALSE | AO59: FALSE | AP59: FALSE | AQ59: FALSE | AR59: FALSE | AS59: FALSE | AT59: FALSE | AU59: FALSE | AV59: FALSE | AW59: FALSE | AX59: FALSE | AY59: FALSE | AZ59: FALSE | BA59: FALSE | BB59: FALSE | BC59: FALSE | BD59: FALSE | BE59: FALSE | BF59: FALSE | BG59: FALSE | BH59: FALSE | BI59: FALSE | BJ59: FALSE | BK59: FALSE | BL59: FALSE | BM59: FALSE | BN59: FALSE | BO59: FALSE | BP59: FALSE | BQ59: FALSE | BR59: FALSE | BS59: FALSE | BT59: FALSE | BU59: FALSE | BV59: =IF(BV57,BV58/$F$59) -> FALSE | BW59: FALSE | BX59: FALSE | BY59: FALSE | BZ59: FALSE | CA59: FALSE | CB59: FALSE | CC59: FALSE | CD59: FALSE | CE59: FALSE | CF59: FALSE | CG59: FALSE | CH59: FALSE | CI59: FALSE | CJ59: FALSE | CK59: FALSE | CL59: FALSE | CM59: FALSE | CN59: FALSE | CO59: FALSE | CP59: FALSE | CQ59: FALSE | CR59: FALSE | CS59: FALSE | CT59: FALSE | CU59: FALSE | CV59: FALSE | CW59: FALSE | CX59: FALSE | CY59: FALSE | CZ59: FALSE | DA59: FALSE | DB59: FALSE | DC59: FALSE | DD59: FALSE | DE59: FALSE | DF59: FALSE | DG59: FALSE | DH59: FALSE | DI59: FALSE | DJ59: FALSE | DK59: FALSE | DL59: FALSE | DM59: FALSE | DN59: FALSE | DO59: FALSE | DP59: FALSE | DQ59: FALSE | DR59: FALSE | DS59: FALSE | DT59: FALSE | DU59: FALSE | DV59: FALSE | DW59: FALSE | DX59: FALSE
D60: Less: Senior Debt Service | I60: =I37 -> FALSE | J60: 43.28571429 | K60: 43.71857143 | L60: 44.15575714 | M60: 44.59731471 | N60: 45.04328786 | O60: 45.49372074 | P60: 45.94865795 | Q60: 46.40814453 | R60: 46.87222597 | S60: 47.34094823 | T60: 47.81435771 | U60: 48.29250129 | V60: 48.7754263 | W60: 49.26318057 | X60: 49.75581237 | Y60: 50.2533705 | Z60: 50.7559042 | AA60: 51.26346324 | AB60: 51.77609788 | AC60: 52.29385885 | AD60: FALSE | AE60: FALSE | AF60: FALSE | AG60: FALSE | AH60: FALSE | AI60: FALSE | AJ60: FALSE | AK60: FALSE | AL60: FALSE | AM60: FALSE | AN60: FALSE | AO60: =AO37 -> FALSE | AP60: FALSE | AQ60: FALSE | AR60: FALSE | AS60: FALSE | AT60: FALSE | AU60: FALSE | AV60: FALSE | AW60: FALSE | AX60: FALSE | AY60: FALSE | AZ60: FALSE | BA60: FALSE | BB60: FALSE | BC60: FALSE | BD60: FALSE | BE60: FALSE | BF60: FALSE | BG60: FALSE | BH60: FALSE | BI60: FALSE | BJ60: FALSE | BK60: FALSE | BL60: FALSE | BM60: FALSE | BN60: FALSE | BO60: FALSE | BP60: FALSE | BQ60: FALSE | BR60: FALSE | BS60: FALSE | BT60: FALSE | BU60: =BU37 -> FALSE | BV60: FALSE | BW60: FALSE | BX60: FALSE | BY60: FALSE | BZ60: FALSE | CA60: FALSE | CB60: FALSE | CC60: FALSE | CD60: FALSE | CE60: FALSE | CF60: FALSE | CG60: FALSE | CH60: FALSE | CI60: FALSE | CJ60: FALSE | CK60: FALSE | CL60: FALSE | CM60: FALSE | CN60: FALSE | CO60: FALSE | CP60: FALSE | CQ60: FALSE | CR60: FALSE | CS60: FALSE | CT60: FALSE | CU60: FALSE | CV60: FALSE | CW60: FALSE | CX60: FALSE | CY60: FALSE | CZ60: FALSE | DA60: =DA37 -> FALSE | DB60: FALSE | DC60: FALSE | DD60: FALSE | DE60: FALSE | DF60: FALSE | DG60: FALSE | DH60: FALSE | DI60: FALSE | DJ60: FALSE | DK60: FALSE | DL60: FALSE | DM60: FALSE | DN60: FALSE | DO60: FALSE | DP60: FALSE | DQ60: FALSE | DR60: FALSE | DS60: FALSE | DT60: FALSE | DU60: FALSE | DV60: FALSE | DW60: FALSE | DX60: FALSE
D61: Debt Service on Sub Debt | I61: =IF(I57,I59-I60) -> FALSE | J61: =IF(J57,J59-J60) -> 19.83928571 | K61: 20.03767857 | L61: 20.23805536 | M61: 20.44043591 | N61: 20.64484027 | O61: 20.85128867 | P61: 21.05980156 | Q61: 21.27039957 | R61: 21.48310357 | S61: 21.69793461 | T61: 21.91491395 | U61: 22.13406309 | V61: 22.35540372 | W61: 22.57895776 | X61: 22.80474734 | Y61: 23.03279481 | Z61: 23.26312276 | AA61: 23.49575399 | AB61: 23.73071153 | AC61: 23.96801864 | AD61: 77.02449627 | AE61: 77.79474123 | AF61: 78.57268865 | AG61: FALSE | AH61: FALSE | AI61: FALSE | AJ61: FALSE | AK61: FALSE | AL61: FALSE | AM61: FALSE | AN61: FALSE | AO61: FALSE | AP61: FALSE | AQ61: FALSE | AR61: FALSE | AS61: FALSE | AT61: FALSE | AU61: FALSE | AV61: FALSE | AW61: FALSE | AX61: FALSE | AY61: FALSE | AZ61: FALSE | BA61: FALSE | BB61: FALSE | BC61: FALSE | BD61: FALSE | BE61: FALSE | BF61: FALSE | BG61: FALSE | BH61: FALSE | BI61: FALSE | BJ61: FALSE | BK61: FALSE | BL61: FALSE | BM61: FALSE | BN61: FALSE | BO61: FALSE | BP61: FALSE | BQ61: FALSE | BR61: FALSE | BS61: FALSE | BT61: FALSE | BU61: FALSE | BV61: =IF(BV57,BV59-BV60) -> FALSE | BW61: FALSE | BX61: FALSE | BY61: FALSE | BZ61: FALSE | CA61: FALSE | CB61: FALSE | CC61: FALSE | CD61: FALSE | CE61: FALSE | CF61: FALSE | CG61: FALSE | CH61: FALSE | CI61: FALSE | CJ61: FALSE | CK61: FALSE | CL61: FALSE | CM61: FALSE | CN61: FALSE | CO61: FALSE | CP61: FALSE | CQ61: FALSE | CR61: FALSE | CS61: FALSE | CT61: FALSE | CU61: FALSE | CV61: FALSE | CW61: FALSE | CX61: FALSE | CY61: FALSE | CZ61: FALSE | DA61: FALSE | DB61: FALSE | DC61: FALSE | DD61: FALSE | DE61: FALSE | DF61: FALSE | DG61: FALSE | DH61: FALSE | DI61: FALSE | DJ61: FALSE | DK61: FALSE | DL61: FALSE | DM61: FALSE | DN61: FALSE | DO61: FALSE | DP61: FALSE | DQ61: FALSE | DR61: FALSE | DS61: FALSE | DT61: FALSE | DU61: FALSE | DV61: FALSE | DW61: FALSE | DX61: FALSE
D62: PV of Debt Service | E62: =NPV(F62,I61:DX61) -> 294.2542084 | F62: =F55 -> 0.065
D64: Subordinated Debt - Opening | E64: Euro | I64: =H68 -> 0 | J64: =I68 -> 294.2542084 | K64: 293.5414462 | L64: 292.5839617 | M64: 291.3638638 | N64: 289.8620791 | O64: 288.0582739 | P64: 285.9307731 | Q64: 283.4564718 | R64: 280.6107428 | S64: 277.3673376 | T64: 273.6982799 | U64: 269.5737541 | V64: 264.9619851 | W64: 259.8291104 | X64: 254.1390448 | Y64: 247.8533354 | Z64: 240.9310073 | AA64: 233.3284001 | AB64: 224.9989921 | AC64: 215.893215 | AD64: 205.9582554 | AE64: 142.3210457 | AF64: 73.77717244 | AG64: 8.384404282e-13 | AH64: 8.92939056e-13 | AI64: 9.509800947e-13 | AJ64: 1.012793801e-12 | AK64: 1.078625398e-12 | AL64: 1.148736049e-12 | AM64: 1.223403892e-12 | AN64: 1.302925145e-12 | AO64: 1.387615279e-12 | AP64: 1.477810272e-12 | AQ64: 1.57386794e-12 | AR64: 1.676169356e-12 | AS64: 1.785120364e-12 | AT64: 1.901153188e-12 | AU64: 2.024728145e-12 | AV64: 2.156335475e-12 | AW64: 2.296497281e-12 | AX64: 2.445769604e-12 | AY64: 2.604744628e-12 | AZ64: 2.774053029e-12 | BA64: 2.954366476e-12 | BB64: 3.146400297e-12 | BC64: 3.350916316e-12 | BD64: 3.568725877e-12 | BE64: 3.800693059e-12 | BF64: 4.047738107e-12 | BG64: 4.310841084e-12 | BH64: 4.591045755e-12 | BI64: 4.889463729e-12 | BJ64: 5.207278871e-12 | BK64: 5.545751998e-12 | BL64: 5.906225878e-12 | BM64: 6.29013056e-12 | BN64: 6.698989046e-12 | BO64: 7.134423334e-12 | BP64: 7.598160851e-12 | BQ64: 8.092041306e-12 | BR64: 8.618023991e-12 | BS64: 9.178195551e-12 | BT64: 9.774778262e-12 | BU64: 1.041013885e-11 | BV64: =BU68 -> 1.108679787e-11 | BW64: 1.180743974e-11 | BX64: 1.257492332e-11 | BY64: 1.339229333e-11 | BZ64: 1.42627924e-11 | CA64: 1.518987391e-11 | CB64: 1.617721571e-11 | CC64: 1.722873473e-11 | CD64: 1.834860249e-11 | CE64: 1.954126165e-11 | CF64: 2.081144366e-11 | CG64: 2.21641875e-11 | CH64: 2.360485968e-11 | CI64: 2.513917556e-11 | CJ64: 2.677322197e-11 | CK64: 2.85134814e-11 | CL64: 3.036685769e-11 | CM64: 3.234070344e-11 | CN64: 3.444284917e-11 | CO64: 3.668163436e-11 | CP64: 3.90659406e-11 | CQ64: 4.160522674e-11 | CR64: 4.430956647e-11 | CS64: 4.71896883e-11 | CT64: 5.025701803e-11 | CU64: 5.352372421e-11 | CV64: 5.700276628e-11 | CW64: 6.070794609e-11 | CX64: 6.465396258e-11 | CY64: 6.885647015e-11 | CZ64: 7.333214071e-11 | DA64: 7.809872986e-11 | DB64: 8.31751473e-11 | DC64: 8.858153187e-11 | DD64: 9.433933145e-11 | DE64: 1.00471388e-10 | DF64: 1.070020282e-10 | DG64: 1.1395716e-10 | DH64: 1.213643754e-10 | DI64: 1.292530598e-10 | DJ64: 1.376545087e-10 | DK64: 1.466020518e-10 | DL64: 1.561311852e-10 | DM64: 1.662797122e-10 | DN64: 1.770878935e-10 | DO64: 1.885986066e-10 | DP64: 2.00857516e-10 | DQ64: 2.139132546e-10 | DR64: 2.278176161e-10 | DS64: 2.426257611e-10 | DT64: 2.583964356e-10 | DU64: 2.751922039e-10 | DV64: 2.930796972e-10 | DW64: 3.121298775e-10 | DX64: 3.324183195e-10
D65: Add: Debt Draws | E65: Euro | F65: =E62 -> 294.2542084 | I65: =$F$65*I4 -> 294.2542084 | J65: 0 | K65: 0 | L65: 0 | M65: 0 | N65: 0 | O65: 0 | P65: 0 | Q65: 0 | R65: 0 | S65: 0 | T65: 0 | U65: 0 | V65: 0 | W65: 0 | X65: 0 | Y65: 0 | Z65: 0 | AA65: 0 | AB65: 0 | AC65: 0 | AD65: 0 | AE65: 0 | AF65: 0 | AG65: 0 | AH65: 0 | AI65: 0 | AJ65: 0 | AK65: 0 | AL65: 0 | AM65: 0 | AN65: 0 | AO65: =$F$65*AO4 -> 0 | AP65: 0 | AQ65: 0 | AR65: 0 | AS65: 0 | AT65: 0 | AU65: 0 | AV65: 0 | AW65: 0 | AX65: 0 | AY65: 0 | AZ65: 0 | BA65: 0 | BB65: 0 | BC65: 0 | BD65: 0 | BE65: 0 | BF65: 0 | BG65: 0 | BH65: 0 | BI65: 0 | BJ65: 0 | BK65: 0 | BL65: 0 | BM65: 0 | BN65: 0 | BO65: 0 | BP65: 0 | BQ65: 0 | BR65: 0 | BS65: 0 | BT65: 0 | BU65: =$F$65*BU4 -> 0 | BV65: 0 | BW65: 0 | BX65: 0 | BY65: 0 | BZ65: 0 | CA65: 0 | CB65: 0 | CC65: 0 | CD65: 0 | CE65: 0 | CF65: 0 | CG65: 0 | CH65: 0 | CI65: 0 | CJ65: 0 | CK65: 0 | CL65: 0 | CM65: 0 | CN65: 0 | CO65: 0 | CP65: 0 | CQ65: 0 | CR65: 0 | CS65: 0 | CT65: 0 | CU65: 0 | CV65: 0 | CW65: 0 | CX65: 0 | CY65: 0 | CZ65: 0 | DA65: =$F$65*DA4 -> 0 | DB65: 0 | DC65: 0 | DD65: 0 | DE65: 0 | DF65: 0 | DG65: 0 | DH65: 0 | DI65: 0 | DJ65: 0 | DK65: 0 | DL65: 0 | DM65: 0 | DN65: 0 | DO65: 0 | DP65: 0 | DQ65: 0 | DR65: 0 | DS65: 0 | DT65: 0 | DU65: 0 | DV65: 0 | DW65: 0 | DX65: 0
D66: Add: PIK Interest
D67: Less: Debt Repayment | E67: Euro | I67: =I61-I69 -> 0 | J67: 0.7127621678 | K67: 0.9574845658 | L67: 1.220097848 | M67: 1.501784762 | N67: 1.803805131 | O67: 2.127500867 | P67: 2.47430131 | Q67: 2.845728911 | R67: 3.243405286 | S67: 3.669057665 | T67: 4.124525759 | U67: 4.611769073 | V67: 5.132874694 | W67: 5.690065586 | X67: 6.285709427 | Y67: 6.922328013 | Z67: 7.602607282 | AA67: 8.329407983 | AB67: 9.105777041 | AC67: 9.934959664 | AD67: 63.63720967 | AE67: 68.54387326 | AF67: 73.77717244 | AG67: -5.449862783e-14 | AH67: -5.804103864e-14 | AI67: -6.181370615e-14 | AJ67: -6.583159705e-14 | AK67: -7.011065086e-14 | AL67: -7.466784317e-14 | AM67: -7.952125297e-14 | AN67: -8.469013442e-14 | AO67: =AO61-AO69 -> -9.019499315e-14 | AP67: -9.605766771e-14 | AQ67: -1.023014161e-13 | AR67: -1.089510082e-13 | AS67: -1.160328237e-13 | AT67: -1.235749572e-13 | AU67: -1.316073294e-13 | AV67: -1.401618059e-13 | AW67: -1.492723232e-13 | AX67: -1.589750243e-13 | AY67: -1.693084008e-13 | AZ67: -1.803134469e-13 | BA67: -1.920338209e-13 | BB67: -2.045160193e-13 | BC67: -2.178095605e-13 | BD67: -2.31967182e-13 | BE67: -2.470450488e-13 | BF67: -2.63102977e-13 | BG67: -2.802046705e-13 | BH67: -2.984179741e-13 | BI67: -3.178151424e-13 | BJ67: -3.384731266e-13 | BK67: -3.604738799e-13 | BL67: -3.839046821e-13 | BM67: -4.088584864e-13 | BN67: -4.35434288e-13 | BO67: -4.637375167e-13 | BP67: -4.938804553e-13 | BQ67: -5.259826849e-13 | BR67: -5.601715594e-13 | BS67: -5.965827108e-13 | BT67: -6.35360587e-13 | BU67: =BU61-BU69 -> -6.766590252e-13 | BV67: -7.206418618e-13 | BW67: -7.674835828e-13 | BX67: -8.173700157e-13 | BY67: -8.704990667e-13 | BZ67: -9.27081506e-13 | CA67: -9.873418039e-13 | CB67: -1.051519021e-12 | CC67: -1.119867758e-12 | CD67: -1.192659162e-12 | CE67: -1.270182007e-12 | CF67: -1.352743838e-12 | CG67: -1.440672187e-12 | CH67: -1.534315879e-12 | CI67: -1.634046412e-12 | CJ67: -1.740259428e-12 | CK67: -1.853376291e-12 | CL67: -1.97384575e-12 | CM67: -2.102145724e-12 | CN67: -2.238785196e-12 | CO67: -2.384306234e-12 | CP67: -2.539286139e-12 | CQ67: -2.704339738e-12 | CR67: -2.880121821e-12 | CS67: -3.067329739e-12 | CT67: -3.266706172e-12 | CU67: -3.479042073e-12 | CV67: -3.705179808e-12 | CW67: -3.946016496e-12 | CX67: -4.202507568e-12 | CY67: -4.47567056e-12 | CZ67: -4.766589146e-12 | DA67: =DA61-DA69 -> -5.076417441e-12 | DB67: -5.406384574e-12 | DC67: -5.757799572e-12 | DD67: -6.132056544e-12 | DE67: -6.530640219e-12 | DF67: -6.955131834e-12 | DG67: -7.407215403e-12 | DH67: -7.888684404e-12 | DI67: -8.40144889e-12 | DJ67: -8.947543068e-12 | DK67: -9.529133367e-12 | DL67: -1.014852704e-11 | DM67: -1.080818129e-11 | DN67: -1.151071308e-11 | DO67: -1.225890943e-11 | DP67: -1.305573854e-11 | DQ67: -1.390436155e-11 | DR67: -1.480814505e-11 | DS67: -1.577067447e-11 | DT67: -1.679576832e-11 | DU67: -1.788749326e-11 | DV67: -1.905018032e-11 | DW67: -2.028844204e-11 | DX67: -2.160719077e-11
D68: Closing Balance | E68: Euro | I68: =I64+I65-I67+I66 -> 294.2542084 | J68: 293.5414462 | K68: 292.5839617 | L68: 291.3638638 | M68: 289.8620791 | N68: 288.0582739 | O68: 285.9307731 | P68: 283.4564718 | Q68: 280.6107428 | R68: 277.3673376 | S68: 273.6982799 | T68: 269.5737541 | U68: 264.9619851 | V68: 259.8291104 | W68: 254.1390448 | X68: 247.8533354 | Y68: 240.9310073 | Z68: 233.3284001 | AA68: 224.9989921 | AB68: 215.893215 | AC68: 205.9582554 | AD68: 142.3210457 | AE68: 73.77717244 | AF68: 8.384404282e-13 | AG68: 8.92939056e-13 | AH68: 9.509800947e-13 | AI68: 1.012793801e-12 | AJ68: 1.078625398e-12 | AK68: 1.148736049e-12 | AL68: 1.223403892e-12 | AM68: 1.302925145e-12 | AN68: 1.387615279e-12 | AO68: =AO64+AO65-AO67+AO66 -> 1.477810272e-12 | AP68: 1.57386794e-12 | AQ68: 1.676169356e-12 | AR68: 1.785120364e-12 | AS68: 1.901153188e-12 | AT68: 2.024728145e-12 | AU68: 2.156335475e-12 | AV68: 2.296497281e-12 | AW68: 2.445769604e-12 | AX68: 2.604744628e-12 | AY68: 2.774053029e-12 | AZ68: 2.954366476e-12 | BA68: 3.146400297e-12 | BB68: 3.350916316e-12 | BC68: 3.568725877e-12 | BD68: 3.800693059e-12 | BE68: 4.047738107e-12 | BF68: 4.310841084e-12 | BG68: 4.591045755e-12 | BH68: 4.889463729e-12 | BI68: 5.207278871e-12 | BJ68: 5.545751998e-12 | BK68: 5.906225878e-12 | BL68: 6.29013056e-12 | BM68: 6.698989046e-12 | BN68: 7.134423334e-12 | BO68: 7.598160851e-12 | BP68: 8.092041306e-12 | BQ68: 8.618023991e-12 | BR68: 9.178195551e-12 | BS68: 9.774778262e-12 | BT68: 1.041013885e-11 | BU68: =BU64+BU65-BU67+BU66 -> 1.108679787e-11 | BV68: 1.180743974e-11 | BW68: 1.257492332e-11 | BX68: 1.339229333e-11 | BY68: 1.42627924e-11 | BZ68: 1.518987391e-11 | CA68: 1.617721571e-11 | CB68: 1.722873473e-11 | CC68: 1.834860249e-11 | CD68: 1.954126165e-11 | CE68: 2.081144366e-11 | CF68: 2.21641875e-11 | CG68: 2.360485968e-11 | CH68: 2.513917556e-11 | CI68: 2.677322197e-11 | CJ68: 2.85134814e-11 | CK68: 3.036685769e-11 | CL68: 3.234070344e-11 | CM68: 3.444284917e-11 | CN68: 3.668163436e-11 | CO68: 3.90659406e-11 | CP68: 4.160522674e-11 | CQ68: 4.430956647e-11 | CR68: 4.71896883e-11 | CS68: 5.025701803e-11 | CT68: 5.352372421e-11 | CU68: 5.700276628e-11 | CV68: 6.070794609e-11 | CW68: 6.465396258e-11 | CX68: 6.885647015e-11 | CY68: 7.333214071e-11 | CZ68: 7.809872986e-11 | DA68: =DA64+DA65-DA67+DA66 -> 8.31751473e-11 | DB68: 8.858153187e-11 | DC68: 9.433933145e-11 | DD68: 1.00471388e-10 | DE68: 1.070020282e-10 | DF68: 1.1395716e-10 | DG68: 1.213643754e-10 | DH68: 1.292530598e-10 | DI68: 1.376545087e-10 | DJ68: 1.466020518e-10 | DK68: 1.561311852e-10 | DL68: 1.662797122e-10 | DM68: 1.770878935e-10 | DN68: 1.885986066e-10 | DO68: 2.00857516e-10 | DP68: 2.139132546e-10 | DQ68: 2.278176161e-10 | DR68: 2.426257611e-10 | DS68: 2.583964356e-10 | DT68: 2.751922039e-10 | DU68: 2.930796972e-10 | DV68: 3.121298775e-10 | DW68: 3.324183195e-10 | DX68: 3.540255103e-10
D69: Interest | E69: Euro | F69: =F55 -> 0.065 | I69: =$F$69*I64 -> 0 | J69: 19.12652355 | K69: 19.08019401 | L69: 19.01795751 | M69: 18.93865115 | N69: 18.84103514 | O69: 18.72378781 | P69: 18.58550025 | Q69: 18.42467066 | R69: 18.23969828 | S69: 18.02887694 | T69: 17.79038819 | U69: 17.52229402 | V69: 17.22252903 | W69: 16.88889217 | X69: 16.51903791 | Y69: 16.1104668 | Z69: 15.66051548 | AA69: 15.166346 | AB69: 14.62493449 | AC69: 14.03305898 | AD69: 13.3872866 | AE69: 9.250867971 | AF69: 4.795516208 | AG69: 5.449862783e-14 | AH69: 5.804103864e-14 | AI69: 6.181370615e-14 | AJ69: 6.583159705e-14 | AK69: 7.011065086e-14 | AL69: 7.466784317e-14 | AM69: 7.952125297e-14 | AN69: 8.469013442e-14 | AO69: =$F$69*AO64 -> 9.019499315e-14 | AP69: 9.605766771e-14 | AQ69: 1.023014161e-13 | AR69: 1.089510082e-13 | AS69: 1.160328237e-13 | AT69: 1.235749572e-13 | AU69: 1.316073294e-13 | AV69: 1.401618059e-13 | AW69: 1.492723232e-13 | AX69: 1.589750243e-13 | AY69: 1.693084008e-13 | AZ69: 1.803134469e-13 | BA69: 1.920338209e-13 | BB69: 2.045160193e-13 | BC69: 2.178095605e-13 | BD69: 2.31967182e-13 | BE69: 2.470450488e-13 | BF69: 2.63102977e-13 | BG69: 2.802046705e-13 | BH69: 2.984179741e-13 | BI69: 3.178151424e-13 | BJ69: 3.384731266e-13 | BK69: 3.604738799e-13 | BL69: 3.839046821e-13 | BM69: 4.088584864e-13 | BN69: 4.35434288e-13 | BO69: 4.637375167e-13 | BP69: 4.938804553e-13 | BQ69: 5.259826849e-13 | BR69: 5.601715594e-13 | BS69: 5.965827108e-13 | BT69: 6.35360587e-13 | BU69: =$F$69*BU64 -> 6.766590252e-13 | BV69: 7.206418618e-13 | BW69: 7.674835828e-13 | BX69: 8.173700157e-13 | BY69: 8.704990667e-13 | BZ69: 9.27081506e-13 | CA69: 9.873418039e-13 | CB69: 1.051519021e-12 | CC69: 1.119867758e-12 | CD69: 1.192659162e-12 | CE69: 1.270182007e-12 | CF69: 1.352743838e-12 | CG69: 1.440672187e-12 | CH69: 1.534315879e-12 | CI69: 1.634046412e-12 | CJ69: 1.740259428e-12 | CK69: 1.853376291e-12 | CL69: 1.97384575e-12 | CM69: 2.102145724e-12 | CN69: 2.238785196e-12 | CO69: 2.384306234e-12 | CP69: 2.539286139e-12 | CQ69: 2.704339738e-12 | CR69: 2.880121821e-12 | CS69: 3.067329739e-12 | CT69: 3.266706172e-12 | CU69: 3.479042073e-12 | CV69: 3.705179808e-12 | CW69: 3.946016496e-12 | CX69: 4.202507568e-12 | CY69: 4.47567056e-12 | CZ69: 4.766589146e-12 | DA69: =$F$69*DA64 -> 5.076417441e-12 | DB69: 5.406384574e-12 | DC69: 5.757799572e-12 | DD69: 6.132056544e-12 | DE69: 6.530640219e-12 | DF69: 6.955131834e-12 | DG69: 7.407215403e-12 | DH69: 7.888684404e-12 | DI69: 8.40144889e-12 | DJ69: 8.947543068e-12 | DK69: 9.529133367e-12 | DL69: 1.014852704e-11 | DM69: 1.080818129e-11 | DN69: 1.151071308e-11 | DO69: 1.225890943e-11 | DP69: 1.305573854e-11 | DQ69: 1.390436155e-11 | DR69: 1.480814505e-11 | DS69: 1.577067447e-11 | DT69: 1.679576832e-11 | DU69: 1.788749326e-11 | DV69: 1.905018032e-11 | DW69: 2.028844204e-11 | DX69: 2.160719077e-11
B72: Cash Flow Statement
C73: Cash Before COD - Uses and Source
D74: Uses
D75: Cap Exp | E75: Euro | I75: =I12 -> 1000 | J75: 0 | K75: 0 | L75: 0 | M75: 0 | N75: 0 | O75: 0 | P75: 0 | Q75: 0 | R75: 0 | S75: 0 | T75: 0 | U75: 0 | V75: 0 | W75: 0 | X75: 0 | Y75: 0 | Z75: 0 | AA75: 0 | AB75: 0 | AC75: 0 | AD75: 0 | AE75: 0 | AF75: 0 | AG75: 0 | AH75: 0 | AI75: 0 | AJ75: 0 | AK75: 0 | AL75: 0 | AM75: 0 | AN75: 0 | AO75: =AO12 -> 0 | AP75: 0 | AQ75: 0 | AR75: 0 | AS75: 0 | AT75: 0 | AU75: 0 | AV75: 0 | AW75: 0 | AX75: 0 | AY75: 0 | AZ75: 0 | BA75: 0 | BB75: 0 | BC75: 0 | BD75: 0 | BE75: 0 | BF75: 0 | BG75: 0 | BH75: 0 | BI75: 0 | BJ75: 0 | BK75: 0 | BL75: 0 | BM75: 0 | BN75: 0 | BO75: 0 | BP75: 0 | BQ75: 0 | BR75: 0 | BS75: 0 | BT75: 0 | BU75: =BU12 -> 0 | BV75: 0 | BW75: 0 | BX75: 0 | BY75: 0 | BZ75: 0 | CA75: 0 | CB75: 0 | CC75: 0 | CD75: 0 | CE75: 0 | CF75: 0 | CG75: 0 | CH75: 0 | CI75: 0 | CJ75: 0 | CK75: 0 | CL75: 0 | CM75: 0 | CN75: 0 | CO75: 0 | CP75: 0 | CQ75: 0 | CR75: 0 | CS75: 0 | CT75: 0 | CU75: 0 | CV75: 0 | CW75: 0 | CX75: 0 | CY75: 0 | CZ75: 0 | DA75: =DA12 -> 0 | DB75: 0 | DC75: 0 | DD75: 0 | DE75: 0 | DF75: 0 | DG75: 0 | DH75: 0 | DI75: 0 | DJ75: 0 | DK75: 0 | DL75: 0 | DM75: 0 | DN75: 0 | DO75: 0 | DP75: 0 | DQ75: 0 | DR75: 0 | DS75: 0 | DT75: 0 | DU75: 0 | DV75: 0 | DW75: 0 | DX75: 0
D77: Source
D78: Debt | E78: Euro | G78: =I78/I75 -> 0.6110173244 | I78: =I41 -> 611.0173244 | J78: 0 | K78: 0 | L78: 0 | M78: 0 | N78: 0 | O78: 0 | P78: 0 | Q78: 0 | R78: 0 | S78: 0 | T78: 0 | U78: 0 | V78: 0 | W78: 0 | X78: 0 | Y78: 0 | Z78: 0 | AA78: 0 | AB78: 0 | AC78: 0 | AD78: 0 | AE78: 0 | AF78: 0 | AG78: 0 | AH78: 0 | AI78: 0 | AJ78: 0 | AK78: 0 | AL78: 0 | AM78: 0 | AN78: 0 | AO78: =AO41 -> 0 | AP78: 0 | AQ78: 0 | AR78: 0 | AS78: 0 | AT78: 0 | AU78: 0 | AV78: 0 | AW78: 0 | AX78: 0 | AY78: 0 | AZ78: 0 | BA78: 0 | BB78: 0 | BC78: 0 | BD78: 0 | BE78: 0 | BF78: 0 | BG78: 0 | BH78: 0 | BI78: 0 | BJ78: 0 | BK78: 0 | BL78: 0 | BM78: 0 | BN78: 0 | BO78: 0 | BP78: 0 | BQ78: 0 | BR78: 0 | BS78: 0 | BT78: 0 | BU78: =BU41 -> 0 | BV78: 0 | BW78: 0 | BX78: 0 | BY78: 0 | BZ78: 0 | CA78: 0 | CB78: 0 | CC78: 0 | CD78: 0 | CE78: 0 | CF78: 0 | CG78: 0 | CH78: 0 | CI78: 0 | CJ78: 0 | CK78: 0 | CL78: 0 | CM78: 0 | CN78: 0 | CO78: 0 | CP78: 0 | CQ78: 0 | CR78: 0 | CS78: 0 | CT78: 0 | CU78: 0 | CV78: 0 | CW78: 0 | CX78: 0 | CY78: 0 | CZ78: 0 | DA78: =DA41 -> 0 | DB78: 0 | DC78: 0 | DD78: 0 | DE78: 0 | DF78: 0 | DG78: 0 | DH78: 0 | DI78: 0 | DJ78: 0 | DK78: 0 | DL78: 0 | DM78: 0 | DN78: 0 | DO78: 0 | DP78: 0 | DQ78: 0 | DR78: 0 | DS78: 0 | DT78: 0 | DU78: 0 | DV78: 0 | DW78: 0 | DX78: 0
D79: Subordinated Debt | E79: Euro | I79: =I65 -> 294.2542084
D80: Equity Investment | E80: Euro | I80: =I75-I78-I79 -> 94.72846718 | J80: =J75-J78 -> 0 | K80: 0 | L80: 0 | M80: 0 | N80: 0 | O80: 0 | P80: 0 | Q80: 0 | R80: 0 | S80: 0 | T80: 0 | U80: 0 | V80: 0 | W80: 0 | X80: 0 | Y80: 0 | Z80: 0 | AA80: 0 | AB80: 0 | AC80: 0 | AD80: 0 | AE80: 0 | AF80: 0 | AG80: 0 | AH80: 0 | AI80: 0 | AJ80: 0 | AK80: 0 | AL80: 0 | AM80: 0 | AN80: 0 | AO80: 0 | AP80: 0 | AQ80: 0 | AR80: 0 | AS80: 0 | AT80: 0 | AU80: 0 | AV80: 0 | AW80: 0 | AX80: 0 | AY80: 0 | AZ80: 0 | BA80: 0 | BB80: 0 | BC80: 0 | BD80: 0 | BE80: 0 | BF80: 0 | BG80: 0 | BH80: 0 | BI80: 0 | BJ80: 0 | BK80: 0 | BL80: 0 | BM80: 0 | BN80: 0 | BO80: 0 | BP80: 0 | BQ80: 0 | BR80: 0 | BS80: 0 | BT80: 0 | BU80: 0 | BV80: =BV75-BV78 -> 0 | BW80: 0 | BX80: 0 | BY80: 0 | BZ80: 0 | CA80: 0 | CB80: 0 | CC80: 0 | CD80: 0 | CE80: 0 | CF80: 0 | CG80: 0 | CH80: 0 | CI80: 0 | CJ80: 0 | CK80: 0 | CL80: 0 | CM80: 0 | CN80: 0 | CO80: 0 | CP80: 0 | CQ80: 0 | CR80: 0 | CS80: 0 | CT80: 0 | CU80: 0 | CV80: 0 | CW80: 0 | CX80: 0 | CY80: 0 | CZ80: 0 | DA80: 0 | DB80: 0 | DC80: 0 | DD80: 0 | DE80: 0 | DF80: 0 | DG80: 0 | DH80: 0 | DI80: 0 | DJ80: 0 | DK80: 0 | DL80: 0 | DM80: 0 | DN80: 0 | DO80: 0 | DP80: 0 | DQ80: 0 | DR80: 0 | DS80: 0 | DT80: 0 | DU80: 0 | DV80: 0 | DW80: 0 | DX80: 0
D81: Total | I81: =SUM(I78:I80) -> 1000 | J81: =SUM(J78:J80) -> 0 | K81: 0 | L81: 0 | M81: 0 | N81: 0 | O81: 0 | P81: 0 | Q81: 0 | R81: 0 | S81: 0 | T81: 0 | U81: 0 | V81: 0 | W81: 0 | X81: 0 | Y81: 0 | Z81: 0 | AA81: 0 | AB81: 0 | AC81: 0 | AD81: 0 | AE81: 0 | AF81: 0 | AG81: 0 | AH81: 0 | AI81: 0 | AJ81: 0 | AK81: 0 | AL81: 0 | AM81: 0 | AN81: 0 | AO81: 0 | AP81: 0 | AQ81: 0 | AR81: 0 | AS81: 0 | AT81: 0 | AU81: 0 | AV81: 0 | AW81: 0 | AX81: 0 | AY81: 0 | AZ81: 0 | BA81: 0 | BB81: 0 | BC81: 0 | BD81: 0 | BE81: 0 | BF81: 0 | BG81: 0 | BH81: 0 | BI81: 0 | BJ81: 0 | BK81: 0 | BL81: 0 | BM81: 0 | BN81: 0 | BO81: 0 | BP81: 0 | BQ81: 0 | BR81: 0 | BS81: 0 | BT81: 0 | BU81: 0 | BV81: =SUM(BV78:BV80) -> 0 | BW81: 0 | BX81: 0 | BY81: 0 | BZ81: 0 | CA81: 0 | CB81: 0 | CC81: 0 | CD81: 0 | CE81: 0 | CF81: 0 | CG81: 0 | CH81: 0 | CI81: 0 | CJ81: 0 | CK81: 0 | CL81: 0 | CM81: 0 | CN81: 0 | CO81: 0 | CP81: 0 | CQ81: 0 | CR81: 0 | CS81: 0 | CT81: 0 | CU81: 0 | CV81: 0 | CW81: 0 | CX81: 0 | CY81: 0 | CZ81: 0 | DA81: 0 | DB81: 0 | DC81: 0 | DD81: 0 | DE81: 0 | DF81: 0 | DG81: 0 | DH81: 0 | DI81: 0 | DJ81: 0 | DK81: 0 | DL81: 0 | DM81: 0 | DN81: 0 | DO81: 0 | DP81: 0 | DQ81: 0 | DR81: 0 | DS81: 0 | DT81: 0 | DU81: 0 | DV81: 0 | DW81: 0 | DX81: 0
C83: Cash Flow After
D84: EBITDA | E84: Euro | I84: =I14 -> 0 | J84: 75.75 | K84: 76.5075 | L84: 77.272575 | M84: 78.04530075 | N84: 78.82575376 | O84: 79.6140113 | P84: 80.41015141 | Q84: 81.21425292 | R84: 82.02639545 | S84: 82.84665941 | T84: 83.675126 | U84: 84.51187726 | V84: 85.35699603 | W84: 86.21056599 | X84: 87.07267165 | Y84: 87.94339837 | Z84: 88.82283235 | AA84: 89.71106068 | AB84: 90.60817128 | AC84: 91.514253 | AD84: 92.42939553 | AE84: 93.35368948 | AF84: 94.28722638 | AG84: 95.23009864 | AH84: 96.18239963 | AI84: 97.14422362 | AJ84: 98.11566586 | AK84: 99.09682252 | AL84: 100.0877907 | AM84: 101.0886686 | AN84: 0 | AO84: =AO14 -> 0 | AP84: 0 | AQ84: 0 | AR84: 0 | AS84: 0 | AT84: 0 | AU84: 0 | AV84: 0 | AW84: 0 | AX84: 0 | AY84: 0 | AZ84: 0 | BA84: 0 | BB84: 0 | BC84: 0 | BD84: 0 | BE84: 0 | BF84: 0 | BG84: 0 | BH84: 0 | BI84: 0 | BJ84: 0 | BK84: 0 | BL84: 0 | BM84: 0 | BN84: 0 | BO84: 0 | BP84: 0 | BQ84: 0 | BR84: 0 | BS84: 0 | BT84: 0 | BU84: =BU14 -> 0 | BV84: 0 | BW84: 0 | BX84: 0 | BY84: 0 | BZ84: 0 | CA84: 0 | CB84: 0 | CC84: 0 | CD84: 0 | CE84: 0 | CF84: 0 | CG84: 0 | CH84: 0 | CI84: 0 | CJ84: 0 | CK84: 0 | CL84: 0 | CM84: 0 | CN84: 0 | CO84: 0 | CP84: 0 | CQ84: 0 | CR84: 0 | CS84: 0 | CT84: 0 | CU84: 0 | CV84: 0 | CW84: 0 | CX84: 0 | CY84: 0 | CZ84: 0 | DA84: =DA14 -> 0 | DB84: 0 | DC84: 0 | DD84: 0 | DE84: 0 | DF84: 0 | DG84: 0 | DH84: 0 | DI84: 0 | DJ84: 0 | DK84: 0 | DL84: 0 | DM84: 0 | DN84: 0 | DO84: 0 | DP84: 0 | DQ84: 0 | DR84: 0 | DS84: 0 | DT84: 0 | DU84: 0 | DV84: 0 | DW84: 0 | DX84: 0
D85: Less: Interest - Senior | E85: Euro | I85: =I44 -> 0 | J85: 27.4957796 | K85: 26.78523254 | L85: 26.02323229 | M85: 25.20726867 | N85: 24.3347166 | O85: 23.40283089 | P85: 22.40874085 | Q85: 21.34944458 | R85: 20.22180308 | S85: 19.02253405 | T85: 17.74820541 | U85: 16.39522856 | V85: 14.95985128 | W85: 13.43815041 | X85: 11.82602405 | Y85: 10.11918358 | Z85: 8.313145166 | AA85: 6.403221009 | AB85: 4.384510108 | AC85: 2.251888659 | AD85: 5.75539616e-14 | AE85: 6.014388987e-14 | AF85: 6.285036491e-14 | AG85: 6.567863133e-14 | AH85: 6.863416974e-14 | AI85: 7.172270738e-14 | AJ85: 7.495022921e-14 | AK85: 7.832298953e-14 | AL85: 8.184752406e-14 | AM85: 8.553066264e-14 | AN85: 8.937954246e-14 | AO85: =AO44 -> 9.340162187e-14 | AP85: 9.760469485e-14 | AQ85: 1.019969061e-13 | AR85: 1.065867669e-13 | AS85: 1.113831714e-13 | AT85: 1.163954141e-13 | AU85: 1.216332078e-13 | AV85: 1.271067021e-13 | AW85: 1.328265037e-13 | AX85: 1.388036964e-13 | AY85: 1.450498627e-13 | AZ85: 1.515771065e-13 | BA85: 1.583980763e-13 | BB85: 1.655259898e-13 | BC85: 1.729746593e-13 | BD85: 1.80758519e-13 | BE85: 1.888926523e-13 | BF85: 1.973928217e-13 | BG85: 2.062754986e-13 | BH85: 2.155578961e-13 | BI85: 2.252580014e-13 | BJ85: 2.353946115e-13 | BK85: 2.45987369e-13 | BL85: 2.570568006e-13 | BM85: 2.686243566e-13 | BN85: 2.807124527e-13 | BO85: 2.93344513e-13 | BP85: 3.065450161e-13 | BQ85: 3.203395418e-13 | BR85: 3.347548212e-13 | BS85: 3.498187882e-13 | BT85: 3.655606337e-13 | BU85: =BU44 -> 3.820108622e-13 | BV85: 3.99201351e-13 | BW85: 4.171654118e-13 | BX85: 4.359378553e-13 | BY85: 4.555550588e-13 | BZ85: 4.760550364e-13 | CA85: 4.974775131e-13 | CB85: 5.198640011e-13 | CC85: 5.432578812e-13 | CD85: 5.677044859e-13 | CE85: 5.932511877e-13 | CF85: 6.199474912e-13 | CG85: 6.478451283e-13 | CH85: 6.76998159e-13 | CI85: 7.074630762e-13 | CJ85: 7.392989146e-13 | CK85: 7.725673658e-13 | CL85: 8.073328972e-13 | CM85: 8.436628776e-13 | CN85: 8.816277071e-13 | CO85: 9.213009539e-13 | CP85: 9.627594969e-13 | CQ85: 1.006083674e-12 | CR85: 1.05135744e-12 | CS85: 1.098668524e-12 | CT85: 1.148108608e-12 | CU85: 1.199773495e-12 | CV85: 1.253763303e-12 | CW85: 1.310182651e-12 | CX85: 1.36914087e-12 | CY85: 1.43075221e-12 | CZ85: 1.495136059e-12 | DA85: =DA44 -> 1.562417182e-12 | DB85: 1.632725955e-12 | DC85: 1.706198623e-12 | DD85: 1.782977561e-12 | DE85: 1.863211551e-12 | DF85: 1.947056071e-12 | DG85: 2.034673594e-12 | DH85: 2.126233906e-12 | DI85: 2.221914432e-12 | DJ85: 2.321900581e-12 | DK85: 2.426386107e-12 | DL85: 2.535573482e-12 | DM85: 2.649674289e-12 | DN85: 2.768909632e-12 | DO85: 2.893510565e-12 | DP85: 3.023718541e-12 | DQ85: 3.159785875e-12 | DR85: 3.301976239e-12 | DS85: 3.45056517e-12 | DT85: 3.605840603e-12 | DU85: 3.76810343e-12 | DV85: 3.937668084e-12 | DW85: 4.114863148e-12 | DX85: 4.30003199e-12
D86: Less: Repayment - Senior | E86: Euro | I86: =I42 -> 0 | J86: 15.78993469 | K86: 16.93333889 | L86: 18.13252486 | M86: 19.39004605 | N86: 20.70857126 | O86: 22.09088985 | P86: 23.5399171 | Q86: 25.05869995 | R86: 26.65042289 | S86: 28.31841418 | T86: 30.0661523 | U86: 31.89727273 | V86: 33.81557502 | W86: 35.82503016 | X86: 37.92978832 | Y86: 40.13418692 | Z86: 42.44275904 | AA86: 44.86024223 | AB86: 47.39158777 | AC86: 50.0419702 | AD86: -5.75539616e-14 | AE86: -6.014388987e-14 | AF86: -6.285036491e-14 | AG86: -6.567863133e-14 | AH86: -6.863416974e-14 | AI86: -7.172270738e-14 | AJ86: -7.495022921e-14 | AK86: -7.832298953e-14 | AL86: -8.184752406e-14 | AM86: -8.553066264e-14 | AN86: -8.937954246e-14 | AO86: =AO42 -> -9.340162187e-14 | AP86: -9.760469485e-14 | AQ86: -1.019969061e-13 | AR86: -1.065867669e-13 | AS86: -1.113831714e-13 | AT86: -1.163954141e-13 | AU86: -1.216332078e-13 | AV86: -1.271067021e-13 | AW86: -1.328265037e-13 | AX86: -1.388036964e-13 | AY86: -1.450498627e-13 | AZ86: -1.515771065e-13 | BA86: -1.583980763e-13 | BB86: -1.655259898e-13 | BC86: -1.729746593e-13 | BD86: -1.80758519e-13 | BE86: -1.888926523e-13 | BF86: -1.973928217e-13 | BG86: -2.062754986e-13 | BH86: -2.155578961e-13 | BI86: -2.252580014e-13 | BJ86: -2.353946115e-13 | BK86: -2.45987369e-13 | BL86: -2.570568006e-13 | BM86: -2.686243566e-13 | BN86: -2.807124527e-13 | BO86: -2.93344513e-13 | BP86: -3.065450161e-13 | BQ86: -3.203395418e-13 | BR86: -3.347548212e-13 | BS86: -3.498187882e-13 | BT86: -3.655606337e-13 | BU86: =BU42 -> -3.820108622e-13 | BV86: -3.99201351e-13 | BW86: -4.171654118e-13 | BX86: -4.359378553e-13 | BY86: -4.555550588e-13 | BZ86: -4.760550364e-13 | CA86: -4.974775131e-13 | CB86: -5.198640011e-13 | CC86: -5.432578812e-13 | CD86: -5.677044859e-13 | CE86: -5.932511877e-13 | CF86: -6.199474912e-13 | CG86: -6.478451283e-13 | CH86: -6.76998159e-13 | CI86: -7.074630762e-13 | CJ86: -7.392989146e-13 | CK86: -7.725673658e-13 | CL86: -8.073328972e-13 | CM86: -8.436628776e-13 | CN86: -8.816277071e-13 | CO86: -9.213009539e-13 | CP86: -9.627594969e-13 | CQ86: -1.006083674e-12 | CR86: -1.05135744e-12 | CS86: -1.098668524e-12 | CT86: -1.148108608e-12 | CU86: -1.199773495e-12 | CV86: -1.253763303e-12 | CW86: -1.310182651e-12 | CX86: -1.36914087e-12 | CY86: -1.43075221e-12 | CZ86: -1.495136059e-12 | DA86: =DA42 -> -1.562417182e-12 | DB86: -1.632725955e-12 | DC86: -1.706198623e-12 | DD86: -1.782977561e-12 | DE86: -1.863211551e-12 | DF86: -1.947056071e-12 | DG86: -2.034673594e-12 | DH86: -2.126233906e-12 | DI86: -2.221914432e-12 | DJ86: -2.321900581e-12 | DK86: -2.426386107e-12 | DL86: -2.535573482e-12 | DM86: -2.649674289e-12 | DN86: -2.768909632e-12 | DO86: -2.893510565e-12 | DP86: -3.023718541e-12 | DQ86: -3.159785875e-12 | DR86: -3.301976239e-12 | DS86: -3.45056517e-12 | DT86: -3.605840603e-12 | DU86: -3.76810343e-12 | DV86: -3.937668084e-12 | DW86: -4.114863148e-12 | DX86: -4.30003199e-12
D87: Net Cash Flow | E87: Euro | I87: =I84-I85-I86 -> 0 | J87: =J84-J85-J86 -> 32.46428571 | K87: 32.78892857 | L87: 33.11681786 | M87: 33.44798604 | N87: 33.7824659 | O87: 34.12029056 | P87: 34.46149346 | Q87: 34.8061084 | R87: 35.15416948 | S87: 35.50571117 | T87: 35.86076829 | U87: 36.21937597 | V87: 36.58156973 | W87: 36.94738543 | X87: 37.31685928 | Y87: 37.69002787 | Z87: 38.06692815 | AA87: 38.44759743 | AB87: 38.83207341 | AC87: 39.22039414 | AD87: 92.42939553 | AE87: 93.35368948 | AF87: 94.28722638 | AG87: 95.23009864 | AH87: 96.18239963 | AI87: 97.14422362 | AJ87: 98.11566586 | AK87: 99.09682252 | AL87: 100.0877907 | AM87: 101.0886686 | AN87: 0 | AO87: 0 | AP87: 0 | AQ87: 0 | AR87: 0 | AS87: 0 | AT87: 0 | AU87: 0 | AV87: 0 | AW87: 0 | AX87: 0 | AY87: 0 | AZ87: 0 | BA87: 0 | BB87: 0 | BC87: 0 | BD87: 0 | BE87: 0 | BF87: 0 | BG87: 0 | BH87: 0 | BI87: 0 | BJ87: 0 | BK87: 0 | BL87: 0 | BM87: 0 | BN87: 0 | BO87: 0 | BP87: 0 | BQ87: 0 | BR87: 0 | BS87: 0 | BT87: 0 | BU87: 0 | BV87: =BV84-BV85-BV86 -> 0 | BW87: 0 | BX87: 0 | BY87: 0 | BZ87: 0 | CA87: 0 | CB87: 0 | CC87: 0 | CD87: 0 | CE87: 0 | CF87: 0 | CG87: 0 | CH87: 0 | CI87: 0 | CJ87: 0 | CK87: 0 | CL87: 0 | CM87: 0 | CN87: 0 | CO87: 0 | CP87: 0 | CQ87: 0 | CR87: 0 | CS87: 0 | CT87: 0 | CU87: 0 | CV87: 0 | CW87: 0 | CX87: 0 | CY87: 0 | CZ87: 0 | DA87: 0 | DB87: 0 | DC87: 0 | DD87: 0 | DE87: 0 | DF87: 0 | DG87: 0 | DH87: 0 | DI87: 0 | DJ87: 0 | DK87: 0 | DL87: 0 | DM87: 0 | DN87: 0 | DO87: 0 | DP87: 0 | DQ87: 0 | DR87: 0 | DS87: 0 | DT87: 0 | DU87: 0 | DV87: 0 | DW87: 0 | DX87: 0
D88: Sub Debt Interest | E88: Euro | I88: =I69 -> 0 | J88: =J69 -> 19.12652355 | K88: 19.08019401 | L88: 19.01795751 | M88: 18.93865115 | N88: 18.84103514 | O88: 18.72378781 | P88: 18.58550025 | Q88: 18.42467066 | R88: 18.23969828 | S88: 18.02887694 | T88: 17.79038819 | U88: 17.52229402 | V88: 17.22252903 | W88: 16.88889217 | X88: 16.51903791 | Y88: 16.1104668 | Z88: 15.66051548 | AA88: 15.166346 | AB88: 14.62493449 | AC88: 14.03305898 | AD88: 13.3872866 | AE88: 9.250867971 | AF88: 4.795516208 | AG88: 5.449862783e-14 | AH88: 5.804103864e-14 | AI88: 6.181370615e-14 | AJ88: 6.583159705e-14 | AK88: 7.011065086e-14 | AL88: 7.466784317e-14 | AM88: 7.952125297e-14 | AN88: 8.469013442e-14 | AO88: 9.019499315e-14 | AP88: 9.605766771e-14 | AQ88: 1.023014161e-13 | AR88: 1.089510082e-13 | AS88: 1.160328237e-13 | AT88: 1.235749572e-13 | AU88: 1.316073294e-13 | AV88: 1.401618059e-13 | AW88: 1.492723232e-13 | AX88: 1.589750243e-13 | AY88: 1.693084008e-13 | AZ88: 1.803134469e-13 | BA88: 1.920338209e-13 | BB88: 2.045160193e-13 | BC88: 2.178095605e-13 | BD88: 2.31967182e-13 | BE88: 2.470450488e-13 | BF88: 2.63102977e-13 | BG88: 2.802046705e-13 | BH88: 2.984179741e-13 | BI88: 3.178151424e-13 | BJ88: 3.384731266e-13 | BK88: 3.604738799e-13 | BL88: 3.839046821e-13 | BM88: 4.088584864e-13 | BN88: 4.35434288e-13 | BO88: 4.637375167e-13 | BP88: 4.938804553e-13 | BQ88: 5.259826849e-13 | BR88: 5.601715594e-13 | BS88: 5.965827108e-13 | BT88: 6.35360587e-13 | BU88: 6.766590252e-13 | BV88: =BV69 -> 7.206418618e-13 | BW88: 7.674835828e-13 | BX88: 8.173700157e-13 | BY88: 8.704990667e-13 | BZ88: 9.27081506e-13 | CA88: 9.873418039e-13 | CB88: 1.051519021e-12 | CC88: 1.119867758e-12 | CD88: 1.192659162e-12 | CE88: 1.270182007e-12 | CF88: 1.352743838e-12 | CG88: 1.440672187e-12 | CH88: 1.534315879e-12 | CI88: 1.634046412e-12 | CJ88: 1.740259428e-12 | CK88: 1.853376291e-12 | CL88: 1.97384575e-12 | CM88: 2.102145724e-12 | CN88: 2.238785196e-12 | CO88: 2.384306234e-12 | CP88: 2.539286139e-12 | CQ88: 2.704339738e-12 | CR88: 2.880121821e-12 | CS88: 3.067329739e-12 | CT88: 3.266706172e-12 | CU88: 3.479042073e-12 | CV88: 3.705179808e-12 | CW88: 3.946016496e-12 | CX88: 4.202507568e-12 | CY88: 4.47567056e-12 | CZ88: 4.766589146e-12 | DA88: 5.076417441e-12 | DB88: 5.406384574e-12 | DC88: 5.757799572e-12 | DD88: 6.132056544e-12 | DE88: 6.530640219e-12 | DF88: 6.955131834e-12 | DG88: 7.407215403e-12 | DH88: 7.888684404e-12 | DI88: 8.40144889e-12 | DJ88: 8.947543068e-12 | DK88: 9.529133367e-12 | DL88: 1.014852704e-11 | DM88: 1.080818129e-11 | DN88: 1.151071308e-11 | DO88: 1.225890943e-11 | DP88: 1.305573854e-11 | DQ88: 1.390436155e-11 | DR88: 1.480814505e-11 | DS88: 1.577067447e-11 | DT88: 1.679576832e-11 | DU88: 1.788749326e-11 | DV88: 1.905018032e-11 | DW88: 2.028844204e-11 | DX88: 2.160719077e-11
D89: Sub Debt Repayment | E89: Euro | I89: =I67 -> 0 | J89: =J67 -> 0.7127621678 | K89: 0.9574845658 | L89: 1.220097848 | M89: 1.501784762 | N89: 1.803805131 | O89: 2.127500867 | P89: 2.47430131 | Q89: 2.845728911 | R89: 3.243405286 | S89: 3.669057665 | T89: 4.124525759 | U89: 4.611769073 | V89: 5.132874694 | W89: 5.690065586 | X89: 6.285709427 | Y89: 6.922328013 | Z89: 7.602607282 | AA89: 8.329407983 | AB89: 9.105777041 | AC89: 9.934959664 | AD89: 63.63720967 | AE89: 68.54387326 | AF89: 73.77717244 | AG89: -5.449862783e-14 | AH89: -5.804103864e-14 | AI89: -6.181370615e-14 | AJ89: -6.583159705e-14 | AK89: -7.011065086e-14 | AL89: -7.466784317e-14 | AM89: -7.952125297e-14 | AN89: -8.469013442e-14 | AO89: -9.019499315e-14 | AP89: -9.605766771e-14 | AQ89: -1.023014161e-13 | AR89: -1.089510082e-13 | AS89: -1.160328237e-13 | AT89: -1.235749572e-13 | AU89: -1.316073294e-13 | AV89: -1.401618059e-13 | AW89: -1.492723232e-13 | AX89: -1.589750243e-13 | AY89: -1.693084008e-13 | AZ89: -1.803134469e-13 | BA89: -1.920338209e-13 | BB89: -2.045160193e-13 | BC89: -2.178095605e-13 | BD89: -2.31967182e-13 | BE89: -2.470450488e-13 | BF89: -2.63102977e-13 | BG89: -2.802046705e-13 | BH89: -2.984179741e-13 | BI89: -3.178151424e-13 | BJ89: -3.384731266e-13 | BK89: -3.604738799e-13 | BL89: -3.839046821e-13 | BM89: -4.088584864e-13 | BN89: -4.35434288e-13 | BO89: -4.637375167e-13 | BP89: -4.938804553e-13 | BQ89: -5.259826849e-13 | BR89: -5.601715594e-13 | BS89: -5.965827108e-13 | BT89: -6.35360587e-13 | BU89: -6.766590252e-13 | BV89: =BV67 -> -7.206418618e-13 | BW89: -7.674835828e-13 | BX89: -8.173700157e-13 | BY89: -8.704990667e-13 | BZ89: -9.27081506e-13 | CA89: -9.873418039e-13 | CB89: -1.051519021e-12 | CC89: -1.119867758e-12 | CD89: -1.192659162e-12 | CE89: -1.270182007e-12 | CF89: -1.352743838e-12 | CG89: -1.440672187e-12 | CH89: -1.534315879e-12 | CI89: -1.634046412e-12 | CJ89: -1.740259428e-12 | CK89: -1.853376291e-12 | CL89: -1.97384575e-12 | CM89: -2.102145724e-12 | CN89: -2.238785196e-12 | CO89: -2.384306234e-12 | CP89: -2.539286139e-12 | CQ89: -2.704339738e-12 | CR89: -2.880121821e-12 | CS89: -3.067329739e-12 | CT89: -3.266706172e-12 | CU89: -3.479042073e-12 | CV89: -3.705179808e-12 | CW89: -3.946016496e-12 | CX89: -4.202507568e-12 | CY89: -4.47567056e-12 | CZ89: -4.766589146e-12 | DA89: -5.076417441e-12 | DB89: -5.406384574e-12 | DC89: -5.757799572e-12 | DD89: -6.132056544e-12 | DE89: -6.530640219e-12 | DF89: -6.955131834e-12 | DG89: -7.407215403e-12 | DH89: -7.888684404e-12 | DI89: -8.40144889e-12 | DJ89: -8.947543068e-12 | DK89: -9.529133367e-12 | DL89: -1.014852704e-11 | DM89: -1.080818129e-11 | DN89: -1.151071308e-11 | DO89: -1.225890943e-11 | DP89: -1.305573854e-11 | DQ89: -1.390436155e-11 | DR89: -1.480814505e-11 | DS89: -1.577067447e-11 | DT89: -1.679576832e-11 | DU89: -1.788749326e-11 | DV89: -1.905018032e-11 | DW89: -2.028844204e-11 | DX89: -2.160719077e-11
D91: Dividends | E91: Euro | I91: =I87-I88-I89 -> 0 | J91: =J87-J88-J89 -> 12.625 | K91: 12.75125 | L91: 12.8787625 | M91: 13.00755012 | N91: 13.13762563 | O91: 13.26900188 | P91: 13.4016919 | Q91: 13.53570882 | R91: 13.67106591 | S91: 13.80777657 | T91: 13.94585433 | U91: 14.08531288 | V91: 14.22616601 | W91: 14.36842767 | X91: 14.51211194 | Y91: 14.65723306 | Z91: 14.80380539 | AA91: 14.95184345 | AB91: 15.10136188 | AC91: 15.2523755 | AD91: 15.40489925 | AE91: 15.55894825 | AF91: 15.71453773 | AG91: 95.23009864 | AH91: 96.18239963 | AI91: 97.14422362 | AJ91: 98.11566586 | AK91: 99.09682252 | AL91: 100.0877907 | AM91: 101.0886686 | AN91: 0 | AO91: 0 | AP91: 0 | AQ91: 0 | AR91: 0 | AS91: 0 | AT91: 0 | AU91: 0 | AV91: 0 | AW91: 0 | AX91: 0 | AY91: 0 | AZ91: 0 | BA91: 0 | BB91: 0 | BC91: 0 | BD91: 0 | BE91: 0 | BF91: 0 | BG91: 0 | BH91: 0 | BI91: 0 | BJ91: 0 | BK91: 0 | BL91: 0 | BM91: 0 | BN91: 0 | BO91: 0 | BP91: 0 | BQ91: 0 | BR91: 0 | BS91: 0 | BT91: 0 | BU91: 0 | BV91: =BV87-BV88-BV89 -> 0 | BW91: 0 | BX91: 0 | BY91: 0 | BZ91: 0 | CA91: 0 | CB91: 0 | CC91: 0 | CD91: 0 | CE91: 0 | CF91: 0 | CG91: 0 | CH91: 0 | CI91: 0 | CJ91: 0 | CK91: 0 | CL91: 0 | CM91: 0 | CN91: 0 | CO91: 0 | CP91: 0 | CQ91: 0 | CR91: 0 | CS91: 0 | CT91: 0 | CU91: 0 | CV91: 0 | CW91: 0 | CX91: 0 | CY91: 0 | CZ91: 0 | DA91: 0 | DB91: 0 | DC91: 0 | DD91: 0 | DE91: 0 | DF91: 0 | DG91: 0 | DH91: 0 | DI91: 0 | DJ91: 0 | DK91: 0 | DL91: 0 | DM91: 0 | DN91: 0 | DO91: 0 | DP91: 0 | DQ91: 0 | DR91: 0 | DS91: 0 | DT91: 0 | DU91: 0 | DV91: 0 | DW91: 0 | DX91: 0
B93: Summary Analysis - Structuring
D96: Equity Net Cash Flow | E96: Euro | I96: =-I80+I91 -> -94.72846718 | J96: 12.625 | K96: 12.75125 | L96: 12.8787625 | M96: 13.00755012 | N96: 13.13762563 | O96: 13.26900188 | P96: 13.4016919 | Q96: 13.53570882 | R96: 13.67106591 | S96: 13.80777657 | T96: 13.94585433 | U96: 14.08531288 | V96: 14.22616601 | W96: 14.36842767 | X96: 14.51211194 | Y96: 14.65723306 | Z96: 14.80380539 | AA96: 14.95184345 | AB96: 15.10136188 | AC96: 15.2523755 | AD96: 15.40489925 | AE96: 15.55894825 | AF96: 15.71453773 | AG96: 95.23009864 | AH96: 96.18239963 | AI96: 97.14422362 | AJ96: 98.11566586 | AK96: 99.09682252 | AL96: 100.0877907 | AM96: 101.0886686 | AN96: 0 | AO96: =-AO80+AO91 -> 0 | AP96: 0 | AQ96: 0 | AR96: 0 | AS96: 0 | AT96: 0 | AU96: 0 | AV96: 0 | AW96: 0 | AX96: 0 | AY96: 0 | AZ96: 0 | BA96: 0 | BB96: 0 | BC96: 0 | BD96: 0 | BE96: 0 | BF96: 0 | BG96: 0 | BH96: 0 | BI96: 0 | BJ96: 0 | BK96: 0 | BL96: 0 | BM96: 0 | BN96: 0 | BO96: 0 | BP96: 0 | BQ96: 0 | BR96: 0 | BS96: 0 | BT96: 0 | BU96: =-BU80+BU91 -> 0 | BV96: 0 | BW96: 0 | BX96: 0 | BY96: 0 | BZ96: 0 | CA96: 0 | CB96: 0 | CC96: 0 | CD96: 0 | CE96: 0 | CF96: 0 | CG96: 0 | CH96: 0 | CI96: 0 | CJ96: 0 | CK96: 0 | CL96: 0 | CM96: 0 | CN96: 0 | CO96: 0 | CP96: 0 | CQ96: 0 | CR96: 0 | CS96: 0 | CT96: 0 | CU96: 0 | CV96: 0 | CW96: 0 | CX96: 0 | CY96: 0 | CZ96: 0 | DA96: =-DA80+DA91 -> 0 | DB96: 0 | DC96: 0 | DD96: 0 | DE96: 0 | DF96: 0 | DG96: 0 | DH96: 0 | DI96: 0 | DJ96: 0 | DK96: 0 | DL96: 0 | DM96: 0 | DN96: 0 | DO96: 0 | DP96: 0 | DQ96: 0 | DR96: 0 | DS96: 0 | DT96: 0 | DU96: 0 | DV96: 0 | DW96: 0 | DX96: 0
D97: Equity IRR | E97: =IRR(I96:DX96) -> 0.1586111261
I99: =IF(I5,I3,NA()) ->  | J99: 2 | K99: 3 | L99: 4 | M99: 5 | N99: 6 | O99: 7 | P99: 8 | Q99: 9 | R99: 10 | S99: 11 | T99: 12 | U99: 13 | V99: 14 | W99: 15 | X99: 16 | Y99: 17 | Z99: 18 | AA99: 19 | AB99: 20 | AC99: 21 | AD99: 22 | AE99: 23 | AF99: 24 | AG99: 25 | AH99: 26 | AI99: 27 | AJ99: 28 | AK99: 29 | AL99: 30 | AM99: 31 | AO99: =IF(AO5,AO3,NA()) ->  | BU99: =IF(BU5,BU3,NA()) ->  | DA99: =IF(DA5,DA3,NA()) -> 
D100: Cash Flow | E100: Euro | I100: =I84 -> 0 | J100: 75.75 | K100: 76.5075 | L100: 77.272575 | M100: 78.04530075 | N100: 78.82575376 | O100: 79.6140113 | P100: 80.41015141 | Q100: 81.21425292 | R100: 82.02639545 | S100: 82.84665941 | T100: 83.675126 | U100: 84.51187726 | V100: 85.35699603 | W100: 86.21056599 | X100: 87.07267165 | Y100: 87.94339837 | Z100: 88.82283235 | AA100: 89.71106068 | AB100: 90.60817128 | AC100: 91.514253 | AD100: 92.42939553 | AE100: 93.35368948 | AF100: 94.28722638 | AG100: 95.23009864 | AH100: 96.18239963 | AI100: 97.14422362 | AJ100: 98.11566586 | AK100: 99.09682252 | AL100: 100.0877907 | AM100: 101.0886686 | AN100: 0 | AO100: =AO84 -> 0 | AP100: 0 | AQ100: 0 | AR100: 0 | AS100: 0 | AT100: 0 | AU100: 0 | AV100: 0 | AW100: 0 | AX100: 0 | AY100: 0 | AZ100: 0 | BA100: 0 | BB100: 0 | BC100: 0 | BD100: 0 | BE100: 0 | BF100: 0 | BG100: 0 | BH100: 0 | BI100: 0 | BJ100: 0 | BK100: 0 | BL100: 0 | BM100: 0 | BN100: 0 | BO100: 0 | BP100: 0 | BQ100: 0 | BR100: 0 | BS100: 0 | BT100: 0 | BU100: =BU84 -> 0 | BV100: 0 | BW100: 0 | BX100: 0 | BY100: 0 | BZ100: 0 | CA100: 0 | CB100: 0 | CC100: 0 | CD100: 0 | CE100: 0 | CF100: 0 | CG100: 0 | CH100: 0 | CI100: 0 | CJ100: 0 | CK100: 0 | CL100: 0 | CM100: 0 | CN100: 0 | CO100: 0 | CP100: 0 | CQ100: 0 | CR100: 0 | CS100: 0 | CT100: 0 | CU100: 0 | CV100: 0 | CW100: 0 | CX100: 0 | CY100: 0 | CZ100: 0 | DA100: =DA84 -> 0 | DB100: 0 | DC100: 0 | DD100: 0 | DE100: 0 | DF100: 0 | DG100: 0 | DH100: 0 | DI100: 0 | DJ100: 0 | DK100: 0 | DL100: 0 | DM100: 0 | DN100: 0 | DO100: 0 | DP100: 0 | DQ100: 0 | DR100: 0 | DS100: 0 | DT100: 0 | DU100: 0 | DV100: 0 | DW100: 0 | DX100: 0
D101: Senior Debt Service | E101: Euro | I101: =I85+I86 -> 0 | J101: 43.28571429 | K101: 43.71857143 | L101: 44.15575714 | M101: 44.59731471 | N101: 45.04328786 | O101: 45.49372074 | P101: 45.94865795 | Q101: 46.40814453 | R101: 46.87222597 | S101: 47.34094823 | T101: 47.81435771 | U101: 48.29250129 | V101: 48.7754263 | W101: 49.26318057 | X101: 49.75581237 | Y101: 50.2533705 | Z101: 50.7559042 | AA101: 51.26346324 | AB101: 51.77609788 | AC101: 52.29385885 | AD101: 0 | AE101: 0 | AF101: 0 | AG101: 0 | AH101: 0 | AI101: 0 | AJ101: 0 | AK101: 0 | AL101: 0 | AM101: 0 | AN101: 0 | AO101: =AO85+AO86 -> 0 | AP101: 0 | AQ101: 0 | AR101: 0 | AS101: 0 | AT101: 0 | AU101: 0 | AV101: 0 | AW101: 0 | AX101: 0 | AY101: 0 | AZ101: 0 | BA101: 0 | BB101: 0 | BC101: 0 | BD101: 0 | BE101: 0 | BF101: 0 | BG101: 0 | BH101: 0 | BI101: 0 | BJ101: 0 | BK101: 0 | BL101: 0 | BM101: 0 | BN101: 0 | BO101: 0 | BP101: 0 | BQ101: 0 | BR101: 0 | BS101: 0 | BT101: 0 | BU101: =BU85+BU86 -> 0 | BV101: 0 | BW101: 0 | BX101: 0 | BY101: 0 | BZ101: 0 | CA101: 0 | CB101: 0 | CC101: 0 | CD101: 0 | CE101: 0 | CF101: 0 | CG101: 0 | CH101: 0 | CI101: 0 | CJ101: 0 | CK101: 0 | CL101: 0 | CM101: 0 | CN101: 0 | CO101: 0 | CP101: 0 | CQ101: 0 | CR101: 0 | CS101: 0 | CT101: 0 | CU101: 0 | CV101: 0 | CW101: 0 | CX101: 0 | CY101: 0 | CZ101: 0 | DA101: =DA85+DA86 -> 0 | DB101: 0 | DC101: 0 | DD101: 0 | DE101: 0 | DF101: 0 | DG101: 0 | DH101: 0 | DI101: 0 | DJ101: 0 | DK101: 0 | DL101: 0 | DM101: 0 | DN101: 0 | DO101: 0 | DP101: 0 | DQ101: 0 | DR101: 0 | DS101: 0 | DT101: 0 | DU101: 0 | DV101: 0 | DW101: 0 | DX101: 0
D102: Total Debt Service | E102: Euro | I102: =I85+I86+I88+I89 -> 0 | J102: =J85+J86+J88+J89 -> 63.125 | K102: 63.75625 | L102: 64.3938125 | M102: 65.03775063 | N102: 65.68812813 | O102: 66.34500941 | P102: 67.00845951 | Q102: 67.6785441 | R102: 68.35532954 | S102: 69.03888284 | T102: 69.72927167 | U102: 70.42656438 | V102: 71.13083003 | W102: 71.84213833 | X102: 72.56055971 | Y102: 73.28616531 | Z102: 74.01902696 | AA102: 74.75921723 | AB102: 75.5068094 | AC102: 76.2618775 | AD102: 77.02449627 | AE102: 77.79474123 | AF102: 78.57268865 | AG102: 0 | AH102: 0 | AI102: 0 | AJ102: 0 | AK102: 0 | AL102: 0 | AM102: 0 | AN102: 0 | AO102: 0 | AP102: 0 | AQ102: 0 | AR102: 0 | AS102: 0 | AT102: 0 | AU102: 0 | AV102: 0 | AW102: 0 | AX102: 0 | AY102: 0 | AZ102: 0 | BA102: 0 | BB102: 0 | BC102: 0 | BD102: 0 | BE102: 0 | BF102: 0 | BG102: 0 | BH102: 0 | BI102: 0 | BJ102: 0 | BK102: 0 | BL102: 0 | BM102: 0 | BN102: 0 | BO102: 0 | BP102: 0 | BQ102: 0 | BR102: 0 | BS102: 0 | BT102: 0 | BU102: 0 | BV102: =BV85+BV86+BV88+BV89 -> 0 | BW102: 0 | BX102: 0 | BY102: 0 | BZ102: 0 | CA102: 0 | CB102: 0 | CC102: 0 | CD102: 0 | CE102: 0 | CF102: 0 | CG102: 0 | CH102: 0 | CI102: 0 | CJ102: 0 | CK102: 0 | CL102: 0 | CM102: 0 | CN102: 0 | CO102: 0 | CP102: 0 | CQ102: 0 | CR102: 0 | CS102: 0 | CT102: 0 | CU102: 0 | CV102: 0 | CW102: 0 | CX102: 0 | CY102: 0 | CZ102: 0 | DA102: 0 | DB102: 0 | DC102: 0 | DD102: 0 | DE102: 0 | DF102: 0 | DG102: 0 | DH102: 0 | DI102: 0 | DJ102: 0 | DK102: 0 | DL102: 0 | DM102: 0 | DN102: 0 | DO102: 0 | DP102: 0 | DQ102: 0 | DR102: 0 | DS102: 0 | DT102: 0 | DU102: 0 | DV102: 0 | DW102: 0 | DX102: 0
D104: Equity IRR | E104: =E97 -> 0.1586111261 | F104: DSCR | G104: =F37 -> 1.75 | I104: Tenure | J104: =F35 -> 21 | K104: Debt to Capital
D106: Senior DSCR | I106: =IF(I101>0,I100/I101) -> FALSE | J106: =IF(J101>0,J100/J101) -> 1.75 | K106: 1.75 | L106: 1.75 | M106: 1.75 | N106: 1.75 | O106: 1.75 | P106: 1.75 | Q106: 1.75 | R106: 1.75 | S106: 1.75 | T106: 1.75 | U106: 1.75 | V106: 1.75 | W106: 1.75 | X106: 1.75 | Y106: 1.75 | Z106: 1.75 | AA106: 1.75 | AB106: 1.75 | AC106: 1.75 | AD106: FALSE | AE106: FALSE | AF106: FALSE | AG106: FALSE | AH106: FALSE | AI106: FALSE | AJ106: FALSE | AK106: FALSE | AL106: FALSE | AM106: FALSE | AN106: FALSE | AO106: FALSE | AP106: FALSE | AQ106: FALSE | AR106: FALSE | AS106: FALSE | AT106: FALSE | AU106: FALSE | AV106: FALSE | AW106: FALSE | AX106: FALSE | AY106: FALSE | AZ106: FALSE | BA106: FALSE | BB106: FALSE | BC106: FALSE | BD106: FALSE | BE106: FALSE | BF106: FALSE | BG106: FALSE | BH106: FALSE | BI106: FALSE | BJ106: FALSE | BK106: FALSE | BL106: FALSE | BM106: FALSE | BN106: FALSE | BO106: FALSE | BP106: FALSE | BQ106: FALSE | BR106: FALSE | BS106: FALSE | BT106: FALSE | BU106: FALSE | BV106: =IF(BV101>0,BV100/BV101) -> FALSE | BW106: FALSE | BX106: FALSE | BY106: FALSE | BZ106: FALSE | CA106: FALSE | CB106: FALSE | CC106: FALSE | CD106: FALSE | CE106: FALSE | CF106: FALSE | CG106: FALSE | CH106: FALSE | CI106: FALSE | CJ106: FALSE | CK106: FALSE | CL106: FALSE | CM106: FALSE | CN106: FALSE | CO106: FALSE | CP106: FALSE | CQ106: FALSE | CR106: FALSE | CS106: FALSE | CT106: FALSE | CU106: FALSE | CV106: FALSE | CW106: FALSE | CX106: FALSE | CY106: FALSE | CZ106: FALSE | DA106: FALSE | DB106: FALSE | DC106: FALSE | DD106: FALSE | DE106: FALSE | DF106: FALSE | DG106: FALSE | DH106: FALSE | DI106: FALSE | DJ106: FALSE | DK106: FALSE | DL106: FALSE | DM106: FALSE | DN106: FALSE | DO106: FALSE | DP106: FALSE | DQ106: FALSE | DR106: FALSE | DS106: FALSE | DT106: FALSE | DU106: FALSE | DV106: FALSE | DW106: FALSE | DX106: FALSE
D107: Total DSCR | I107: =IF(I102,I100/I102) -> FALSE | J107: =IF(J102,J100/J102) -> 1.2 | K107: 1.2 | L107: 1.2 | M107: 1.2 | N107: 1.2 | O107: 1.2 | P107: 1.2 | Q107: 1.2 | R107: 1.2 | S107: 1.2 | T107: 1.2 | U107: 1.2 | V107: 1.2 | W107: 1.2 | X107: 1.2 | Y107: 1.2 | Z107: 1.2 | AA107: 1.2 | AB107: 1.2 | AC107: 1.2 | AD107: 1.2 | AE107: 1.2 | AF107: 1.2 | AG107: FALSE | AH107: FALSE | AI107: FALSE | AJ107: FALSE | AK107: FALSE | AL107: FALSE | AM107: FALSE | AN107: FALSE | AO107: FALSE | AP107: FALSE | AQ107: FALSE | AR107: FALSE | AS107: FALSE | AT107: FALSE | AU107: FALSE | AV107: FALSE | AW107: FALSE | AX107: FALSE | AY107: FALSE | AZ107: FALSE | BA107: FALSE | BB107: FALSE | BC107: FALSE | BD107: FALSE | BE107: FALSE | BF107: FALSE | BG107: FALSE | BH107: FALSE | BI107: FALSE | BJ107: FALSE | BK107: FALSE | BL107: FALSE | BM107: FALSE | BN107: FALSE | BO107: FALSE | BP107: FALSE | BQ107: FALSE | BR107: FALSE | BS107: FALSE | BT107: FALSE | BU107: FALSE | BV107: =IF(BV102,BV100/BV102) -> FALSE | BW107: FALSE | BX107: FALSE | BY107: FALSE | BZ107: FALSE | CA107: FALSE | CB107: FALSE | CC107: FALSE | CD107: FALSE | CE107: FALSE | CF107: FALSE | CG107: FALSE | CH107: FALSE | CI107: FALSE | CJ107: FALSE | CK107: FALSE | CL107: FALSE | CM107: FALSE | CN107: FALSE | CO107: FALSE | CP107: FALSE | CQ107: FALSE | CR107: FALSE | CS107: FALSE | CT107: FALSE | CU107: FALSE | CV107: FALSE | CW107: FALSE | CX107: FALSE | CY107: FALSE | CZ107: FALSE | DA107: FALSE | DB107: FALSE | DC107: FALSE | DD107: FALSE | DE107: FALSE | DF107: FALSE | DG107: FALSE | DH107: FALSE | DI107: FALSE | DJ107: FALSE | DK107: FALSE | DL107: FALSE | DM107: FALSE | DN107: FALSE | DO107: FALSE | DP107: FALSE | DQ107: FALSE | DR107: FALSE | DS107: FALSE | DT107: FALSE | DU107: FALSE | DV107: FALSE | DW107: FALSE | DX107: FALSE
B109: Risk Analysis
C110: Scheduled Senior Debt Repayment | H110: =SUM(I110:XFD110) -> 611.0173244 | I110: =I42 -> 0 | J110: 15.78993469 | K110: 16.93333889 | L110: 18.13252486 | M110: 19.39004605 | N110: 20.70857126 | O110: 22.09088985 | P110: 23.5399171 | Q110: 25.05869995 | R110: 26.65042289 | S110: 28.31841418 | T110: 30.0661523 | U110: 31.89727273 | V110: 33.81557502 | W110: 35.82503016 | X110: 37.92978832 | Y110: 40.13418692 | Z110: 42.44275904 | AA110: 44.86024223 | AB110: 47.39158777 | AC110: 50.0419702 | AD110: -5.75539616e-14 | AE110: -6.014388987e-14 | AF110: -6.285036491e-14 | AG110: -6.567863133e-14 | AH110: -6.863416974e-14 | AI110: -7.172270738e-14 | AJ110: -7.495022921e-14 | AK110: -7.832298953e-14 | AL110: -8.184752406e-14 | AM110: -8.553066264e-14 | AN110: -8.937954246e-14 | AO110: =AO42 -> -9.340162187e-14 | AP110: -9.760469485e-14 | AQ110: -1.019969061e-13 | AR110: -1.065867669e-13 | AS110: -1.113831714e-13 | AT110: -1.163954141e-13 | AU110: -1.216332078e-13 | AV110: -1.271067021e-13 | AW110: -1.328265037e-13 | AX110: -1.388036964e-13 | AY110: -1.450498627e-13 | AZ110: -1.515771065e-13 | BA110: -1.583980763e-13 | BB110: -1.655259898e-13 | BC110: -1.729746593e-13 | BD110: -1.80758519e-13 | BE110: -1.888926523e-13 | BF110: -1.973928217e-13 | BG110: -2.062754986e-13 | BH110: -2.155578961e-13 | BI110: -2.252580014e-13 | BJ110: -2.353946115e-13 | BK110: -2.45987369e-13 | BL110: -2.570568006e-13 | BM110: -2.686243566e-13 | BN110: -2.807124527e-13 | BO110: -2.93344513e-13 | BP110: -3.065450161e-13 | BQ110: -3.203395418e-13 | BR110: -3.347548212e-13 | BS110: -3.498187882e-13 | BT110: -3.655606337e-13 | BU110: =BU42 -> -3.820108622e-13 | BV110: -3.99201351e-13 | BW110: -4.171654118e-13 | BX110: -4.359378553e-13 | BY110: -4.555550588e-13 | BZ110: -4.760550364e-13 | CA110: -4.974775131e-13 | CB110: -5.198640011e-13 | CC110: -5.432578812e-13 | CD110: -5.677044859e-13 | CE110: -5.932511877e-13 | CF110: -6.199474912e-13 | CG110: -6.478451283e-13 | CH110: -6.76998159e-13 | CI110: -7.074630762e-13 | CJ110: -7.392989146e-13 | CK110: -7.725673658e-13 | CL110: -8.073328972e-13 | CM110: -8.436628776e-13 | CN110: -8.816277071e-13 | CO110: -9.213009539e-13 | CP110: -9.627594969e-13 | CQ110: -1.006083674e-12 | CR110: -1.05135744e-12 | CS110: -1.098668524e-12 | CT110: -1.148108608e-12 | CU110: -1.199773495e-12 | CV110: -1.253763303e-12 | CW110: -1.310182651e-12 | CX110: -1.36914087e-12 | CY110: -1.43075221e-12 | CZ110: -1.495136059e-12 | DA110: =DA42 -> -1.562417182e-12 | DB110: -1.632725955e-12 | DC110: -1.706198623e-12 | DD110: -1.782977561e-12 | DE110: -1.863211551e-12 | DF110: -1.947056071e-12 | DG110: -2.034673594e-12 | DH110: -2.126233906e-12 | DI110: -2.221914432e-12 | DJ110: -2.321900581e-12 | DK110: -2.426386107e-12 | DL110: -2.535573482e-12 | DM110: -2.649674289e-12 | DN110: -2.768909632e-12 | DO110: -2.893510565e-12 | DP110: -3.023718541e-12 | DQ110: -3.159785875e-12 | DR110: -3.301976239e-12 | DS110: -3.45056517e-12 | DT110: -3.605840603e-12 | DU110: -3.76810343e-12 | DV110: -3.937668084e-12 | DW110: -4.114863148e-12 | DX110: -4.30003199e-12
C111: Scheduled Subordinated Debt Repayment
C113: Volatility | E113: % | F113: 0
C114: Mean Reversion | E114: % | F114: 0
C116: Revenue with Sensitivity for Break-Even | E116: Euro | F116: =G116/100 -> 1 | G116: 100 | I116: =I10*$F$116 -> 0 | J116: 85.85 | K116: 86.7085 | L116: 87.575585 | M116: 88.45134085 | N116: 89.33585426 | O116: 90.2292128 | P116: 91.13150493 | Q116: 92.04281998 | R116: 92.96324818 | S116: 93.89288066 | T116: 94.83180947 | U116: 95.78012756 | V116: 96.73792884 | W116: 97.70530813 | X116: 98.68236121 | Y116: 99.66918482 | Z116: 100.6658767 | AA116: 101.6725354 | AB116: 102.6892608 | AC116: 103.7161534 | AD116: 104.7533149 | AE116: 105.8008481 | AF116: 106.8588566 | AG116: 107.9274451 | AH116: 109.0067196 | AI116: 110.0967868 | AJ116: 111.1977546 | AK116: 112.3097322 | AL116: 113.4328295 | AM116: 114.5671578 | AN116: 0 | AO116: =AO10*$F$116 -> 0 | AP116: 0 | AQ116: 0 | AR116: 0 | AS116: 0 | AT116: 0 | AU116: 0 | AV116: 0 | AW116: 0 | AX116: 0 | AY116: 0 | AZ116: 0 | BA116: 0 | BB116: 0 | BC116: 0 | BD116: 0 | BE116: 0 | BF116: 0 | BG116: 0 | BH116: 0 | BI116: 0 | BJ116: 0 | BK116: 0 | BL116: 0 | BM116: 0 | BN116: 0 | BO116: 0 | BP116: 0 | BQ116: 0 | BR116: 0 | BS116: 0 | BT116: 0 | BU116: =BU10*$F$116 -> 0 | BV116: 0 | BW116: 0 | BX116: 0 | BY116: 0 | BZ116: 0 | CA116: 0 | CB116: 0 | CC116: 0 | CD116: 0 | CE116: 0 | CF116: 0 | CG116: 0 | CH116: 0 | CI116: 0 | CJ116: 0 | CK116: 0 | CL116: 0 | CM116: 0 | CN116: 0 | CO116: 0 | CP116: 0 | CQ116: 0 | CR116: 0 | CS116: 0 | CT116: 0 | CU116: 0 | CV116: 0 | CW116: 0 | CX116: 0 | CY116: 0 | CZ116: 0 | DA116: =DA10*$F$116 -> 0 | DB116: 0 | DC116: 0 | DD116: 0 | DE116: 0 | DF116: 0 | DG116: 0 | DH116: 0 | DI116: 0 | DJ116: 0 | DK116: 0 | DL116: 0 | DM116: 0 | DN116: 0 | DO116: 0 | DP116: 0 | DQ116: 0 | DR116: 0 | DS116: 0 | DT116: 0 | DU116: 0 | DV116: 0 | DW116: 0 | DX116: 0
C118: Random Number - Probability | E118: % | I118: =RAND() -> 0.2747791338 | J118: =RAND() -> 0.1230730886 | K118: =RAND() -> 0.2904668185 | L118: 0.3646780451 | M118: 0.6664146173 | N118: 0.3776561659 | O118: 0.3086964457 | P118: 0.5030265329 | Q118: 0.481832651 | R118: 0.2397174016 | S118: 0.05045303718 | T118: 0.4481484896 | U118: 0.4183506765 | V118: 0.1832706814 | W118: 0.5742099867 | X118: 0.3254571068 | Y118: 0.6983500179 | Z118: 0.8431840356 | AA118: 0.630978885 | AB118: 0.9309711933 | AC118: 0.8494704402 | AD118: 0.9908924907 | AE118: 0.7971492484 | AF118: 0.6356391619 | AG118: 0.4255759264 | AH118: 0.5007984749 | AI118: 0.2996813776 | AJ118: 0.9196973212 | AK118: 0.5810704107 | AL118: 0.1882913909 | AM118: 0.9680051197 | AN118: 0.586471416 | AO118: 0.7736567468 | AP118: 0.6716416463 | AQ118: 0.02842330402 | AR118: 0.3904474871 | AS118: 0.7288423279 | AT118: 0.07982632668 | AU118: 0.9182012864 | AV118: 0.1507041535 | AW118: 0.7436284014 | AX118: 0.4069240428 | AY118: 0.8586786695 | AZ118: 0.5029407187 | BA118: 0.002781427062 | BB118: 0.2833841603 | BC118: 0.7082883767 | BD118: 0.1591697335 | BE118: 0.2892533541 | BF118: 0.2114321648 | BG118: 0.04544609006 | BH118: 0.1037091119 | BI118: 0.9884000788 | BJ118: 0.1111600667 | BK118: 0.1702919622 | BL118: 0.007005221114 | BM118: 0.6401552893 | BN118: 0.8345735114 | BO118: 0.4916375231 | BP118: 0.5131410028 | BQ118: 0.8780096144 | BR118: 0.2864216046 | BS118: 0.5261432218 | BT118: 0.3648210601 | BU118: 0.8237822888 | BV118: =RAND() -> 0.1906398642 | BW118: 0.5354854673 | BX118: 0.5809145608 | BY118: 0.6167597807 | BZ118: 0.3412742669 | CA118: 0.08771548267 | CB118: 0.8270848296 | CC118: 0.4126403023 | CD118: 0.3762464275 | CE118: 0.6293459586 | CF118: 0.7899690118 | CG118: 0.1266012178 | CH118: 0.6436442403 | CI118: 0.8467156376 | CJ118: 0.0113747519 | CK118: 0.9005053376 | CL118: 0.1737370512 | CM118: 0.1639435744 | CN118: 0.2416832744 | CO118: 0.2800499177 | CP118: 0.5857558027 | CQ118: 0.9540742548 | CR118: 0.6444709115 | CS118: 0.1793633012 | CT118: 0.9215920663 | CU118: 0.9973281516 | CV118: 0.3786920632 | CW118: 0.6381861324 | CX118: 0.5451021698 | CY118: 0.3104686687 | CZ118: 0.7139462549 | DA118: 0.5577439319 | DB118: 0.332436735 | DC118: 0.6870462331 | DD118: 0.3554562127 | DE118: 0.8150442079 | DF118: 0.6923125197 | DG118: 0.1665813758 | DH118: 0.9442344361 | DI118: 0.1096798944 | DJ118: 0.3994235545 | DK118: 0.7094070512 | DL118: 0.806013196 | DM118: 0.9491616445 | DN118: 0.05303334603 | DO118: 0.3489082662 | DP118: 0.08601280103 | DQ118: 0.3451797957 | DR118: 0.6869645603 | DS118: 0.03444096053 | DT118: 0.3012521785 | DU118: 0.3975755654 | DV118: 0.4546360711 | DW118: 0.2906194811 | DX118: 0.9480816764
C119: Cash Flow Change from Normal Distribution | E119: Factor | I119: =NORMSINV(I118) -> -0.5984221833 | J119: =NORMSINV(J118) -> -1.159760876 | K119: -0.5520214796 | L119: -0.3459822023 | M119: 0.4300341971 | N119: -0.3116423678 | O119: -0.4995486943 | P119: 0.00758646583 | Q119: -0.04555454162 | R119: -0.707211902 | S119: -1.640476771 | T119: -0.1303405755 | U119: -0.2061146531 | V119: -0.9029708561 | W119: 0.187102808 | X119: -0.452492513 | Y119: 0.5196608702 | Z119: 1.007630401 | AA119: 0.334447064 | AB119: 1.483063225 | AC119: 1.034164815 | AD119: 2.361218017 | AE119: 0.8314818042 | AF119: 0.3468264883 | AG119: -0.187648948 | AH119: 0.002001481187 | AI119: -0.5253171241 | AJ119: 1.403038503 | AK119: 0.204632606 | AL119: -0.884210147 | AM119: 1.852251193 | AN119: 0.2184773965 | AO119: 0.7509437543 | AP119: 0.4444507794 | AQ119: -1.904488384 | AR119: -0.2781529191 | AS119: 0.6093154863 | AT119: -1.40624073 | AU119: 1.393073958 | AV119: -1.033418042 | AW119: 0.6545722473 | AX119: -0.2354646849 | AY119: 1.074401744 | AZ119: 0.007371355495 | BA119: -2.772494021 | BB119: -0.5728174234 | BC119: 0.5483913033 | BD119: -0.9978760496 | BE119: -0.5555672747 | BF119: -0.8014618357 | BG119: -1.690710122 | BH119: -1.260696477 | BI119: 2.270127595 | BJ119: -1.220381906 | BK119: -0.953012131 | BL119: -2.45699555 | BM119: 0.3588739056 | BN119: 0.9723972145 | BO119: -0.02096315638 | BP119: 0.03294556801 | BQ119: 1.16509443 | BR119: -0.563869117 | BS119: 0.06557831216 | BT119: -0.3456016308 | BU119: 0.9298757453 | BV119: =NORMSINV(BV118) -> -0.8755407859 | BW119: 0.08906649395 | BX119: 0.2042336988 | BY119: 0.2969817549 | BZ119: -0.4089879097 | CA119: -1.354957917 | CB119: 0.9427078817 | CC119: -0.2207583382 | CD119: -0.3153540446 | CE119: 0.3301216 | CF119: 0.8063137288 | CG119: -1.142605465 | CH119: 0.3682168872 | CI119: 1.022448396 | CJ119: -2.277615372 | CK119: 1.284436339 | CL119: -0.9394999801 | CM119: -0.9783785183 | CN119: -0.7008981985 | CO119: -0.5826932242 | CP119: 0.2166406618 | CQ119: 1.685710931 | CR119: 0.3704352985 | CS119: -0.9177942324 | CT119: 1.415862154 | CU119: 2.785550183 | CV119: -0.3089177077 | CW119: 0.3536145946 | CX119: 0.1132962877 | CY119: -0.494522334 | CZ119: 0.5649504165 | DA119: 0.1452517149 | DB119: -0.4331945059 | DC119: 0.4874950727 | DD119: -0.3706309514 | DE119: 0.8966389926 | DF119: 0.5024159516 | DG119: -0.9677629895 | DH119: 1.591348676 | DI119: -1.228232268 | DJ119: -0.2548394439 | DK119: 0.55165332 | DL119: 0.8632980648 | DM119: 1.636778733 | DN119: -1.616127766 | DO119: -0.3882695992 | DP119: -1.36572402 | DQ119: -0.3983671194 | DR119: 0.4872645317 | DS119: -1.819193455 | DT119: -0.5208025062 | DU119: -0.259627488 | DV119: -0.1139566696 | DW119: -0.551575885 | DX119: 1.626531457
C120: Cash Flow Change After Volatilty | E120: Factor | F120: =F113 -> 0 | I120: =I119*$F$120 -> 0 | J120: =J119*$F$120 -> 0 | K120: 0 | L120: 0 | M120: 0 | N120: 0 | O120: 0 | P120: 0 | Q120: 0 | R120: 0 | S120: 0 | T120: 0 | U120: 0 | V120: 0 | W120: 0 | X120: 0 | Y120: 0 | Z120: 0 | AA120: 0 | AB120: 0 | AC120: 0 | AD120: 0 | AE120: 0 | AF120: 0 | AG120: 0 | AH120: 0 | AI120: 0 | AJ120: 0 | AK120: 0 | AL120: 0 | AM120: 0 | AN120: 0 | AO120: 0 | AP120: 0 | AQ120: 0 | AR120: 0 | AS120: 0 | AT120: 0 | AU120: 0 | AV120: 0 | AW120: 0 | AX120: 0 | AY120: 0 | AZ120: 0 | BA120: 0 | BB120: 0 | BC120: 0 | BD120: 0 | BE120: 0 | BF120: 0 | BG120: 0 | BH120: 0 | BI120: 0 | BJ120: 0 | BK120: 0 | BL120: 0 | BM120: 0 | BN120: 0 | BO120: 0 | BP120: 0 | BQ120: 0 | BR120: 0 | BS120: 0 | BT120: 0 | BU120: 0 | BV120: =BV119*$F$120 -> 0 | BW120: 0 | BX120: 0 | BY120: 0 | BZ120: 0 | CA120: 0 | CB120: 0 | CC120: 0 | CD120: 0 | CE120: 0 | CF120: 0 | CG120: 0 | CH120: 0 | CI120: 0 | CJ120: 0 | CK120: 0 | CL120: 0 | CM120: 0 | CN120: 0 | CO120: 0 | CP120: 0 | CQ120: 0 | CR120: 0 | CS120: 0 | CT120: 0 | CU120: 0 | CV120: 0 | CW120: 0 | CX120: 0 | CY120: 0 | CZ120: 0 | DA120: 0 | DB120: 0 | DC120: 0 | DD120: 0 | DE120: 0 | DF120: 0 | DG120: 0 | DH120: 0 | DI120: 0 | DJ120: 0 | DK120: 0 | DL120: 0 | DM120: 0 | DN120: 0 | DO120: 0 | DP120: 0 | DQ120: 0 | DR120: 0 | DS120: 0 | DT120: 0 | DU120: 0 | DV120: 0 | DW120: 0 | DX120: 0
C122: Last Period | E122: Index | I122: =H125 -> 1 | J122: =I125 -> 1 | K122: 1 | L122: 1 | M122: 1 | N122: 1 | O122: 1 | P122: 1 | Q122: 1 | R122: 1 | S122: 1 | T122: 1 | U122: 1 | V122: 1 | W122: 1 | X122: 1 | Y122: 1 | Z122: 1 | AA122: 1 | AB122: 1 | AC122: 1 | AD122: 1 | AE122: 1 | AF122: 1 | AG122: 1 | AH122: 1 | AI122: 1 | AJ122: 1 | AK122: 1 | AL122: 1 | AM122: 1 | AN122: 1 | AO122: 1 | AP122: 1 | AQ122: 1 | AR122: 1 | AS122: 1 | AT122: 1 | AU122: 1 | AV122: 1 | AW122: 1 | AX122: 1 | AY122: 1 | AZ122: 1 | BA122: 1 | BB122: 1 | BC122: 1 | BD122: 1 | BE122: 1 | BF122: 1 | BG122: 1 | BH122: 1 | BI122: 1 | BJ122: 1 | BK122: 1 | BL122: 1 | BM122: 1 | BN122: 1 | BO122: 1 | BP122: 1 | BQ122: 1 | BR122: 1 | BS122: 1 | BT122: 1 | BU122: 1 | BV122: =BU125 -> 1 | BW122: 1 | BX122: 1 | BY122: 1 | BZ122: 1 | CA122: 1 | CB122: 1 | CC122: 1 | CD122: 1 | CE122: 1 | CF122: 1 | CG122: 1 | CH122: 1 | CI122: 1 | CJ122: 1 | CK122: 1 | CL122: 1 | CM122: 1 | CN122: 1 | CO122: 1 | CP122: 1 | CQ122: 1 | CR122: 1 | CS122: 1 | CT122: 1 | CU122: 1 | CV122: 1 | CW122: 1 | CX122: 1 | CY122: 1 | CZ122: 1 | DA122: 1 | DB122: 1 | DC122: 1 | DD122: 1 | DE122: 1 | DF122: 1 | DG122: 1 | DH122: 1 | DI122: 1 | DJ122: 1 | DK122: 1 | DL122: 1 | DM122: 1 | DN122: 1 | DO122: 1 | DP122: 1 | DQ122: 1 | DR122: 1 | DS122: 1 | DT122: 1 | DU122: 1 | DV122: 1 | DW122: 1 | DX122: 1
C123: Mean Reversion Adjustment | E123: Index | F123: =F114 -> 0 | J123: =(J122-1)*$F$123 -> 0 | K123: =(K122-1)*$F$123 -> 0 | L123: 0 | M123: 0 | N123: 0 | O123: 0 | P123: 0 | Q123: 0 | R123: 0 | S123: 0 | T123: 0 | U123: 0 | V123: 0 | W123: 0 | X123: 0 | Y123: 0 | Z123: 0 | AA123: 0 | AB123: 0 | AC123: 0 | AD123: 0 | AE123: 0 | AF123: 0 | AG123: 0 | AH123: 0 | AI123: 0 | AJ123: 0 | AK123: 0 | AL123: 0 | AM123: 0 | AN123: 0 | AO123: 0 | AP123: 0 | AQ123: 0 | AR123: 0 | AS123: 0 | AT123: 0 | AU123: 0 | AV123: 0 | AW123: 0 | AX123: 0 | AY123: 0 | AZ123: 0 | BA123: 0 | BB123: 0 | BC123: 0 | BD123: 0 | BE123: 0 | BF123: 0 | BG123: 0 | BH123: 0 | BI123: 0 | BJ123: 0 | BK123: 0 | BL123: 0 | BM123: 0 | BN123: 0 | BO123: 0 | BP123: 0 | BQ123: 0 | BR123: 0 | BS123: 0 | BT123: 0 | BU123: 0 | BV123: 0 | BW123: =(BW122-1)*$F$123 -> 0 | BX123: 0 | BY123: 0 | BZ123: 0 | CA123: 0 | CB123: 0 | CC123: 0 | CD123: 0 | CE123: 0 | CF123: 0 | CG123: 0 | CH123: 0 | CI123: 0 | CJ123: 0 | CK123: 0 | CL123: 0 | CM123: 0 | CN123: 0 | CO123: 0 | CP123: 0 | CQ123: 0 | CR123: 0 | CS123: 0 | CT123: 0 | CU123: 0 | CV123: 0 | CW123: 0 | CX123: 0 | CY123: 0 | CZ123: 0 | DA123: 0 | DB123: 0 | DC123: 0 | DD123: 0 | DE123: 0 | DF123: 0 | DG123: 0 | DH123: 0 | DI123: 0 | DJ123: 0 | DK123: 0 | DL123: 0 | DM123: 0 | DN123: 0 | DO123: 0 | DP123: 0 | DQ123: 0 | DR123: 0 | DS123: 0 | DT123: 0 | DU123: 0 | DV123: 0 | DW123: 0 | DX123: 0
C125: Random Index | E125: Index | F125: =F113 -> 0 | G125: =F114 -> 0 | H125: =AVERAGE(I125:DX125) -> 1 | I125: 1 | J125: =I125*(1+J120)-J123 -> 1 | K125: =J125*(1+K120)-K123 -> 1 | L125: 1 | M125: 1 | N125: 1 | O125: 1 | P125: 1 | Q125: 1 | R125: 1 | S125: 1 | T125: 1 | U125: 1 | V125: 1 | W125: 1 | X125: 1 | Y125: 1 | Z125: 1 | AA125: 1 | AB125: 1 | AC125: 1 | AD125: 1 | AE125: 1 | AF125: 1 | AG125: 1 | AH125: 1 | AI125: 1 | AJ125: 1 | AK125: 1 | AL125: 1 | AM125: 1 | AN125: 1 | AO125: 1 | AP125: 1 | AQ125: 1 | AR125: 1 | AS125: 1 | AT125: 1 | AU125: 1 | AV125: 1 | AW125: 1 | AX125: 1 | AY125: 1 | AZ125: 1 | BA125: 1 | BB125: 1 | BC125: 1 | BD125: 1 | BE125: 1 | BF125: 1 | BG125: 1 | BH125: 1 | BI125: 1 | BJ125: 1 | BK125: 1 | BL125: 1 | BM125: 1 | BN125: 1 | BO125: 1 | BP125: 1 | BQ125: 1 | BR125: 1 | BS125: 1 | BT125: 1 | BU125: 1 | BV125: 1 | BW125: =BV125*(1+BW120)-BW123 -> 1 | BX125: 1 | BY125: 1 | BZ125: 1 | CA125: 1 | CB125: 1 | CC125: 1 | CD125: 1 | CE125: 1 | CF125: 1 | CG125: 1 | CH125: 1 | CI125: 1 | CJ125: 1 | CK125: 1 | CL125: 1 | CM125: 1 | CN125: 1 | CO125: 1 | CP125: 1 | CQ125: 1 | CR125: 1 | CS125: 1 | CT125: 1 | CU125: 1 | CV125: 1 | CW125: 1 | CX125: 1 | CY125: 1 | CZ125: 1 | DA125: 1 | DB125: 1 | DC125: 1 | DD125: 1 | DE125: 1 | DF125: 1 | DG125: 1 | DH125: 1 | DI125: 1 | DJ125: 1 | DK125: 1 | DL125: 1 | DM125: 1 | DN125: 1 | DO125: 1 | DP125: 1 | DQ125: 1 | DR125: 1 | DS125: 1 | DT125: 1 | DU125: 1 | DV125: 1 | DW125: 1 | DX125: 1
C126: Adjusted Revenue | E126: Euro | I126: =I116*I125 -> 0 | J126: =J116*J125 -> 85.85 | K126: 86.7085 | L126: 87.575585 | M126: 88.45134085 | N126: 89.33585426 | O126: 90.2292128 | P126: 91.13150493 | Q126: 92.04281998 | R126: 92.96324818 | S126: 93.89288066 | T126: 94.83180947 | U126: 95.78012756 | V126: 96.73792884 | W126: 97.70530813 | X126: 98.68236121 | Y126: 99.66918482 | Z126: 100.6658767 | AA126: 101.6725354 | AB126: 102.6892608 | AC126: 103.7161534 | AD126: 104.7533149 | AE126: 105.8008481 | AF126: 106.8588566 | AG126: 107.9274451 | AH126: 109.0067196 | AI126: 110.0967868 | AJ126: 111.1977546 | AK126: 112.3097322 | AL126: 113.4328295 | AM126: 114.5671578 | AN126: 0 | AO126: 0 | AP126: 0 | AQ126: 0 | AR126: 0 | AS126: 0 | AT126: 0 | AU126: 0 | AV126: 0 | AW126: 0 | AX126: 0 | AY126: 0 | AZ126: 0 | BA126: 0 | BB126: 0 | BC126: 0 | BD126: 0 | BE126: 0 | BF126: 0 | BG126: 0 | BH126: 0 | BI126: 0 | BJ126: 0 | BK126: 0 | BL126: 0 | BM126: 0 | BN126: 0 | BO126: 0 | BP126: 0 | BQ126: 0 | BR126: 0 | BS126: 0 | BT126: 0 | BU126: 0 | BV126: =BV116*BV125 -> 0 | BW126: 0 | BX126: 0 | BY126: 0 | BZ126: 0 | CA126: 0 | CB126: 0 | CC126: 0 | CD126: 0 | CE126: 0 | CF126: 0 | CG126: 0 | CH126: 0 | CI126: 0 | CJ126: 0 | CK126: 0 | CL126: 0 | CM126: 0 | CN126: 0 | CO126: 0 | CP126: 0 | CQ126: 0 | CR126: 0 | CS126: 0 | CT126: 0 | CU126: 0 | CV126: 0 | CW126: 0 | CX126: 0 | CY126: 0 | CZ126: 0 | DA126: 0 | DB126: 0 | DC126: 0 | DD126: 0 | DE126: 0 | DF126: 0 | DG126: 0 | DH126: 0 | DI126: 0 | DJ126: 0 | DK126: 0 | DL126: 0 | DM126: 0 | DN126: 0 | DO126: 0 | DP126: 0 | DQ126: 0 | DR126: 0 | DS126: 0 | DT126: 0 | DU126: 0 | DV126: 0 | DW126: 0 | DX126: 0
C127: Operating Expense | E127: Euro | I127: =I11 -> 0 | J127: 10.1 | K127: 10.201 | L127: 10.30301 | M127: 10.4060401 | N127: 10.5101005 | O127: 10.61520151 | P127: 10.72135352 | Q127: 10.82856706 | R127: 10.93685273 | S127: 11.04622125 | T127: 11.15668347 | U127: 11.2682503 | V127: 11.3809328 | W127: 11.49474213 | X127: 11.60968955 | Y127: 11.72578645 | Z127: 11.84304431 | AA127: 11.96147476 | AB127: 12.0810895 | AC127: 12.2019004 | AD127: 12.3239194 | AE127: 12.4471586 | AF127: 12.57163018 | AG127: 12.69734649 | AH127: 12.82431995 | AI127: 12.95256315 | AJ127: 13.08208878 | AK127: 13.21290967 | AL127: 13.34503877 | AM127: 13.47848915 | AN127: 0 | AO127: =AO11 -> 0 | AP127: 0 | AQ127: 0 | AR127: 0 | AS127: 0 | AT127: 0 | AU127: 0 | AV127: 0 | AW127: 0 | AX127: 0 | AY127: 0 | AZ127: 0 | BA127: 0 | BB127: 0 | BC127: 0 | BD127: 0 | BE127: 0 | BF127: 0 | BG127: 0 | BH127: 0 | BI127: 0 | BJ127: 0 | BK127: 0 | BL127: 0 | BM127: 0 | BN127: 0 | BO127: 0 | BP127: 0 | BQ127: 0 | BR127: 0 | BS127: 0 | BT127: 0 | BU127: =BU11 -> 0 | BV127: 0 | BW127: 0 | BX127: 0 | BY127: 0 | BZ127: 0 | CA127: 0 | CB127: 0 | CC127: 0 | CD127: 0 | CE127: 0 | CF127: 0 | CG127: 0 | CH127: 0 | CI127: 0 | CJ127: 0 | CK127: 0 | CL127: 0 | CM127: 0 | CN127: 0 | CO127: 0 | CP127: 0 | CQ127: 0 | CR127: 0 | CS127: 0 | CT127: 0 | CU127: 0 | CV127: 0 | CW127: 0 | CX127: 0 | CY127: 0 | CZ127: 0 | DA127: =DA11 -> 0 | DB127: 0 | DC127: 0 | DD127: 0 | DE127: 0 | DF127: 0 | DG127: 0 | DH127: 0 | DI127: 0 | DJ127: 0 | DK127: 0 | DL127: 0 | DM127: 0 | DN127: 0 | DO127: 0 | DP127: 0 | DQ127: 0 | DR127: 0 | DS127: 0 | DT127: 0 | DU127: 0 | DV127: 0 | DW127: 0 | DX127: 0
C128: Adjusted EBITDA | E128: Euro | I128: =I126-I127 -> 0 | J128: =J126-J127 -> 75.75 | K128: 76.5075 | L128: 77.272575 | M128: 78.04530075 | N128: 78.82575376 | O128: 79.6140113 | P128: 80.41015141 | Q128: 81.21425292 | R128: 82.02639545 | S128: 82.84665941 | T128: 83.675126 | U128: 84.51187726 | V128: 85.35699603 | W128: 86.21056599 | X128: 87.07267165 | Y128: 87.94339837 | Z128: 88.82283235 | AA128: 89.71106068 | AB128: 90.60817128 | AC128: 91.514253 | AD128: 92.42939553 | AE128: 93.35368948 | AF128: 94.28722638 | AG128: 95.23009864 | AH128: 96.18239963 | AI128: 97.14422362 | AJ128: 98.11566586 | AK128: 99.09682252 | AL128: 100.0877907 | AM128: 101.0886686 | AN128: 0 | AO128: 0 | AP128: 0 | AQ128: 0 | AR128: 0 | AS128: 0 | AT128: 0 | AU128: 0 | AV128: 0 | AW128: 0 | AX128: 0 | AY128: 0 | AZ128: 0 | BA128: 0 | BB128: 0 | BC128: 0 | BD128: 0 | BE128: 0 | BF128: 0 | BG128: 0 | BH128: 0 | BI128: 0 | BJ128: 0 | BK128: 0 | BL128: 0 | BM128: 0 | BN128: 0 | BO128: 0 | BP128: 0 | BQ128: 0 | BR128: 0 | BS128: 0 | BT128: 0 | BU128: 0 | BV128: =BV126-BV127 -> 0 | BW128: 0 | BX128: 0 | BY128: 0 | BZ128: 0 | CA128: 0 | CB128: 0 | CC128: 0 | CD128: 0 | CE128: 0 | CF128: 0 | CG128: 0 | CH128: 0 | CI128: 0 | CJ128: 0 | CK128: 0 | CL128: 0 | CM128: 0 | CN128: 0 | CO128: 0 | CP128: 0 | CQ128: 0 | CR128: 0 | CS128: 0 | CT128: 0 | CU128: 0 | CV128: 0 | CW128: 0 | CX128: 0 | CY128: 0 | CZ128: 0 | DA128: 0 | DB128: 0 | DC128: 0 | DD128: 0 | DE128: 0 | DF128: 0 | DG128: 0 | DH128: 0 | DI128: 0 | DJ128: 0 | DK128: 0 | DL128: 0 | DM128: 0 | DN128: 0 | DO128: 0 | DP128: 0 | DQ128: 0 | DR128: 0 | DS128: 0 | DT128: 0 | DU128: 0 | DV128: 0 | DW128: 0 | DX128: 0
B130: Adjusted Senior Debt Schedule
C132: Base Senior Debt
D133: Opening Debt | E133: Euro | I133: =H137 -> 0 | J133: =I137 -> 611.0173244 | K133: 595.2273897 | L133: 578.2940508 | M133: 560.161526 | N133: 540.7714799 | O133: 520.0629087 | P133: 497.9720188 | Q133: 474.4321017 | R133: 449.3734018 | S133: 422.7229789 | T133: 394.4045647 | U133: 364.3384124 | V133: 332.4411397 | W133: 298.6255646 | X133: 262.8005345 | Y133: 224.8707462 | Z133: 184.7365592 | AA133: 142.2938002 | AB133: 97.43355796 | AC133: 50.0419702 | AD133: 1.278976924e-12 | AE133: 1.336530886e-12 | AF133: 1.396674776e-12 | AG133: 1.459525141e-12 | AH133: 1.525203772e-12 | AI133: 1.593837942e-12 | AJ133: 1.665560649e-12 | AK133: 1.740510878e-12 | AL133: 1.818833868e-12 | AM133: 1.900681392e-12 | AN133: 1.986212055e-12 | AO133: 2.075591597e-12 | AP133: 2.168993219e-12 | AQ133: 2.266597914e-12 | AR133: 2.36859482e-12 | AS133: 2.475181587e-12 | AT133: 2.586564758e-12 | AU133: 2.702960172e-12 | AV133: 2.82459338e-12 | AW133: 2.951700082e-12 | AX133: 3.084526586e-12 | AY133: 3.223330282e-12 | AZ133: 3.368380145e-12 | BA133: 3.519957252e-12 | BB133: 3.678355328e-12 | BC133: 3.843881318e-12 | BD133: 4.016855977e-12 | BE133: 4.197614496e-12 | BF133: 4.386507148e-12 | BG133: 4.58389997e-12 | BH133: 4.790175468e-12 | BI133: 5.005733365e-12 | BJ133: 5.230991366e-12 | BK133: 5.466385977e-12 | BL133: 5.712373346e-12 | BM133: 5.969430147e-12 | BN133: 6.238054504e-12 | BO133: 6.518766956e-12 | BP133: 6.812111469e-12 | BQ133: 7.118656485e-12 | BR133: 7.438996027e-12 | BS133: 7.773750849e-12 | BT133: 8.123569637e-12 | BU133: 8.48913027e-12 | BV133: =BU137 -> 8.871141133e-12 | BW133: 9.270342483e-12 | BX133: 9.687507895e-12 | BY133: 1.012344575e-11 | BZ133: 1.057900081e-11 | CA133: 1.105505585e-11 | CB133: 1.155253336e-11 | CC133: 1.207239736e-11 | CD133: 1.261565524e-11 | CE133: 1.318335973e-11 | CF133: 1.377661091e-11 | CG133: 1.439655841e-11 | CH133: 1.504440353e-11 | CI133: 1.572140169e-11 | CJ133: 1.642886477e-11 | CK133: 1.716816368e-11 | CL133: 1.794073105e-11 | CM133: 1.874806395e-11 | CN133: 1.959172682e-11 | CO133: 2.047335453e-11 | CP133: 2.139465549e-11 | CQ133: 2.235741498e-11 | CR133: 2.336349866e-11 | CS133: 2.44148561e-11 | CT133: 2.551352462e-11 | CU133: 2.666163323e-11 | CV133: 2.786140672e-11 | CW133: 2.911517003e-11 | CX133: 3.042535268e-11 | CY133: 3.179449355e-11 | CZ133: 3.322524576e-11 | DA133: 3.472038182e-11 | DB133: 3.6282799e-11 | DC133: 3.791552495e-11 | DD133: 3.962172358e-11 | DE133: 4.140470114e-11 | DF133: 4.326791269e-11 | DG133: 4.521496876e-11 | DH133: 4.724964235e-11 | DI133: 4.937587626e-11 | DJ133: 5.159779069e-11 | DK133: 5.391969127e-11 | DL133: 5.634607738e-11 | DM133: 5.888165086e-11 | DN133: 6.153132515e-11 | DO133: 6.430023478e-11 | DP133: 6.719374535e-11 | DQ133: 7.021746389e-11 | DR133: 7.337724976e-11 | DS133: 7.6679226e-11 | DT133: 8.012979117e-11 | DU133: 8.373563178e-11 | DV133: 8.750373521e-11 | DW133: 9.144140329e-11 | DX133: 9.555626644e-11
D134: Add: Debt Issue | E134: Euro | I134: =I41 -> 611.0173244 | J134: 0 | K134: 0 | L134: 0 | M134: 0 | N134: 0 | O134: 0 | P134: 0 | Q134: 0 | R134: 0 | S134: 0 | T134: 0 | U134: 0 | V134: 0 | W134: 0 | X134: 0 | Y134: 0 | Z134: 0 | AA134: 0 | AB134: 0 | AC134: 0 | AD134: 0 | AE134: 0 | AF134: 0 | AG134: 0 | AH134: 0 | AI134: 0 | AJ134: 0 | AK134: 0 | AL134: 0 | AM134: 0 | AN134: 0 | AO134: =AO41 -> 0 | AP134: 0 | AQ134: 0 | AR134: 0 | AS134: 0 | AT134: 0 | AU134: 0 | AV134: 0 | AW134: 0 | AX134: 0 | AY134: 0 | AZ134: 0 | BA134: 0 | BB134: 0 | BC134: 0 | BD134: 0 | BE134: 0 | BF134: 0 | BG134: 0 | BH134: 0 | BI134: 0 | BJ134: 0 | BK134: 0 | BL134: 0 | BM134: 0 | BN134: 0 | BO134: 0 | BP134: 0 | BQ134: 0 | BR134: 0 | BS134: 0 | BT134: 0 | BU134: =BU41 -> 0 | BV134: 0 | BW134: 0 | BX134: 0 | BY134: 0 | BZ134: 0 | CA134: 0 | CB134: 0 | CC134: 0 | CD134: 0 | CE134: 0 | CF134: 0 | CG134: 0 | CH134: 0 | CI134: 0 | CJ134: 0 | CK134: 0 | CL134: 0 | CM134: 0 | CN134: 0 | CO134: 0 | CP134: 0 | CQ134: 0 | CR134: 0 | CS134: 0 | CT134: 0 | CU134: 0 | CV134: 0 | CW134: 0 | CX134: 0 | CY134: 0 | CZ134: 0 | DA134: =DA41 -> 0 | DB134: 0 | DC134: 0 | DD134: 0 | DE134: 0 | DF134: 0 | DG134: 0 | DH134: 0 | DI134: 0 | DJ134: 0 | DK134: 0 | DL134: 0 | DM134: 0 | DN134: 0 | DO134: 0 | DP134: 0 | DQ134: 0 | DR134: 0 | DS134: 0 | DT134: 0 | DU134: 0 | DV134: 0 | DW134: 0 | DX134: 0
D135: Less: Scheduled | E135: Euro | I135: =I86 -> 0 | J135: 15.78993469 | K135: 16.93333889 | L135: 18.13252486 | M135: 19.39004605 | N135: 20.70857126 | O135: 22.09088985 | P135: 23.5399171 | Q135: 25.05869995 | R135: 26.65042289 | S135: 28.31841418 | T135: 30.0661523 | U135: 31.89727273 | V135: 33.81557502 | W135: 35.82503016 | X135: 37.92978832 | Y135: 40.13418692 | Z135: 42.44275904 | AA135: 44.86024223 | AB135: 47.39158777 | AC135: 50.0419702 | AD135: -5.75539616e-14 | AE135: -6.014388987e-14 | AF135: -6.285036491e-14 | AG135: -6.567863133e-14 | AH135: -6.863416974e-14 | AI135: -7.172270738e-14 | AJ135: -7.495022921e-14 | AK135: -7.832298953e-14 | AL135: -8.184752406e-14 | AM135: -8.553066264e-14 | AN135: -8.937954246e-14 | AO135: =AO86 -> -9.340162187e-14 | AP135: -9.760469485e-14 | AQ135: -1.019969061e-13 | AR135: -1.065867669e-13 | AS135: -1.113831714e-13 | AT135: -1.163954141e-13 | AU135: -1.216332078e-13 | AV135: -1.271067021e-13 | AW135: -1.328265037e-13 | AX135: -1.388036964e-13 | AY135: -1.450498627e-13 | AZ135: -1.515771065e-13 | BA135: -1.583980763e-13 | BB135: -1.655259898e-13 | BC135: -1.729746593e-13 | BD135: -1.80758519e-13 | BE135: -1.888926523e-13 | BF135: -1.973928217e-13 | BG135: -2.062754986e-13 | BH135: -2.155578961e-13 | BI135: -2.252580014e-13 | BJ135: -2.353946115e-13 | BK135: -2.45987369e-13 | BL135: -2.570568006e-13 | BM135: -2.686243566e-13 | BN135: -2.807124527e-13 | BO135: -2.93344513e-13 | BP135: -3.065450161e-13 | BQ135: -3.203395418e-13 | BR135: -3.347548212e-13 | BS135: -3.498187882e-13 | BT135: -3.655606337e-13 | BU135: =BU86 -> -3.820108622e-13 | BV135: -3.99201351e-13 | BW135: -4.171654118e-13 | BX135: -4.359378553e-13 | BY135: -4.555550588e-13 | BZ135: -4.760550364e-13 | CA135: -4.974775131e-13 | CB135: -5.198640011e-13 | CC135: -5.432578812e-13 | CD135: -5.677044859e-13 | CE135: -5.932511877e-13 | CF135: -6.199474912e-13 | CG135: -6.478451283e-13 | CH135: -6.76998159e-13 | CI135: -7.074630762e-13 | CJ135: -7.392989146e-13 | CK135: -7.725673658e-13 | CL135: -8.073328972e-13 | CM135: -8.436628776e-13 | CN135: -8.816277071e-13 | CO135: -9.213009539e-13 | CP135: -9.627594969e-13 | CQ135: -1.006083674e-12 | CR135: -1.05135744e-12 | CS135: -1.098668524e-12 | CT135: -1.148108608e-12 | CU135: -1.199773495e-12 | CV135: -1.253763303e-12 | CW135: -1.310182651e-12 | CX135: -1.36914087e-12 | CY135: -1.43075221e-12 | CZ135: -1.495136059e-12 | DA135: =DA86 -> -1.562417182e-12 | DB135: -1.632725955e-12 | DC135: -1.706198623e-12 | DD135: -1.782977561e-12 | DE135: -1.863211551e-12 | DF135: -1.947056071e-12 | DG135: -2.034673594e-12 | DH135: -2.126233906e-12 | DI135: -2.221914432e-12 | DJ135: -2.321900581e-12 | DK135: -2.426386107e-12 | DL135: -2.535573482e-12 | DM135: -2.649674289e-12 | DN135: -2.768909632e-12 | DO135: -2.893510565e-12 | DP135: -3.023718541e-12 | DQ135: -3.159785875e-12 | DR135: -3.301976239e-12 | DS135: -3.45056517e-12 | DT135: -3.605840603e-12 | DU135: -3.76810343e-12 | DV135: -3.937668084e-12 | DW135: -4.114863148e-12 | DX135: -4.30003199e-12
D136: Less: Cash Sweep | E136: Euro
D137: Closing Balance | E137: Euro | I137: =I133+I134-I135-I136 -> 611.0173244 | J137: =J133+J134-J135-J136 -> 595.2273897 | K137: 578.2940508 | L137: 560.161526 | M137: 540.7714799 | N137: 520.0629087 | O137: 497.9720188 | P137: 474.4321017 | Q137: 449.3734018 | R137: 422.7229789 | S137: 394.4045647 | T137: 364.3384124 | U137: 332.4411397 | V137: 298.6255646 | W137: 262.8005345 | X137: 224.8707462 | Y137: 184.7365592 | Z137: 142.2938002 | AA137: 97.43355796 | AB137: 50.0419702 | AC137: 1.278976924e-12 | AD137: 1.336530886e-12 | AE137: 1.396674776e-12 | AF137: 1.459525141e-12 | AG137: 1.525203772e-12 | AH137: 1.593837942e-12 | AI137: 1.665560649e-12 | AJ137: 1.740510878e-12 | AK137: 1.818833868e-12 | AL137: 1.900681392e-12 | AM137: 1.986212055e-12 | AN137: 2.075591597e-12 | AO137: 2.168993219e-12 | AP137: 2.266597914e-12 | AQ137: 2.36859482e-12 | AR137: 2.475181587e-12 | AS137: 2.586564758e-12 | AT137: 2.702960172e-12 | AU137: 2.82459338e-12 | AV137: 2.951700082e-12 | AW137: 3.084526586e-12 | AX137: 3.223330282e-12 | AY137: 3.368380145e-12 | AZ137: 3.519957252e-12 | BA137: 3.678355328e-12 | BB137: 3.843881318e-12 | BC137: 4.016855977e-12 | BD137: 4.197614496e-12 | BE137: 4.386507148e-12 | BF137: 4.58389997e-12 | BG137: 4.790175468e-12 | BH137: 5.005733365e-12 | BI137: 5.230991366e-12 | BJ137: 5.466385977e-12 | BK137: 5.712373346e-12 | BL137: 5.969430147e-12 | BM137: 6.238054504e-12 | BN137: 6.518766956e-12 | BO137: 6.812111469e-12 | BP137: 7.118656485e-12 | BQ137: 7.438996027e-12 | BR137: 7.773750849e-12 | BS137: 8.123569637e-12 | BT137: 8.48913027e-12 | BU137: 8.871141133e-12 | BV137: =BV133+BV134-BV135-BV136 -> 9.270342483e-12 | BW137: 9.687507895e-12 | BX137: 1.012344575e-11 | BY137: 1.057900081e-11 | BZ137: 1.105505585e-11 | CA137: 1.155253336e-11 | CB137: 1.207239736e-11 | CC137: 1.261565524e-11 | CD137: 1.318335973e-11 | CE137: 1.377661091e-11 | CF137: 1.439655841e-11 | CG137: 1.504440353e-11 | CH137: 1.572140169e-11 | CI137: 1.642886477e-11 | CJ137: 1.716816368e-11 | CK137: 1.794073105e-11 | CL137: 1.874806395e-11 | CM137: 1.959172682e-11 | CN137: 2.047335453e-11 | CO137: 2.139465549e-11 | CP137: 2.235741498e-11 | CQ137: 2.336349866e-11 | CR137: 2.44148561e-11 | CS137: 2.551352462e-11 | CT137: 2.666163323e-11 | CU137: 2.786140672e-11 | CV137: 2.911517003e-11 | CW137: 3.042535268e-11 | CX137: 3.179449355e-11 | CY137: 3.322524576e-11 | CZ137: 3.472038182e-11 | DA137: 3.6282799e-11 | DB137: 3.791552495e-11 | DC137: 3.962172358e-11 | DD137: 4.140470114e-11 | DE137: 4.326791269e-11 | DF137: 4.521496876e-11 | DG137: 4.724964235e-11 | DH137: 4.937587626e-11 | DI137: 5.159779069e-11 | DJ137: 5.391969127e-11 | DK137: 5.634607738e-11 | DL137: 5.888165086e-11 | DM137: 6.153132515e-11 | DN137: 6.430023478e-11 | DO137: 6.719374535e-11 | DP137: 7.021746389e-11 | DQ137: 7.337724976e-11 | DR137: 7.6679226e-11 | DS137: 8.012979117e-11 | DT137: 8.373563178e-11 | DU137: 8.750373521e-11 | DV137: 9.144140329e-11 | DW137: 9.555626644e-11 | DX137: 9.985629843e-11
D138: Interest | E138: Euro | F138: =$F$44 -> 0.045 | I138: =I133*$F$138 -> 0 | J138: =J133*$F$138 -> 27.4957796 | K138: 26.78523254 | L138: 26.02323229 | M138: 25.20726867 | N138: 24.3347166 | O138: 23.40283089 | P138: 22.40874085 | Q138: 21.34944458 | R138: 20.22180308 | S138: 19.02253405 | T138: 17.74820541 | U138: 16.39522856 | V138: 14.95985128 | W138: 13.43815041 | X138: 11.82602405 | Y138: 10.11918358 | Z138: 8.313145166 | AA138: 6.403221009 | AB138: 4.384510108 | AC138: 2.251888659 | AD138: 5.75539616e-14 | AE138: 6.014388987e-14 | AF138: 6.285036491e-14 | AG138: 6.567863133e-14 | AH138: 6.863416974e-14 | AI138: 7.172270738e-14 | AJ138: 7.495022921e-14 | AK138: 7.832298953e-14 | AL138: 8.184752406e-14 | AM138: 8.553066264e-14 | AN138: 8.937954246e-14 | AO138: 9.340162187e-14 | AP138: 9.760469485e-14 | AQ138: 1.019969061e-13 | AR138: 1.065867669e-13 | AS138: 1.113831714e-13 | AT138: 1.163954141e-13 | AU138: 1.216332078e-13 | AV138: 1.271067021e-13 | AW138: 1.328265037e-13 | AX138: 1.388036964e-13 | AY138: 1.450498627e-13 | AZ138: 1.515771065e-13 | BA138: 1.583980763e-13 | BB138: 1.655259898e-13 | BC138: 1.729746593e-13 | BD138: 1.80758519e-13 | BE138: 1.888926523e-13 | BF138: 1.973928217e-13 | BG138: 2.062754986e-13 | BH138: 2.155578961e-13 | BI138: 2.252580014e-13 | BJ138: 2.353946115e-13 | BK138: 2.45987369e-13 | BL138: 2.570568006e-13 | BM138: 2.686243566e-13 | BN138: 2.807124527e-13 | BO138: 2.93344513e-13 | BP138: 3.065450161e-13 | BQ138: 3.203395418e-13 | BR138: 3.347548212e-13 | BS138: 3.498187882e-13 | BT138: 3.655606337e-13 | BU138: 3.820108622e-13 | BV138: =BV133*$F$138 -> 3.99201351e-13 | BW138: 4.171654118e-13 | BX138: 4.359378553e-13 | BY138: 4.555550588e-13 | BZ138: 4.760550364e-13 | CA138: 4.974775131e-13 | CB138: 5.198640011e-13 | CC138: 5.432578812e-13 | CD138: 5.677044859e-13 | CE138: 5.932511877e-13 | CF138: 6.199474912e-13 | CG138: 6.478451283e-13 | CH138: 6.76998159e-13 | CI138: 7.074630762e-13 | CJ138: 7.392989146e-13 | CK138: 7.725673658e-13 | CL138: 8.073328972e-13 | CM138: 8.436628776e-13 | CN138: 8.816277071e-13 | CO138: 9.213009539e-13 | CP138: 9.627594969e-13 | CQ138: 1.006083674e-12 | CR138: 1.05135744e-12 | CS138: 1.098668524e-12 | CT138: 1.148108608e-12 | CU138: 1.199773495e-12 | CV138: 1.253763303e-12 | CW138: 1.310182651e-12 | CX138: 1.36914087e-12 | CY138: 1.43075221e-12 | CZ138: 1.495136059e-12 | DA138: 1.562417182e-12 | DB138: 1.632725955e-12 | DC138: 1.706198623e-12 | DD138: 1.782977561e-12 | DE138: 1.863211551e-12 | DF138: 1.947056071e-12 | DG138: 2.034673594e-12 | DH138: 2.126233906e-12 | DI138: 2.221914432e-12 | DJ138: 2.321900581e-12 | DK138: 2.426386107e-12 | DL138: 2.535573482e-12 | DM138: 2.649674289e-12 | DN138: 2.768909632e-12 | DO138: 2.893510565e-12 | DP138: 3.023718541e-12 | DQ138: 3.159785875e-12 | DR138: 3.301976239e-12 | DS138: 3.45056517e-12 | DT138: 3.605840603e-12 | DU138: 3.76810343e-12 | DV138: 3.937668084e-12 | DW138: 4.114863148e-12 | DX138: 4.30003199e-12
C140: Base Subordinate Debt
D141: Opening Debt | E141: Euro
D142: Add: Debt Issue | E142: Euro
D143: Less: Scheduled | E143: Euro
D144: Less: Cash Sweep | E144: Euro
D145: Closing Balance | E145: Euro
D146: Interest | E146: Euro | F146: =F55 -> 0.065
C148: Defaulted Senior Debt
D149: Opening Balance | E149: Euro | I149: =H152 -> 0 | J149: =I152 -> 0 | K149: 0 | L149: 0 | M149: 0 | N149: 0 | O149: 0 | P149: 0 | Q149: 0 | R149: 0 | S149: 0 | T149: 0 | U149: 0 | V149: 0 | W149: 0 | X149: 0 | Y149: 0 | Z149: 0 | AA149: 0 | AB149: 0 | AC149: 0 | AD149: 0 | AE149: 0 | AF149: 0 | AG149: 0 | AH149: 0 | AI149: 0 | AJ149: 0 | AK149: 0 | AL149: 0 | AM149: 0 | AN149: 0 | AO149: 0 | AP149: 0 | AQ149: 0 | AR149: 0 | AS149: 0 | AT149: 0 | AU149: 0 | AV149: 0 | AW149: 0 | AX149: 0 | AY149: 0 | AZ149: 0 | BA149: 0 | BB149: 0 | BC149: 0 | BD149: 0 | BE149: 0 | BF149: 0 | BG149: 0 | BH149: 0 | BI149: 0 | BJ149: 0 | BK149: 0 | BL149: 0 | BM149: 0 | BN149: 0 | BO149: 0 | BP149: 0 | BQ149: 0 | BR149: 0 | BS149: 0 | BT149: 0 | BU149: 0 | BV149: =BU152 -> 0 | BW149: 0 | BX149: 0 | BY149: 0 | BZ149: 0 | CA149: 0 | CB149: 0 | CC149: 0 | CD149: 0 | CE149: 0 | CF149: 0 | CG149: 0 | CH149: 0 | CI149: 0 | CJ149: 0 | CK149: 0 | CL149: 0 | CM149: 0 | CN149: 0 | CO149: 0 | CP149: 0 | CQ149: 0 | CR149: 0 | CS149: 0 | CT149: 0 | CU149: 0 | CV149: 0 | CW149: 0 | CX149: 0 | CY149: 0 | CZ149: 0 | DA149: 0 | DB149: 0 | DC149: 0 | DD149: 0 | DE149: 0 | DF149: 0 | DG149: 0 | DH149: 0 | DI149: 0 | DJ149: 0 | DK149: 0 | DL149: 0 | DM149: 0 | DN149: 0 | DO149: 0 | DP149: 0 | DQ149: 0 | DR149: 0 | DS149: 0 | DT149: 0 | DU149: 0 | DV149: 0 | DW149: 0 | DX149: 0
D150: Add: Default | E150: Euro
D151: Less: Repayment of Default | E151: Euro
D152: Closing Balance | E152: Euro | I152: =I149+I150-I151 -> 0 | J152: =J149+J150-J151 -> 0 | K152: 0 | L152: 0 | M152: 0 | N152: 0 | O152: 0 | P152: 0 | Q152: 0 | R152: 0 | S152: 0 | T152: 0 | U152: 0 | V152: 0 | W152: 0 | X152: 0 | Y152: 0 | Z152: 0 | AA152: 0 | AB152: 0 | AC152: 0 | AD152: 0 | AE152: 0 | AF152: 0 | AG152: 0 | AH152: 0 | AI152: 0 | AJ152: 0 | AK152: 0 | AL152: 0 | AM152: 0 | AN152: 0 | AO152: 0 | AP152: 0 | AQ152: 0 | AR152: 0 | AS152: 0 | AT152: 0 | AU152: 0 | AV152: 0 | AW152: 0 | AX152: 0 | AY152: 0 | AZ152: 0 | BA152: 0 | BB152: 0 | BC152: 0 | BD152: 0 | BE152: 0 | BF152: 0 | BG152: 0 | BH152: 0 | BI152: 0 | BJ152: 0 | BK152: 0 | BL152: 0 | BM152: 0 | BN152: 0 | BO152: 0 | BP152: 0 | BQ152: 0 | BR152: 0 | BS152: 0 | BT152: 0 | BU152: 0 | BV152: =BV149+BV150-BV151 -> 0 | BW152: 0 | BX152: 0 | BY152: 0 | BZ152: 0 | CA152: 0 | CB152: 0 | CC152: 0 | CD152: 0 | CE152: 0 | CF152: 0 | CG152: 0 | CH152: 0 | CI152: 0 | CJ152: 0 | CK152: 0 | CL152: 0 | CM152: 0 | CN152: 0 | CO152: 0 | CP152: 0 | CQ152: 0 | CR152: 0 | CS152: 0 | CT152: 0 | CU152: 0 | CV152: 0 | CW152: 0 | CX152: 0 | CY152: 0 | CZ152: 0 | DA152: 0 | DB152: 0 | DC152: 0 | DD152: 0 | DE152: 0 | DF152: 0 | DG152: 0 | DH152: 0 | DI152: 0 | DJ152: 0 | DK152: 0 | DL152: 0 | DM152: 0 | DN152: 0 | DO152: 0 | DP152: 0 | DQ152: 0 | DR152: 0 | DS152: 0 | DT152: 0 | DU152: 0 | DV152: 0 | DW152: 0 | DX152: 0
D153: Interest | E153: Euro | F153: =$F$44 -> 0.045 | I153: =I149*$F$153 -> 0 | J153: =J149*$F$153 -> 0 | K153: 0 | L153: 0 | M153: 0 | N153: 0 | O153: 0 | P153: 0 | Q153: 0 | R153: 0 | S153: 0 | T153: 0 | U153: 0 | V153: 0 | W153: 0 | X153: 0 | Y153: 0 | Z153: 0 | AA153: 0 | AB153: 0 | AC153: 0 | AD153: 0 | AE153: 0 | AF153: 0 | AG153: 0 | AH153: 0 | AI153: 0 | AJ153: 0 | AK153: 0 | AL153: 0 | AM153: 0 | AN153: 0 | AO153: 0 | AP153: 0 | AQ153: 0 | AR153: 0 | AS153: 0 | AT153: 0 | AU153: 0 | AV153: 0 | AW153: 0 | AX153: 0 | AY153: 0 | AZ153: 0 | BA153: 0 | BB153: 0 | BC153: 0 | BD153: 0 | BE153: 0 | BF153: 0 | BG153: 0 | BH153: 0 | BI153: 0 | BJ153: 0 | BK153: 0 | BL153: 0 | BM153: 0 | BN153: 0 | BO153: 0 | BP153: 0 | BQ153: 0 | BR153: 0 | BS153: 0 | BT153: 0 | BU153: 0 | BV153: =BV149*$F$153 -> 0 | BW153: 0 | BX153: 0 | BY153: 0 | BZ153: 0 | CA153: 0 | CB153: 0 | CC153: 0 | CD153: 0 | CE153: 0 | CF153: 0 | CG153: 0 | CH153: 0 | CI153: 0 | CJ153: 0 | CK153: 0 | CL153: 0 | CM153: 0 | CN153: 0 | CO153: 0 | CP153: 0 | CQ153: 0 | CR153: 0 | CS153: 0 | CT153: 0 | CU153: 0 | CV153: 0 | CW153: 0 | CX153: 0 | CY153: 0 | CZ153: 0 | DA153: 0 | DB153: 0 | DC153: 0 | DD153: 0 | DE153: 0 | DF153: 0 | DG153: 0 | DH153: 0 | DI153: 0 | DJ153: 0 | DK153: 0 | DL153: 0 | DM153: 0 | DN153: 0 | DO153: 0 | DP153: 0 | DQ153: 0 | DR153: 0 | DS153: 0 | DT153: 0 | DU153: 0 | DV153: 0 | DW153: 0 | DX153: 0
D155: Senior Interest | E155: Euro | I155: =I153+I138 -> 0 | J155: 27.4957796 | K155: 26.78523254 | L155: 26.02323229 | M155: 25.20726867 | N155: 24.3347166 | O155: 23.40283089 | P155: 22.40874085 | Q155: 21.34944458 | R155: 20.22180308 | S155: 19.02253405 | T155: 17.74820541 | U155: 16.39522856 | V155: 14.95985128 | W155: 13.43815041 | X155: 11.82602405 | Y155: 10.11918358 | Z155: 8.313145166 | AA155: 6.403221009 | AB155: 4.384510108 | AC155: 2.251888659 | AD155: 5.75539616e-14 | AE155: 6.014388987e-14 | AF155: 6.285036491e-14 | AG155: 6.567863133e-14 | AH155: 6.863416974e-14 | AI155: 7.172270738e-14 | AJ155: 7.495022921e-14 | AK155: 7.832298953e-14 | AL155: 8.184752406e-14 | AM155: 8.553066264e-14 | AN155: 8.937954246e-14 | AO155: =AO153+AO138 -> 9.340162187e-14 | AP155: 9.760469485e-14 | AQ155: 1.019969061e-13 | AR155: 1.065867669e-13 | AS155: 1.113831714e-13 | AT155: 1.163954141e-13 | AU155: 1.216332078e-13 | AV155: 1.271067021e-13 | AW155: 1.328265037e-13 | AX155: 1.388036964e-13 | AY155: 1.450498627e-13 | AZ155: 1.515771065e-13 | BA155: 1.583980763e-13 | BB155: 1.655259898e-13 | BC155: 1.729746593e-13 | BD155: 1.80758519e-13 | BE155: 1.888926523e-13 | BF155: 1.973928217e-13 | BG155: 2.062754986e-13 | BH155: 2.155578961e-13 | BI155: 2.252580014e-13 | BJ155: 2.353946115e-13 | BK155: 2.45987369e-13 | BL155: 2.570568006e-13 | BM155: 2.686243566e-13 | BN155: 2.807124527e-13 | BO155: 2.93344513e-13 | BP155: 3.065450161e-13 | BQ155: 3.203395418e-13 | BR155: 3.347548212e-13 | BS155: 3.498187882e-13 | BT155: 3.655606337e-13 | BU155: =BU153+BU138 -> 3.820108622e-13 | BV155: 3.99201351e-13 | BW155: 4.171654118e-13 | BX155: 4.359378553e-13 | BY155: 4.555550588e-13 | BZ155: 4.760550364e-13 | CA155: 4.974775131e-13 | CB155: 5.198640011e-13 | CC155: 5.432578812e-13 | CD155: 5.677044859e-13 | CE155: 5.932511877e-13 | CF155: 6.199474912e-13 | CG155: 6.478451283e-13 | CH155: 6.76998159e-13 | CI155: 7.074630762e-13 | CJ155: 7.392989146e-13 | CK155: 7.725673658e-13 | CL155: 8.073328972e-13 | CM155: 8.436628776e-13 | CN155: 8.816277071e-13 | CO155: 9.213009539e-13 | CP155: 9.627594969e-13 | CQ155: 1.006083674e-12 | CR155: 1.05135744e-12 | CS155: 1.098668524e-12 | CT155: 1.148108608e-12 | CU155: 1.199773495e-12 | CV155: 1.253763303e-12 | CW155: 1.310182651e-12 | CX155: 1.36914087e-12 | CY155: 1.43075221e-12 | CZ155: 1.495136059e-12 | DA155: =DA153+DA138 -> 1.562417182e-12 | DB155: 1.632725955e-12 | DC155: 1.706198623e-12 | DD155: 1.782977561e-12 | DE155: 1.863211551e-12 | DF155: 1.947056071e-12 | DG155: 2.034673594e-12 | DH155: 2.126233906e-12 | DI155: 2.221914432e-12 | DJ155: 2.321900581e-12 | DK155: 2.426386107e-12 | DL155: 2.535573482e-12 | DM155: 2.649674289e-12 | DN155: 2.768909632e-12 | DO155: 2.893510565e-12 | DP155: 3.023718541e-12 | DQ155: 3.159785875e-12 | DR155: 3.301976239e-12 | DS155: 3.45056517e-12 | DT155: 3.605840603e-12 | DU155: 3.76810343e-12 | DV155: 3.937668084e-12 | DW155: 4.114863148e-12 | DX155: 4.30003199e-12
C157: Default on Sub Debt
D158: Opening Balance
D159: Add: Default
D160: Less: Repayment of Default
D161: Closing Balance
D163: Interest on Defaulted Sub Debt
B166: Adjusted Cash Waterfall
C167: Adjusted Revenues | E167: Euro | I167: =I116*I125 -> 0 | J167: 85.85 | K167: 86.7085 | L167: 87.575585 | M167: 88.45134085 | N167: 89.33585426 | O167: 90.2292128 | P167: 91.13150493 | Q167: 92.04281998 | R167: 92.96324818 | S167: 93.89288066 | T167: 94.83180947 | U167: 95.78012756 | V167: 96.73792884 | W167: 97.70530813 | X167: 98.68236121 | Y167: 99.66918482 | Z167: 100.6658767 | AA167: 101.6725354 | AB167: 102.6892608 | AC167: 103.7161534 | AD167: 104.7533149 | AE167: 105.8008481 | AF167: 106.8588566 | AG167: 107.9274451 | AH167: 109.0067196 | AI167: 110.0967868 | AJ167: 111.1977546 | AK167: 112.3097322 | AL167: 113.4328295 | AM167: 114.5671578 | AN167: 0 | AO167: =AO116*AO125 -> 0 | AP167: 0 | AQ167: 0 | AR167: 0 | AS167: 0 | AT167: 0 | AU167: 0 | AV167: 0 | AW167: 0 | AX167: 0 | AY167: 0 | AZ167: 0 | BA167: 0 | BB167: 0 | BC167: 0 | BD167: 0 | BE167: 0 | BF167: 0 | BG167: 0 | BH167: 0 | BI167: 0 | BJ167: 0 | BK167: 0 | BL167: 0 | BM167: 0 | BN167: 0 | BO167: 0 | BP167: 0 | BQ167: 0 | BR167: 0 | BS167: 0 | BT167: 0 | BU167: =BU116*BU125 -> 0 | BV167: 0 | BW167: 0 | BX167: 0 | BY167: 0 | BZ167: 0 | CA167: 0 | CB167: 0 | CC167: 0 | CD167: 0 | CE167: 0 | CF167: 0 | CG167: 0 | CH167: 0 | CI167: 0 | CJ167: 0 | CK167: 0 | CL167: 0 | CM167: 0 | CN167: 0 | CO167: 0 | CP167: 0 | CQ167: 0 | CR167: 0 | CS167: 0 | CT167: 0 | CU167: 0 | CV167: 0 | CW167: 0 | CX167: 0 | CY167: 0 | CZ167: 0 | DA167: =DA116*DA125 -> 0 | DB167: 0 | DC167: 0 | DD167: 0 | DE167: 0 | DF167: 0 | DG167: 0 | DH167: 0 | DI167: 0 | DJ167: 0 | DK167: 0 | DL167: 0 | DM167: 0 | DN167: 0 | DO167: 0 | DP167: 0 | DQ167: 0 | DR167: 0 | DS167: 0 | DT167: 0 | DU167: 0 | DV167: 0 | DW167: 0 | DX167: 0
C168: Less Operating Expense | E168: Euro | I168: =I11 -> 0 | J168: 10.1 | K168: 10.201 | L168: 10.30301 | M168: 10.4060401 | N168: 10.5101005 | O168: 10.61520151 | P168: 10.72135352 | Q168: 10.82856706 | R168: 10.93685273 | S168: 11.04622125 | T168: 11.15668347 | U168: 11.2682503 | V168: 11.3809328 | W168: 11.49474213 | X168: 11.60968955 | Y168: 11.72578645 | Z168: 11.84304431 | AA168: 11.96147476 | AB168: 12.0810895 | AC168: 12.2019004 | AD168: 12.3239194 | AE168: 12.4471586 | AF168: 12.57163018 | AG168: 12.69734649 | AH168: 12.82431995 | AI168: 12.95256315 | AJ168: 13.08208878 | AK168: 13.21290967 | AL168: 13.34503877 | AM168: 13.47848915 | AN168: 0 | AO168: =AO11 -> 0 | AP168: 0 | AQ168: 0 | AR168: 0 | AS168: 0 | AT168: 0 | AU168: 0 | AV168: 0 | AW168: 0 | AX168: 0 | AY168: 0 | AZ168: 0 | BA168: 0 | BB168: 0 | BC168: 0 | BD168: 0 | BE168: 0 | BF168: 0 | BG168: 0 | BH168: 0 | BI168: 0 | BJ168: 0 | BK168: 0 | BL168: 0 | BM168: 0 | BN168: 0 | BO168: 0 | BP168: 0 | BQ168: 0 | BR168: 0 | BS168: 0 | BT168: 0 | BU168: =BU11 -> 0 | BV168: 0 | BW168: 0 | BX168: 0 | BY168: 0 | BZ168: 0 | CA168: 0 | CB168: 0 | CC168: 0 | CD168: 0 | CE168: 0 | CF168: 0 | CG168: 0 | CH168: 0 | CI168: 0 | CJ168: 0 | CK168: 0 | CL168: 0 | CM168: 0 | CN168: 0 | CO168: 0 | CP168: 0 | CQ168: 0 | CR168: 0 | CS168: 0 | CT168: 0 | CU168: 0 | CV168: 0 | CW168: 0 | CX168: 0 | CY168: 0 | CZ168: 0 | DA168: =DA11 -> 0 | DB168: 0 | DC168: 0 | DD168: 0 | DE168: 0 | DF168: 0 | DG168: 0 | DH168: 0 | DI168: 0 | DJ168: 0 | DK168: 0 | DL168: 0 | DM168: 0 | DN168: 0 | DO168: 0 | DP168: 0 | DQ168: 0 | DR168: 0 | DS168: 0 | DT168: 0 | DU168: 0 | DV168: 0 | DW168: 0 | DX168: 0
C169: EBITDA | I169: =I167-I168 -> 0 | J169: =J167-J168 -> 75.75 | K169: 76.5075 | L169: 77.272575 | M169: 78.04530075 | N169: 78.82575376 | O169: 79.6140113 | P169: 80.41015141 | Q169: 81.21425292 | R169: 82.02639545 | S169: 82.84665941 | T169: 83.675126 | U169: 84.51187726 | V169: 85.35699603 | W169: 86.21056599 | X169: 87.07267165 | Y169: 87.94339837 | Z169: 88.82283235 | AA169: 89.71106068 | AB169: 90.60817128 | AC169: 91.514253 | AD169: 92.42939553 | AE169: 93.35368948 | AF169: 94.28722638 | AG169: 95.23009864 | AH169: 96.18239963 | AI169: 97.14422362 | AJ169: 98.11566586 | AK169: 99.09682252 | AL169: 100.0877907 | AM169: 101.0886686 | AN169: 0 | AO169: 0 | AP169: 0 | AQ169: 0 | AR169: 0 | AS169: 0 | AT169: 0 | AU169: 0 | AV169: 0 | AW169: 0 | AX169: 0 | AY169: 0 | AZ169: 0 | BA169: 0 | BB169: 0 | BC169: 0 | BD169: 0 | BE169: 0 | BF169: 0 | BG169: 0 | BH169: 0 | BI169: 0 | BJ169: 0 | BK169: 0 | BL169: 0 | BM169: 0 | BN169: 0 | BO169: 0 | BP169: 0 | BQ169: 0 | BR169: 0 | BS169: 0 | BT169: 0 | BU169: 0 | BV169: =BV167-BV168 -> 0 | BW169: 0 | BX169: 0 | BY169: 0 | BZ169: 0 | CA169: 0 | CB169: 0 | CC169: 0 | CD169: 0 | CE169: 0 | CF169: 0 | CG169: 0 | CH169: 0 | CI169: 0 | CJ169: 0 | CK169: 0 | CL169: 0 | CM169: 0 | CN169: 0 | CO169: 0 | CP169: 0 | CQ169: 0 | CR169: 0 | CS169: 0 | CT169: 0 | CU169: 0 | CV169: 0 | CW169: 0 | CX169: 0 | CY169: 0 | CZ169: 0 | DA169: 0 | DB169: 0 | DC169: 0 | DD169: 0 | DE169: 0 | DF169: 0 | DG169: 0 | DH169: 0 | DI169: 0 | DJ169: 0 | DK169: 0 | DL169: 0 | DM169: 0 | DN169: 0 | DO169: 0 | DP169: 0 | DQ169: 0 | DR169: 0 | DS169: 0 | DT169: 0 | DU169: 0 | DV169: 0 | DW169: 0 | DX169: 0
C171: Less: Interest | E171: Euro | I171: =I155 -> 0 | J171: 27.4957796 | K171: 26.78523254 | L171: 26.02323229 | M171: 25.20726867 | N171: 24.3347166 | O171: 23.40283089 | P171: 22.40874085 | Q171: 21.34944458 | R171: 20.22180308 | S171: 19.02253405 | T171: 17.74820541 | U171: 16.39522856 | V171: 14.95985128 | W171: 13.43815041 | X171: 11.82602405 | Y171: 10.11918358 | Z171: 8.313145166 | AA171: 6.403221009 | AB171: 4.384510108 | AC171: 2.251888659 | AD171: 5.75539616e-14 | AE171: 6.014388987e-14 | AF171: 6.285036491e-14 | AG171: 6.567863133e-14 | AH171: 6.863416974e-14 | AI171: 7.172270738e-14 | AJ171: 7.495022921e-14 | AK171: 7.832298953e-14 | AL171: 8.184752406e-14 | AM171: 8.553066264e-14 | AN171: 8.937954246e-14 | AO171: =AO155 -> 9.340162187e-14 | AP171: 9.760469485e-14 | AQ171: 1.019969061e-13 | AR171: 1.065867669e-13 | AS171: 1.113831714e-13 | AT171: 1.163954141e-13 | AU171: 1.216332078e-13 | AV171: 1.271067021e-13 | AW171: 1.328265037e-13 | AX171: 1.388036964e-13 | AY171: 1.450498627e-13 | AZ171: 1.515771065e-13 | BA171: 1.583980763e-13 | BB171: 1.655259898e-13 | BC171: 1.729746593e-13 | BD171: 1.80758519e-13 | BE171: 1.888926523e-13 | BF171: 1.973928217e-13 | BG171: 2.062754986e-13 | BH171: 2.155578961e-13 | BI171: 2.252580014e-13 | BJ171: 2.353946115e-13 | BK171: 2.45987369e-13 | BL171: 2.570568006e-13 | BM171: 2.686243566e-13 | BN171: 2.807124527e-13 | BO171: 2.93344513e-13 | BP171: 3.065450161e-13 | BQ171: 3.203395418e-13 | BR171: 3.347548212e-13 | BS171: 3.498187882e-13 | BT171: 3.655606337e-13 | BU171: =BU155 -> 3.820108622e-13 | BV171: 3.99201351e-13 | BW171: 4.171654118e-13 | BX171: 4.359378553e-13 | BY171: 4.555550588e-13 | BZ171: 4.760550364e-13 | CA171: 4.974775131e-13 | CB171: 5.198640011e-13 | CC171: 5.432578812e-13 | CD171: 5.677044859e-13 | CE171: 5.932511877e-13 | CF171: 6.199474912e-13 | CG171: 6.478451283e-13 | CH171: 6.76998159e-13 | CI171: 7.074630762e-13 | CJ171: 7.392989146e-13 | CK171: 7.725673658e-13 | CL171: 8.073328972e-13 | CM171: 8.436628776e-13 | CN171: 8.816277071e-13 | CO171: 9.213009539e-13 | CP171: 9.627594969e-13 | CQ171: 1.006083674e-12 | CR171: 1.05135744e-12 | CS171: 1.098668524e-12 | CT171: 1.148108608e-12 | CU171: 1.199773495e-12 | CV171: 1.253763303e-12 | CW171: 1.310182651e-12 | CX171: 1.36914087e-12 | CY171: 1.43075221e-12 | CZ171: 1.495136059e-12 | DA171: =DA155 -> 1.562417182e-12 | DB171: 1.632725955e-12 | DC171: 1.706198623e-12 | DD171: 1.782977561e-12 | DE171: 1.863211551e-12 | DF171: 1.947056071e-12 | DG171: 2.034673594e-12 | DH171: 2.126233906e-12 | DI171: 2.221914432e-12 | DJ171: 2.321900581e-12 | DK171: 2.426386107e-12 | DL171: 2.535573482e-12 | DM171: 2.649674289e-12 | DN171: 2.768909632e-12 | DO171: 2.893510565e-12 | DP171: 3.023718541e-12 | DQ171: 3.159785875e-12 | DR171: 3.301976239e-12 | DS171: 3.45056517e-12 | DT171: 3.605840603e-12 | DU171: 3.76810343e-12 | DV171: 3.937668084e-12 | DW171: 4.114863148e-12 | DX171: 4.30003199e-12
C172: Less: Debt Repayment Scheduled | E172: Euro | I172: =I135 -> 0 | J172: 15.78993469 | K172: 16.93333889 | L172: 18.13252486 | M172: 19.39004605 | N172: 20.70857126 | O172: 22.09088985 | P172: 23.5399171 | Q172: 25.05869995 | R172: 26.65042289 | S172: 28.31841418 | T172: 30.0661523 | U172: 31.89727273 | V172: 33.81557502 | W172: 35.82503016 | X172: 37.92978832 | Y172: 40.13418692 | Z172: 42.44275904 | AA172: 44.86024223 | AB172: 47.39158777 | AC172: 50.0419702 | AD172: -5.75539616e-14 | AE172: -6.014388987e-14 | AF172: -6.285036491e-14 | AG172: -6.567863133e-14 | AH172: -6.863416974e-14 | AI172: -7.172270738e-14 | AJ172: -7.495022921e-14 | AK172: -7.832298953e-14 | AL172: -8.184752406e-14 | AM172: -8.553066264e-14 | AN172: -8.937954246e-14 | AO172: =AO135 -> -9.340162187e-14 | AP172: -9.760469485e-14 | AQ172: -1.019969061e-13 | AR172: -1.065867669e-13 | AS172: -1.113831714e-13 | AT172: -1.163954141e-13 | AU172: -1.216332078e-13 | AV172: -1.271067021e-13 | AW172: -1.328265037e-13 | AX172: -1.388036964e-13 | AY172: -1.450498627e-13 | AZ172: -1.515771065e-13 | BA172: -1.583980763e-13 | BB172: -1.655259898e-13 | BC172: -1.729746593e-13 | BD172: -1.80758519e-13 | BE172: -1.888926523e-13 | BF172: -1.973928217e-13 | BG172: -2.062754986e-13 | BH172: -2.155578961e-13 | BI172: -2.252580014e-13 | BJ172: -2.353946115e-13 | BK172: -2.45987369e-13 | BL172: -2.570568006e-13 | BM172: -2.686243566e-13 | BN172: -2.807124527e-13 | BO172: -2.93344513e-13 | BP172: -3.065450161e-13 | BQ172: -3.203395418e-13 | BR172: -3.347548212e-13 | BS172: -3.498187882e-13 | BT172: -3.655606337e-13 | BU172: =BU135 -> -3.820108622e-13 | BV172: -3.99201351e-13 | BW172: -4.171654118e-13 | BX172: -4.359378553e-13 | BY172: -4.555550588e-13 | BZ172: -4.760550364e-13 | CA172: -4.974775131e-13 | CB172: -5.198640011e-13 | CC172: -5.432578812e-13 | CD172: -5.677044859e-13 | CE172: -5.932511877e-13 | CF172: -6.199474912e-13 | CG172: -6.478451283e-13 | CH172: -6.76998159e-13 | CI172: -7.074630762e-13 | CJ172: -7.392989146e-13 | CK172: -7.725673658e-13 | CL172: -8.073328972e-13 | CM172: -8.436628776e-13 | CN172: -8.816277071e-13 | CO172: -9.213009539e-13 | CP172: -9.627594969e-13 | CQ172: -1.006083674e-12 | CR172: -1.05135744e-12 | CS172: -1.098668524e-12 | CT172: -1.148108608e-12 | CU172: -1.199773495e-12 | CV172: -1.253763303e-12 | CW172: -1.310182651e-12 | CX172: -1.36914087e-12 | CY172: -1.43075221e-12 | CZ172: -1.495136059e-12 | DA172: =DA135 -> -1.562417182e-12 | DB172: -1.632725955e-12 | DC172: -1.706198623e-12 | DD172: -1.782977561e-12 | DE172: -1.863211551e-12 | DF172: -1.947056071e-12 | DG172: -2.034673594e-12 | DH172: -2.126233906e-12 | DI172: -2.221914432e-12 | DJ172: -2.321900581e-12 | DK172: -2.426386107e-12 | DL172: -2.535573482e-12 | DM172: -2.649674289e-12 | DN172: -2.768909632e-12 | DO172: -2.893510565e-12 | DP172: -3.023718541e-12 | DQ172: -3.159785875e-12 | DR172: -3.301976239e-12 | DS172: -3.45056517e-12 | DT172: -3.605840603e-12 | DU172: -3.76810343e-12 | DV172: -3.937668084e-12 | DW172: -4.114863148e-12 | DX172: -4.30003199e-12
C173: Cash Flow After Scheduled Debt Service | E173: Euro | I173: =I169-I171-I172 -> 0 | J173: =J169-J171-J172 -> 32.46428571 | K173: 32.78892857 | L173: 33.11681786 | M173: 33.44798604 | N173: 33.7824659 | O173: 34.12029056 | P173: 34.46149346 | Q173: 34.8061084 | R173: 35.15416948 | S173: 35.50571117 | T173: 35.86076829 | U173: 36.21937597 | V173: 36.58156973 | W173: 36.94738543 | X173: 37.31685928 | Y173: 37.69002787 | Z173: 38.06692815 | AA173: 38.44759743 | AB173: 38.83207341 | AC173: 39.22039414 | AD173: 92.42939553 | AE173: 93.35368948 | AF173: 94.28722638 | AG173: 95.23009864 | AH173: 96.18239963 | AI173: 97.14422362 | AJ173: 98.11566586 | AK173: 99.09682252 | AL173: 100.0877907 | AM173: 101.0886686 | AN173: 0 | AO173: 0 | AP173: 0 | AQ173: 0 | AR173: 0 | AS173: 0 | AT173: 0 | AU173: 0 | AV173: 0 | AW173: 0 | AX173: 0 | AY173: 0 | AZ173: 0 | BA173: 0 | BB173: 0 | BC173: 0 | BD173: 0 | BE173: 0 | BF173: 0 | BG173: 0 | BH173: 0 | BI173: 0 | BJ173: 0 | BK173: 0 | BL173: 0 | BM173: 0 | BN173: 0 | BO173: 0 | BP173: 0 | BQ173: 0 | BR173: 0 | BS173: 0 | BT173: 0 | BU173: 0 | BV173: =BV169-BV171-BV172 -> 0 | BW173: 0 | BX173: 0 | BY173: 0 | BZ173: 0 | CA173: 0 | CB173: 0 | CC173: 0 | CD173: 0 | CE173: 0 | CF173: 0 | CG173: 0 | CH173: 0 | CI173: 0 | CJ173: 0 | CK173: 0 | CL173: 0 | CM173: 0 | CN173: 0 | CO173: 0 | CP173: 0 | CQ173: 0 | CR173: 0 | CS173: 0 | CT173: 0 | CU173: 0 | CV173: 0 | CW173: 0 | CX173: 0 | CY173: 0 | CZ173: 0 | DA173: 0 | DB173: 0 | DC173: 0 | DD173: 0 | DE173: 0 | DF173: 0 | DG173: 0 | DH173: 0 | DI173: 0 | DJ173: 0 | DK173: 0 | DL173: 0 | DM173: 0 | DN173: 0 | DO173: 0 | DP173: 0 | DQ173: 0 | DR173: 0 | DS173: 0 | DT173: 0 | DU173: 0 | DV173: 0 | DW173: 0 | DX173: 0
C175: Cash Sweep | E175: % | F175: =G175/100 -> 0 | G175: 0 | I175: =$F$175 -> 0 | J175: =$F$175 -> 0 | K175: 0 | L175: 0 | M175: 0 | N175: 0 | O175: 0 | P175: 0 | Q175: 0 | R175: 0 | S175: 0 | T175: 0 | U175: 0 | V175: 0 | W175: 0 | X175: 0 | Y175: 0 | Z175: 0 | AA175: 0 | AB175: 0 | AC175: 0 | AD175: 0 | AE175: 0 | AF175: 0 | AG175: 0 | AH175: 0 | AI175: 0 | AJ175: 0 | AK175: 0 | AL175: 0 | AM175: 0 | AN175: 0 | AO175: 0 | AP175: 0 | AQ175: 0 | AR175: 0 | AS175: 0 | AT175: 0 | AU175: 0 | AV175: 0 | AW175: 0 | AX175: 0 | AY175: 0 | AZ175: 0 | BA175: 0 | BB175: 0 | BC175: 0 | BD175: 0 | BE175: 0 | BF175: 0 | BG175: 0 | BH175: 0 | BI175: 0 | BJ175: 0 | BK175: 0 | BL175: 0 | BM175: 0 | BN175: 0 | BO175: 0 | BP175: 0 | BQ175: 0 | BR175: 0 | BS175: 0 | BT175: 0 | BU175: 0 | BV175: =$F$175 -> 0 | BW175: 0 | BX175: 0 | BY175: 0 | BZ175: 0 | CA175: 0 | CB175: 0 | CC175: 0 | CD175: 0 | CE175: 0 | CF175: 0 | CG175: 0 | CH175: 0 | CI175: 0 | CJ175: 0 | CK175: 0 | CL175: 0 | CM175: 0 | CN175: 0 | CO175: 0 | CP175: 0 | CQ175: 0 | CR175: 0 | CS175: 0 | CT175: 0 | CU175: 0 | CV175: 0 | CW175: 0 | CX175: 0 | CY175: 0 | CZ175: 0 | DA175: 0 | DB175: 0 | DC175: 0 | DD175: 0 | DE175: 0 | DF175: 0 | DG175: 0 | DH175: 0 | DI175: 0 | DJ175: 0 | DK175: 0 | DL175: 0 | DM175: 0 | DN175: 0 | DO175: 0 | DP175: 0 | DQ175: 0 | DR175: 0 | DS175: 0 | DT175: 0 | DU175: 0 | DV175: 0 | DW175: 0 | DX175: 0
C176: Cash Swept Before Constraint | E176: Euro | I176: =MAX(I173,0)*I175 -> 0 | J176: =MAX(J173,0)*J175 -> 0 | K176: 0 | L176: 0 | M176: 0 | N176: 0 | O176: 0 | P176: 0 | Q176: 0 | R176: 0 | S176: 0 | T176: 0 | U176: 0 | V176: 0 | W176: 0 | X176: 0 | Y176: 0 | Z176: 0 | AA176: 0 | AB176: 0 | AC176: 0 | AD176: 0 | AE176: 0 | AF176: 0 | AG176: 0 | AH176: 0 | AI176: 0 | AJ176: 0 | AK176: 0 | AL176: 0 | AM176: 0 | AN176: 0 | AO176: 0 | AP176: 0 | AQ176: 0 | AR176: 0 | AS176: 0 | AT176: 0 | AU176: 0 | AV176: 0 | AW176: 0 | AX176: 0 | AY176: 0 | AZ176: 0 | BA176: 0 | BB176: 0 | BC176: 0 | BD176: 0 | BE176: 0 | BF176: 0 | BG176: 0 | BH176: 0 | BI176: 0 | BJ176: 0 | BK176: 0 | BL176: 0 | BM176: 0 | BN176: 0 | BO176: 0 | BP176: 0 | BQ176: 0 | BR176: 0 | BS176: 0 | BT176: 0 | BU176: 0 | BV176: =MAX(BV173,0)*BV175 -> 0 | BW176: 0 | BX176: 0 | BY176: 0 | BZ176: 0 | CA176: 0 | CB176: 0 | CC176: 0 | CD176: 0 | CE176: 0 | CF176: 0 | CG176: 0 | CH176: 0 | CI176: 0 | CJ176: 0 | CK176: 0 | CL176: 0 | CM176: 0 | CN176: 0 | CO176: 0 | CP176: 0 | CQ176: 0 | CR176: 0 | CS176: 0 | CT176: 0 | CU176: 0 | CV176: 0 | CW176: 0 | CX176: 0 | CY176: 0 | CZ176: 0 | DA176: 0 | DB176: 0 | DC176: 0 | DD176: 0 | DE176: 0 | DF176: 0 | DG176: 0 | DH176: 0 | DI176: 0 | DJ176: 0 | DK176: 0 | DL176: 0 | DM176: 0 | DN176: 0 | DO176: 0 | DP176: 0 | DQ176: 0 | DR176: 0 | DS176: 0 | DT176: 0 | DU176: 0 | DV176: 0 | DW176: 0 | DX176: 0
C177: Cash Swept After Constraint | I177: =MIN(I176,I133-I135) -> 0 | J177: 0 | K177: 0 | L177: 0 | M177: 0 | N177: 0 | O177: 0 | P177: 0 | Q177: 0 | R177: 0 | S177: 0 | T177: 0 | U177: 0 | V177: 0 | W177: 0 | X177: 0 | Y177: 0 | Z177: 0 | AA177: 0 | AB177: 0 | AC177: 0 | AD177: 0 | AE177: 0 | AF177: 0 | AG177: 0 | AH177: 0 | AI177: 0 | AJ177: 0 | AK177: 0 | AL177: 0 | AM177: 0 | AN177: 0 | AO177: =MIN(AO176,AO133-AO135) -> 0 | AP177: 0 | AQ177: 0 | AR177: 0 | AS177: 0 | AT177: 0 | AU177: 0 | AV177: 0 | AW177: 0 | AX177: 0 | AY177: 0 | AZ177: 0 | BA177: 0 | BB177: 0 | BC177: 0 | BD177: 0 | BE177: 0 | BF177: 0 | BG177: 0 | BH177: 0 | BI177: 0 | BJ177: 0 | BK177: 0 | BL177: 0 | BM177: 0 | BN177: 0 | BO177: 0 | BP177: 0 | BQ177: 0 | BR177: 0 | BS177: 0 | BT177: 0 | BU177: =MIN(BU176,BU133-BU135) -> 0 | BV177: 0 | BW177: 0 | BX177: 0 | BY177: 0 | BZ177: 0 | CA177: 0 | CB177: 0 | CC177: 0 | CD177: 0 | CE177: 0 | CF177: 0 | CG177: 0 | CH177: 0 | CI177: 0 | CJ177: 0 | CK177: 0 | CL177: 0 | CM177: 0 | CN177: 0 | CO177: 0 | CP177: 0 | CQ177: 0 | CR177: 0 | CS177: 0 | CT177: 0 | CU177: 0 | CV177: 0 | CW177: 0 | CX177: 0 | CY177: 0 | CZ177: 0 | DA177: =MIN(DA176,DA133-DA135) -> 0 | DB177: 0 | DC177: 0 | DD177: 0 | DE177: 0 | DF177: 0 | DG177: 0 | DH177: 0 | DI177: 0 | DJ177: 0 | DK177: 0 | DL177: 0 | DM177: 0 | DN177: 0 | DO177: 0 | DP177: 0 | DQ177: 0 | DR177: 0 | DS177: 0 | DT177: 0 | DU177: 0 | DV177: 0 | DW177: 0 | DX177: 0
C179: Cash Flow Before Senior Default | E179: Euro | I179: =I173-I177 -> 0 | J179: =J173-J177 -> 32.46428571 | K179: 32.78892857 | L179: 33.11681786 | M179: 33.44798604 | N179: 33.7824659 | O179: 34.12029056 | P179: 34.46149346 | Q179: 34.8061084 | R179: 35.15416948 | S179: 35.50571117 | T179: 35.86076829 | U179: 36.21937597 | V179: 36.58156973 | W179: 36.94738543 | X179: 37.31685928 | Y179: 37.69002787 | Z179: 38.06692815 | AA179: 38.44759743 | AB179: 38.83207341 | AC179: 39.22039414 | AD179: 92.42939553 | AE179: 93.35368948 | AF179: 94.28722638 | AG179: 95.23009864 | AH179: 96.18239963 | AI179: 97.14422362 | AJ179: 98.11566586 | AK179: 99.09682252 | AL179: 100.0877907 | AM179: 101.0886686 | AN179: 0 | AO179: 0 | AP179: 0 | AQ179: 0 | AR179: 0 | AS179: 0 | AT179: 0 | AU179: 0 | AV179: 0 | AW179: 0 | AX179: 0 | AY179: 0 | AZ179: 0 | BA179: 0 | BB179: 0 | BC179: 0 | BD179: 0 | BE179: 0 | BF179: 0 | BG179: 0 | BH179: 0 | BI179: 0 | BJ179: 0 | BK179: 0 | BL179: 0 | BM179: 0 | BN179: 0 | BO179: 0 | BP179: 0 | BQ179: 0 | BR179: 0 | BS179: 0 | BT179: 0 | BU179: 0 | BV179: =BV173-BV177 -> 0 | BW179: 0 | BX179: 0 | BY179: 0 | BZ179: 0 | CA179: 0 | CB179: 0 | CC179: 0 | CD179: 0 | CE179: 0 | CF179: 0 | CG179: 0 | CH179: 0 | CI179: 0 | CJ179: 0 | CK179: 0 | CL179: 0 | CM179: 0 | CN179: 0 | CO179: 0 | CP179: 0 | CQ179: 0 | CR179: 0 | CS179: 0 | CT179: 0 | CU179: 0 | CV179: 0 | CW179: 0 | CX179: 0 | CY179: 0 | CZ179: 0 | DA179: 0 | DB179: 0 | DC179: 0 | DD179: 0 | DE179: 0 | DF179: 0 | DG179: 0 | DH179: 0 | DI179: 0 | DJ179: 0 | DK179: 0 | DL179: 0 | DM179: 0 | DN179: 0 | DO179: 0 | DP179: 0 | DQ179: 0 | DR179: 0 | DS179: 0 | DT179: 0 | DU179: 0 | DV179: 0 | DW179: 0 | DX179: 0
C180: Add: Default on Senior Debt Capitalised | E180: Euro | I180: =MAX(-I179,0) -> 0 | J180: =MAX(-J179,0) -> 0 | K180: 0 | L180: 0 | M180: 0 | N180: 0 | O180: 0 | P180: 0 | Q180: 0 | R180: 0 | S180: 0 | T180: 0 | U180: 0 | V180: 0 | W180: 0 | X180: 0 | Y180: 0 | Z180: 0 | AA180: 0 | AB180: 0 | AC180: 0 | AD180: 0 | AE180: 0 | AF180: 0 | AG180: 0 | AH180: 0 | AI180: 0 | AJ180: 0 | AK180: 0 | AL180: 0 | AM180: 0 | AN180: 0 | AO180: 0 | AP180: 0 | AQ180: 0 | AR180: 0 | AS180: 0 | AT180: 0 | AU180: 0 | AV180: 0 | AW180: 0 | AX180: 0 | AY180: 0 | AZ180: 0 | BA180: 0 | BB180: 0 | BC180: 0 | BD180: 0 | BE180: 0 | BF180: 0 | BG180: 0 | BH180: 0 | BI180: 0 | BJ180: 0 | BK180: 0 | BL180: 0 | BM180: 0 | BN180: 0 | BO180: 0 | BP180: 0 | BQ180: 0 | BR180: 0 | BS180: 0 | BT180: 0 | BU180: 0 | BV180: =MAX(-BV179,0) -> 0 | BW180: 0 | BX180: 0 | BY180: 0 | BZ180: 0 | CA180: 0 | CB180: 0 | CC180: 0 | CD180: 0 | CE180: 0 | CF180: 0 | CG180: 0 | CH180: 0 | CI180: 0 | CJ180: 0 | CK180: 0 | CL180: 0 | CM180: 0 | CN180: 0 | CO180: 0 | CP180: 0 | CQ180: 0 | CR180: 0 | CS180: 0 | CT180: 0 | CU180: 0 | CV180: 0 | CW180: 0 | CX180: 0 | CY180: 0 | CZ180: 0 | DA180: 0 | DB180: 0 | DC180: 0 | DD180: 0 | DE180: 0 | DF180: 0 | DG180: 0 | DH180: 0 | DI180: 0 | DJ180: 0 | DK180: 0 | DL180: 0 | DM180: 0 | DN180: 0 | DO180: 0 | DP180: 0 | DQ180: 0 | DR180: 0 | DS180: 0 | DT180: 0 | DU180: 0 | DV180: 0 | DW180: 0 | DX180: 0
C181: Less: Repayment of SeniorDefault | E181: Euro | I181: =MIN(MAX(I173,0),I149) -> 0 | J181: 0 | K181: 0 | L181: 0 | M181: 0 | N181: 0 | O181: 0 | P181: 0 | Q181: 0 | R181: 0 | S181: 0 | T181: 0 | U181: 0 | V181: 0 | W181: 0 | X181: 0 | Y181: 0 | Z181: 0 | AA181: 0 | AB181: 0 | AC181: 0 | AD181: 0 | AE181: 0 | AF181: 0 | AG181: 0 | AH181: 0 | AI181: 0 | AJ181: 0 | AK181: 0 | AL181: 0 | AM181: 0 | AN181: 0 | AO181: =MIN(MAX(AO173,0),AO149) -> 0 | AP181: 0 | AQ181: 0 | AR181: 0 | AS181: 0 | AT181: 0 | AU181: 0 | AV181: 0 | AW181: 0 | AX181: 0 | AY181: 0 | AZ181: 0 | BA181: 0 | BB181: 0 | BC181: 0 | BD181: 0 | BE181: 0 | BF181: 0 | BG181: 0 | BH181: 0 | BI181: 0 | BJ181: 0 | BK181: 0 | BL181: 0 | BM181: 0 | BN181: 0 | BO181: 0 | BP181: 0 | BQ181: 0 | BR181: 0 | BS181: 0 | BT181: 0 | BU181: =MIN(MAX(BU173,0),BU149) -> 0 | BV181: 0 | BW181: 0 | BX181: 0 | BY181: 0 | BZ181: 0 | CA181: 0 | CB181: 0 | CC181: 0 | CD181: 0 | CE181: 0 | CF181: 0 | CG181: 0 | CH181: 0 | CI181: 0 | CJ181: 0 | CK181: 0 | CL181: 0 | CM181: 0 | CN181: 0 | CO181: 0 | CP181: 0 | CQ181: 0 | CR181: 0 | CS181: 0 | CT181: 0 | CU181: 0 | CV181: 0 | CW181: 0 | CX181: 0 | CY181: 0 | CZ181: 0 | DA181: =MIN(MAX(DA173,0),DA149) -> 0 | DB181: 0 | DC181: 0 | DD181: 0 | DE181: 0 | DF181: 0 | DG181: 0 | DH181: 0 | DI181: 0 | DJ181: 0 | DK181: 0 | DL181: 0 | DM181: 0 | DN181: 0 | DO181: 0 | DP181: 0 | DQ181: 0 | DR181: 0 | DS181: 0 | DT181: 0 | DU181: 0 | DV181: 0 | DW181: 0 | DX181: 0
C183: Cash Flow After Sweep | E183: Euro | I183: =I179+I180-I181 -> 0 | J183: =J179+J180-J181 -> 32.46428571 | K183: 32.78892857 | L183: 33.11681786 | M183: 33.44798604 | N183: 33.7824659 | O183: 34.12029056 | P183: 34.46149346 | Q183: 34.8061084 | R183: 35.15416948 | S183: 35.50571117 | T183: 35.86076829 | U183: 36.21937597 | V183: 36.58156973 | W183: 36.94738543 | X183: 37.31685928 | Y183: 37.69002787 | Z183: 38.06692815 | AA183: 38.44759743 | AB183: 38.83207341 | AC183: 39.22039414 | AD183: 92.42939553 | AE183: 93.35368948 | AF183: 94.28722638 | AG183: 95.23009864 | AH183: 96.18239963 | AI183: 97.14422362 | AJ183: 98.11566586 | AK183: 99.09682252 | AL183: 100.0877907 | AM183: 101.0886686 | AN183: 0 | AO183: 0 | AP183: 0 | AQ183: 0 | AR183: 0 | AS183: 0 | AT183: 0 | AU183: 0 | AV183: 0 | AW183: 0 | AX183: 0 | AY183: 0 | AZ183: 0 | BA183: 0 | BB183: 0 | BC183: 0 | BD183: 0 | BE183: 0 | BF183: 0 | BG183: 0 | BH183: 0 | BI183: 0 | BJ183: 0 | BK183: 0 | BL183: 0 | BM183: 0 | BN183: 0 | BO183: 0 | BP183: 0 | BQ183: 0 | BR183: 0 | BS183: 0 | BT183: 0 | BU183: 0 | BV183: =BV179+BV180-BV181 -> 0 | BW183: 0 | BX183: 0 | BY183: 0 | BZ183: 0 | CA183: 0 | CB183: 0 | CC183: 0 | CD183: 0 | CE183: 0 | CF183: 0 | CG183: 0 | CH183: 0 | CI183: 0 | CJ183: 0 | CK183: 0 | CL183: 0 | CM183: 0 | CN183: 0 | CO183: 0 | CP183: 0 | CQ183: 0 | CR183: 0 | CS183: 0 | CT183: 0 | CU183: 0 | CV183: 0 | CW183: 0 | CX183: 0 | CY183: 0 | CZ183: 0 | DA183: 0 | DB183: 0 | DC183: 0 | DD183: 0 | DE183: 0 | DF183: 0 | DG183: 0 | DH183: 0 | DI183: 0 | DJ183: 0 | DK183: 0 | DL183: 0 | DM183: 0 | DN183: 0 | DO183: 0 | DP183: 0 | DQ183: 0 | DR183: 0 | DS183: 0 | DT183: 0 | DU183: 0 | DV183: 0 | DW183: 0 | DX183: 0
C185: Less: Interest - Subordinated
C186: Less: Debt Repayment Subordinated
C187: Cash Flow After Subordinated Debt
C189: Dividends | I189: =I183 -> 0 | J189: 32.46428571 | K189: 32.78892857 | L189: 33.11681786 | M189: 33.44798604 | N189: 33.7824659 | O189: 34.12029056 | P189: 34.46149346 | Q189: 34.8061084 | R189: 35.15416948 | S189: 35.50571117 | T189: 35.86076829 | U189: 36.21937597 | V189: 36.58156973 | W189: 36.94738543 | X189: 37.31685928 | Y189: 37.69002787 | Z189: 38.06692815 | AA189: 38.44759743 | AB189: 38.83207341 | AC189: 39.22039414 | AD189: 92.42939553 | AE189: 93.35368948 | AF189: 94.28722638 | AG189: 95.23009864 | AH189: 96.18239963 | AI189: 97.14422362 | AJ189: 98.11566586 | AK189: 99.09682252 | AL189: 100.0877907 | AM189: 101.0886686 | AN189: 0 | AO189: =AO183 -> 0 | AP189: 0 | AQ189: 0 | AR189: 0 | AS189: 0 | AT189: 0 | AU189: 0 | AV189: 0 | AW189: 0 | AX189: 0 | AY189: 0 | AZ189: 0 | BA189: 0 | BB189: 0 | BC189: 0 | BD189: 0 | BE189: 0 | BF189: 0 | BG189: 0 | BH189: 0 | BI189: 0 | BJ189: 0 | BK189: 0 | BL189: 0 | BM189: 0 | BN189: 0 | BO189: 0 | BP189: 0 | BQ189: 0 | BR189: 0 | BS189: 0 | BT189: 0 | BU189: =BU183 -> 0 | BV189: 0 | BW189: 0 | BX189: 0 | BY189: 0 | BZ189: 0 | CA189: 0 | CB189: 0 | CC189: 0 | CD189: 0 | CE189: 0 | CF189: 0 | CG189: 0 | CH189: 0 | CI189: 0 | CJ189: 0 | CK189: 0 | CL189: 0 | CM189: 0 | CN189: 0 | CO189: 0 | CP189: 0 | CQ189: 0 | CR189: 0 | CS189: 0 | CT189: 0 | CU189: 0 | CV189: 0 | CW189: 0 | CX189: 0 | CY189: 0 | CZ189: 0 | DA189: =DA183 -> 0 | DB189: 0 | DC189: 0 | DD189: 0 | DE189: 0 | DF189: 0 | DG189: 0 | DH189: 0 | DI189: 0 | DJ189: 0 | DK189: 0 | DL189: 0 | DM189: 0 | DN189: 0 | DO189: 0 | DP189: 0 | DQ189: 0 | DR189: 0 | DS189: 0 | DT189: 0 | DU189: 0 | DV189: 0 | DW189: 0 | DX189: 0
B191: Ratios
C192: Equity Cash Flow | I192: =I189-I80 -> -94.72846718 | J192: 32.46428571 | K192: 32.78892857 | L192: 33.11681786 | M192: 33.44798604 | N192: 33.7824659 | O192: 34.12029056 | P192: 34.46149346 | Q192: 34.8061084 | R192: 35.15416948 | S192: 35.50571117 | T192: 35.86076829 | U192: 36.21937597 | V192: 36.58156973 | W192: 36.94738543 | X192: 37.31685928 | Y192: 37.69002787 | Z192: 38.06692815 | AA192: 38.44759743 | AB192: 38.83207341 | AC192: 39.22039414 | AD192: 92.42939553 | AE192: 93.35368948 | AF192: 94.28722638 | AG192: 95.23009864 | AH192: 96.18239963 | AI192: 97.14422362 | AJ192: 98.11566586 | AK192: 99.09682252 | AL192: 100.0877907 | AM192: 101.0886686 | AN192: 0 | AO192: =AO189-AO80 -> 0 | AP192: 0 | AQ192: 0 | AR192: 0 | AS192: 0 | AT192: 0 | AU192: 0 | AV192: 0 | AW192: 0 | AX192: 0 | AY192: 0 | AZ192: 0 | BA192: 0 | BB192: 0 | BC192: 0 | BD192: 0 | BE192: 0 | BF192: 0 | BG192: 0 | BH192: 0 | BI192: 0 | BJ192: 0 | BK192: 0 | BL192: 0 | BM192: 0 | BN192: 0 | BO192: 0 | BP192: 0 | BQ192: 0 | BR192: 0 | BS192: 0 | BT192: 0 | BU192: =BU189-BU80 -> 0 | BV192: 0 | BW192: 0 | BX192: 0 | BY192: 0 | BZ192: 0 | CA192: 0 | CB192: 0 | CC192: 0 | CD192: 0 | CE192: 0 | CF192: 0 | CG192: 0 | CH192: 0 | CI192: 0 | CJ192: 0 | CK192: 0 | CL192: 0 | CM192: 0 | CN192: 0 | CO192: 0 | CP192: 0 | CQ192: 0 | CR192: 0 | CS192: 0 | CT192: 0 | CU192: 0 | CV192: 0 | CW192: 0 | CX192: 0 | CY192: 0 | CZ192: 0 | DA192: =DA189-DA80 -> 0 | DB192: 0 | DC192: 0 | DD192: 0 | DE192: 0 | DF192: 0 | DG192: 0 | DH192: 0 | DI192: 0 | DJ192: 0 | DK192: 0 | DL192: 0 | DM192: 0 | DN192: 0 | DO192: 0 | DP192: 0 | DQ192: 0 | DR192: 0 | DS192: 0 | DT192: 0 | DU192: 0 | DV192: 0 | DW192: 0 | DX192: 0
C193: Equity IRR | F193: =IRR(I192:DX192) -> 0.3538892879
C195: DSCR | I195: =IFERROR(I169/(I171+I172),FALSE) -> FALSE | J195: 1.75 | K195: 1.75 | L195: 1.75 | M195: 1.75 | N195: 1.75 | O195: 1.75 | P195: 1.75 | Q195: 1.75 | R195: 1.75 | S195: 1.75 | T195: 1.75 | U195: 1.75 | V195: 1.75 | W195: 1.75 | X195: 1.75 | Y195: 1.75 | Z195: 1.75 | AA195: 1.75 | AB195: 1.75 | AC195: 1.75 | AD195: FALSE | AE195: FALSE | AF195: FALSE | AG195: FALSE | AH195: FALSE | AI195: FALSE | AJ195: FALSE | AK195: FALSE | AL195: FALSE | AM195: FALSE | AN195: FALSE | AO195: =IFERROR(AO169/(AO171+AO172),FALSE) -> FALSE | AP195: FALSE | AQ195: FALSE | AR195: FALSE | AS195: FALSE | AT195: FALSE | AU195: FALSE | AV195: FALSE | AW195: FALSE | AX195: FALSE | AY195: FALSE | AZ195: FALSE | BA195: FALSE | BB195: FALSE | BC195: FALSE | BD195: FALSE | BE195: FALSE | BF195: FALSE | BG195: FALSE | BH195: FALSE | BI195: FALSE | BJ195: FALSE | BK195: FALSE | BL195: FALSE | BM195: FALSE | BN195: FALSE | BO195: FALSE | BP195: FALSE | BQ195: FALSE | BR195: FALSE | BS195: FALSE | BT195: FALSE | BU195: =IFERROR(BU169/(BU171+BU172),FALSE) -> FALSE | BV195: FALSE | BW195: FALSE | BX195: FALSE | BY195: FALSE | BZ195: FALSE | CA195: FALSE | CB195: FALSE | CC195: FALSE | CD195: FALSE | CE195: FALSE | CF195: FALSE | CG195: FALSE | CH195: FALSE | CI195: FALSE | CJ195: FALSE | CK195: FALSE | CL195: FALSE | CM195: FALSE | CN195: FALSE | CO195: FALSE | CP195: FALSE | CQ195: FALSE | CR195: FALSE | CS195: FALSE | CT195: FALSE | CU195: FALSE | CV195: FALSE | CW195: FALSE | CX195: FALSE | CY195: FALSE | CZ195: FALSE | DA195: =IFERROR(DA169/(DA171+DA172),FALSE) -> FALSE | DB195: FALSE | DC195: FALSE | DD195: FALSE | DE195: FALSE | DF195: FALSE | DG195: FALSE | DH195: FALSE | DI195: FALSE | DJ195: FALSE | DK195: FALSE | DL195: FALSE | DM195: FALSE | DN195: FALSE | DO195: FALSE | DP195: FALSE | DQ195: FALSE | DR195: FALSE | DS195: FALSE | DT195: FALSE | DU195: FALSE | DV195: FALSE | DW195: FALSE | DX195: FALSE
C197: CFADS for Loan Life | I197: =IF(I35,I169) -> FALSE | J197: 75.75 | K197: 76.5075 | L197: 77.272575 | M197: 78.04530075 | N197: 78.82575376 | O197: 79.6140113 | P197: 80.41015141 | Q197: 81.21425292 | R197: 82.02639545 | S197: 82.84665941 | T197: 83.675126 | U197: 84.51187726 | V197: 85.35699603 | W197: 86.21056599 | X197: 87.07267165 | Y197: 87.94339837 | Z197: 88.82283235 | AA197: 89.71106068 | AB197: 90.60817128 | AC197: 91.514253 | AD197: FALSE | AE197: FALSE | AF197: FALSE | AG197: FALSE | AH197: FALSE | AI197: FALSE | AJ197: FALSE | AK197: FALSE | AL197: FALSE | AM197: FALSE | AN197: FALSE | AO197: =IF(AO35,AO169) -> FALSE | AP197: FALSE | AQ197: FALSE | AR197: FALSE | AS197: FALSE | AT197: FALSE | AU197: FALSE | AV197: FALSE | AW197: FALSE | AX197: FALSE | AY197: FALSE | AZ197: FALSE | BA197: FALSE | BB197: FALSE | BC197: FALSE | BD197: FALSE | BE197: FALSE | BF197: FALSE | BG197: FALSE | BH197: FALSE | BI197: FALSE | BJ197: FALSE | BK197: FALSE | BL197: FALSE | BM197: FALSE | BN197: FALSE | BO197: FALSE | BP197: FALSE | BQ197: FALSE | BR197: FALSE | BS197: FALSE | BT197: FALSE | BU197: =IF(BU35,BU169) -> FALSE | BV197: FALSE | BW197: FALSE | BX197: FALSE | BY197: FALSE | BZ197: FALSE | CA197: FALSE | CB197: FALSE | CC197: FALSE | CD197: FALSE | CE197: FALSE | CF197: FALSE | CG197: FALSE | CH197: FALSE | CI197: FALSE | CJ197: FALSE | CK197: FALSE | CL197: FALSE | CM197: FALSE | CN197: FALSE | CO197: FALSE | CP197: FALSE | CQ197: FALSE | CR197: FALSE | CS197: FALSE | CT197: FALSE | CU197: FALSE | CV197: FALSE | CW197: FALSE | CX197: FALSE | CY197: FALSE | CZ197: FALSE | DA197: =IF(DA35,DA169) -> FALSE | DB197: FALSE | DC197: FALSE | DD197: FALSE | DE197: FALSE | DF197: FALSE | DG197: FALSE | DH197: FALSE | DI197: FALSE | DJ197: FALSE | DK197: FALSE | DL197: FALSE | DM197: FALSE | DN197: FALSE | DO197: FALSE | DP197: FALSE | DQ197: FALSE | DR197: FALSE | DS197: FALSE | DT197: FALSE | DU197: FALSE | DV197: FALSE | DW197: FALSE | DX197: FALSE
C198: NPV of CFADS | F198: =F153 -> 0.045 | G198: =NPV(F198,I197:DX197) -> 1069.280318
C199: Debt Balance | G199: =F41 -> 611.0173244
C200: LLCR | G200: =G198/G199 -> 1.75
C202: CFADS for Life | F202: =F198 -> 0.045 | G202: =NPV(F202,I202:DX202) -> 1385.411918 | I202: =IF(I5,I169) -> FALSE | J202: 75.75 | K202: 76.5075 | L202: 77.272575 | M202: 78.04530075 | N202: 78.82575376 | O202: 79.6140113 | P202: 80.41015141 | Q202: 81.21425292 | R202: 82.02639545 | S202: 82.84665941 | T202: 83.675126 | U202: 84.51187726 | V202: 85.35699603 | W202: 86.21056599 | X202: 87.07267165 | Y202: 87.94339837 | Z202: 88.82283235 | AA202: 89.71106068 | AB202: 90.60817128 | AC202: 91.514253 | AD202: 92.42939553 | AE202: 93.35368948 | AF202: 94.28722638 | AG202: 95.23009864 | AH202: 96.18239963 | AI202: 97.14422362 | AJ202: 98.11566586 | AK202: 99.09682252 | AL202: 100.0877907 | AM202: 101.0886686 | AN202: FALSE | AO202: =IF(AO5,AO169) -> FALSE | AP202: FALSE | AQ202: FALSE | AR202: FALSE | AS202: FALSE | AT202: FALSE | AU202: FALSE | AV202: FALSE | AW202: FALSE | AX202: FALSE | AY202: FALSE | AZ202: FALSE | BA202: FALSE | BB202: FALSE | BC202: FALSE | BD202: FALSE | BE202: FALSE | BF202: FALSE | BG202: FALSE | BH202: FALSE | BI202: FALSE | BJ202: FALSE | BK202: FALSE | BL202: FALSE | BM202: FALSE | BN202: FALSE | BO202: FALSE | BP202: FALSE | BQ202: FALSE | BR202: FALSE | BS202: FALSE | BT202: FALSE | BU202: =IF(BU5,BU169) -> FALSE | BV202: FALSE | BW202: FALSE | BX202: FALSE | BY202: FALSE | BZ202: FALSE | CA202: FALSE | CB202: FALSE | CC202: FALSE | CD202: FALSE | CE202: FALSE | CF202: FALSE | CG202: FALSE | CH202: FALSE | CI202: FALSE | CJ202: FALSE | CK202: FALSE | CL202: FALSE | CM202: FALSE | CN202: FALSE | CO202: FALSE | CP202: FALSE | CQ202: FALSE | CR202: FALSE | CS202: FALSE | CT202: FALSE | CU202: FALSE | CV202: FALSE | CW202: FALSE | CX202: FALSE | CY202: FALSE | CZ202: FALSE | DA202: =IF(DA5,DA169) -> FALSE | DB202: FALSE | DC202: FALSE | DD202: FALSE | DE202: FALSE | DF202: FALSE | DG202: FALSE | DH202: FALSE | DI202: FALSE | DJ202: FALSE | DK202: FALSE | DL202: FALSE | DM202: FALSE | DN202: FALSE | DO202: FALSE | DP202: FALSE | DQ202: FALSE | DR202: FALSE | DS202: FALSE | DT202: FALSE | DU202: FALSE | DV202: FALSE | DW202: FALSE | DX202: FALSE
C203: Debt Balance | G203: =G199 -> 611.0173244
C204: PLCR | G204: =G202/G203 -> 2.267385658
B206: Graphs
I207: =I99 ->  | J207: 2 | K207: 3 | L207: 4 | M207: 5 | N207: 6 | O207: 7 | P207: 8 | Q207: 9 | R207: 10 | S207: 11 | T207: 12 | U207: 13 | V207: 14 | W207: 15 | X207: 16 | Y207: 17 | Z207: 18 | AA207: 19 | AB207: 20 | AC207: 21 | AD207: 22 | AE207: 23 | AF207: 24 | AG207: 25 | AH207: 26 | AI207: 27 | AJ207: 28 | AK207: 29 | AL207: 30 | AM207: 31 | AO207: =AO99 ->  | BU207: =BU99 ->  | DA207: =DA99 -> 
D208: Scheduled Debt Service - Senior | I208: =I171+I172 -> 0 | J208: 43.28571429 | K208: 43.71857143 | L208: 44.15575714 | M208: 44.59731471 | N208: 45.04328786 | O208: 45.49372074 | P208: 45.94865795 | Q208: 46.40814453 | R208: 46.87222597 | S208: 47.34094823 | T208: 47.81435771 | U208: 48.29250129 | V208: 48.7754263 | W208: 49.26318057 | X208: 49.75581237 | Y208: 50.2533705 | Z208: 50.7559042 | AA208: 51.26346324 | AB208: 51.77609788 | AC208: 52.29385885 | AD208: 0 | AE208: 0 | AF208: 0 | AG208: 0 | AH208: 0 | AI208: 0 | AJ208: 0 | AK208: 0 | AL208: 0 | AM208: 0 | AN208: 0 | AO208: =AO171+AO172 -> 0 | AP208: 0 | AQ208: 0 | AR208: 0 | AS208: 0 | AT208: 0 | AU208: 0 | AV208: 0 | AW208: 0 | AX208: 0 | AY208: 0 | AZ208: 0 | BA208: 0 | BB208: 0 | BC208: 0 | BD208: 0 | BE208: 0 | BF208: 0 | BG208: 0 | BH208: 0 | BI208: 0 | BJ208: 0 | BK208: 0 | BL208: 0 | BM208: 0 | BN208: 0 | BO208: 0 | BP208: 0 | BQ208: 0 | BR208: 0 | BS208: 0 | BT208: 0 | BU208: =BU171+BU172 -> 0 | BV208: 0 | BW208: 0 | BX208: 0 | BY208: 0 | BZ208: 0 | CA208: 0 | CB208: 0 | CC208: 0 | CD208: 0 | CE208: 0 | CF208: 0 | CG208: 0 | CH208: 0 | CI208: 0 | CJ208: 0 | CK208: 0 | CL208: 0 | CM208: 0 | CN208: 0 | CO208: 0 | CP208: 0 | CQ208: 0 | CR208: 0 | CS208: 0 | CT208: 0 | CU208: 0 | CV208: 0 | CW208: 0 | CX208: 0 | CY208: 0 | CZ208: 0 | DA208: =DA171+DA172 -> 0 | DB208: 0 | DC208: 0 | DD208: 0 | DE208: 0 | DF208: 0 | DG208: 0 | DH208: 0 | DI208: 0 | DJ208: 0 | DK208: 0 | DL208: 0 | DM208: 0 | DN208: 0 | DO208: 0 | DP208: 0 | DQ208: 0 | DR208: 0 | DS208: 0 | DT208: 0 | DU208: 0 | DV208: 0 | DW208: 0 | DX208: 0
D209: Scheduled Debt Service - Subordinated
D210: Sweep | I210: =I177 -> 0 | J210: 0 | K210: 0 | L210: 0 | M210: 0 | N210: 0 | O210: 0 | P210: 0 | Q210: 0 | R210: 0 | S210: 0 | T210: 0 | U210: 0 | V210: 0 | W210: 0 | X210: 0 | Y210: 0 | Z210: 0 | AA210: 0 | AB210: 0 | AC210: 0 | AD210: 0 | AE210: 0 | AF210: 0 | AG210: 0 | AH210: 0 | AI210: 0 | AJ210: 0 | AK210: 0 | AL210: 0 | AM210: 0 | AN210: 0 | AO210: =AO177 -> 0 | AP210: 0 | AQ210: 0 | AR210: 0 | AS210: 0 | AT210: 0 | AU210: 0 | AV210: 0 | AW210: 0 | AX210: 0 | AY210: 0 | AZ210: 0 | BA210: 0 | BB210: 0 | BC210: 0 | BD210: 0 | BE210: 0 | BF210: 0 | BG210: 0 | BH210: 0 | BI210: 0 | BJ210: 0 | BK210: 0 | BL210: 0 | BM210: 0 | BN210: 0 | BO210: 0 | BP210: 0 | BQ210: 0 | BR210: 0 | BS210: 0 | BT210: 0 | BU210: =BU177 -> 0 | BV210: 0 | BW210: 0 | BX210: 0 | BY210: 0 | BZ210: 0 | CA210: 0 | CB210: 0 | CC210: 0 | CD210: 0 | CE210: 0 | CF210: 0 | CG210: 0 | CH210: 0 | CI210: 0 | CJ210: 0 | CK210: 0 | CL210: 0 | CM210: 0 | CN210: 0 | CO210: 0 | CP210: 0 | CQ210: 0 | CR210: 0 | CS210: 0 | CT210: 0 | CU210: 0 | CV210: 0 | CW210: 0 | CX210: 0 | CY210: 0 | CZ210: 0 | DA210: =DA177 -> 0 | DB210: 0 | DC210: 0 | DD210: 0 | DE210: 0 | DF210: 0 | DG210: 0 | DH210: 0 | DI210: 0 | DJ210: 0 | DK210: 0 | DL210: 0 | DM210: 0 | DN210: 0 | DO210: 0 | DP210: 0 | DQ210: 0 | DR210: 0 | DS210: 0 | DT210: 0 | DU210: 0 | DV210: 0 | DW210: 0 | DX210: 0
D211: Repayment of Default | I211: =I181 -> 0 | J211: 0 | K211: 0 | L211: 0 | M211: 0 | N211: 0 | O211: 0 | P211: 0 | Q211: 0 | R211: 0 | S211: 0 | T211: 0 | U211: 0 | V211: 0 | W211: 0 | X211: 0 | Y211: 0 | Z211: 0 | AA211: 0 | AB211: 0 | AC211: 0 | AD211: 0 | AE211: 0 | AF211: 0 | AG211: 0 | AH211: 0 | AI211: 0 | AJ211: 0 | AK211: 0 | AL211: 0 | AM211: 0 | AN211: 0 | AO211: =AO181 -> 0 | AP211: 0 | AQ211: 0 | AR211: 0 | AS211: 0 | AT211: 0 | AU211: 0 | AV211: 0 | AW211: 0 | AX211: 0 | AY211: 0 | AZ211: 0 | BA211: 0 | BB211: 0 | BC211: 0 | BD211: 0 | BE211: 0 | BF211: 0 | BG211: 0 | BH211: 0 | BI211: 0 | BJ211: 0 | BK211: 0 | BL211: 0 | BM211: 0 | BN211: 0 | BO211: 0 | BP211: 0 | BQ211: 0 | BR211: 0 | BS211: 0 | BT211: 0 | BU211: =BU181 -> 0 | BV211: 0 | BW211: 0 | BX211: 0 | BY211: 0 | BZ211: 0 | CA211: 0 | CB211: 0 | CC211: 0 | CD211: 0 | CE211: 0 | CF211: 0 | CG211: 0 | CH211: 0 | CI211: 0 | CJ211: 0 | CK211: 0 | CL211: 0 | CM211: 0 | CN211: 0 | CO211: 0 | CP211: 0 | CQ211: 0 | CR211: 0 | CS211: 0 | CT211: 0 | CU211: 0 | CV211: 0 | CW211: 0 | CX211: 0 | CY211: 0 | CZ211: 0 | DA211: =DA181 -> 0 | DB211: 0 | DC211: 0 | DD211: 0 | DE211: 0 | DF211: 0 | DG211: 0 | DH211: 0 | DI211: 0 | DJ211: 0 | DK211: 0 | DL211: 0 | DM211: 0 | DN211: 0 | DO211: 0 | DP211: 0 | DQ211: 0 | DR211: 0 | DS211: 0 | DT211: 0 | DU211: 0 | DV211: 0 | DW211: 0 | DX211: 0
D212: Default | I212: =-I180 -> 0 | J212: 0 | K212: 0 | L212: 0 | M212: 0 | N212: 0 | O212: 0 | P212: 0 | Q212: 0 | R212: 0 | S212: 0 | T212: 0 | U212: 0 | V212: 0 | W212: 0 | X212: 0 | Y212: 0 | Z212: 0 | AA212: 0 | AB212: 0 | AC212: 0 | AD212: 0 | AE212: 0 | AF212: 0 | AG212: 0 | AH212: 0 | AI212: 0 | AJ212: 0 | AK212: 0 | AL212: 0 | AM212: 0 | AN212: 0 | AO212: =-AO180 -> 0 | AP212: 0 | AQ212: 0 | AR212: 0 | AS212: 0 | AT212: 0 | AU212: 0 | AV212: 0 | AW212: 0 | AX212: 0 | AY212: 0 | AZ212: 0 | BA212: 0 | BB212: 0 | BC212: 0 | BD212: 0 | BE212: 0 | BF212: 0 | BG212: 0 | BH212: 0 | BI212: 0 | BJ212: 0 | BK212: 0 | BL212: 0 | BM212: 0 | BN212: 0 | BO212: 0 | BP212: 0 | BQ212: 0 | BR212: 0 | BS212: 0 | BT212: 0 | BU212: =-BU180 -> 0 | BV212: 0 | BW212: 0 | BX212: 0 | BY212: 0 | BZ212: 0 | CA212: 0 | CB212: 0 | CC212: 0 | CD212: 0 | CE212: 0 | CF212: 0 | CG212: 0 | CH212: 0 | CI212: 0 | CJ212: 0 | CK212: 0 | CL212: 0 | CM212: 0 | CN212: 0 | CO212: 0 | CP212: 0 | CQ212: 0 | CR212: 0 | CS212: 0 | CT212: 0 | CU212: 0 | CV212: 0 | CW212: 0 | CX212: 0 | CY212: 0 | CZ212: 0 | DA212: =-DA180 -> 0 | DB212: 0 | DC212: 0 | DD212: 0 | DE212: 0 | DF212: 0 | DG212: 0 | DH212: 0 | DI212: 0 | DJ212: 0 | DK212: 0 | DL212: 0 | DM212: 0 | DN212: 0 | DO212: 0 | DP212: 0 | DQ212: 0 | DR212: 0 | DS212: 0 | DT212: 0 | DU212: 0 | DV212: 0 | DW212: 0 | DX212: 0
D213: Dividend | I213: =I189 -> 0 | J213: =J189 -> 32.46428571 | K213: 32.78892857 | L213: 33.11681786 | M213: 33.44798604 | N213: 33.7824659 | O213: 34.12029056 | P213: 34.46149346 | Q213: 34.8061084 | R213: 35.15416948 | S213: 35.50571117 | T213: 35.86076829 | U213: 36.21937597 | V213: 36.58156973 | W213: 36.94738543 | X213: 37.31685928 | Y213: 37.69002787 | Z213: 38.06692815 | AA213: 38.44759743 | AB213: 38.83207341 | AC213: 39.22039414 | AD213: 92.42939553 | AE213: 93.35368948 | AF213: 94.28722638 | AG213: 95.23009864 | AH213: 96.18239963 | AI213: 97.14422362 | AJ213: 98.11566586 | AK213: 99.09682252 | AL213: 100.0877907 | AM213: 101.0886686 | AN213: 0 | AO213: 0 | AP213: 0 | AQ213: 0 | AR213: 0 | AS213: 0 | AT213: 0 | AU213: 0 | AV213: 0 | AW213: 0 | AX213: 0 | AY213: 0 | AZ213: 0 | BA213: 0 | BB213: 0 | BC213: 0 | BD213: 0 | BE213: 0 | BF213: 0 | BG213: 0 | BH213: 0 | BI213: 0 | BJ213: 0 | BK213: 0 | BL213: 0 | BM213: 0 | BN213: 0 | BO213: 0 | BP213: 0 | BQ213: 0 | BR213: 0 | BS213: 0 | BT213: 0 | BU213: 0 | BV213: =BV189 -> 0 | BW213: 0 | BX213: 0 | BY213: 0 | BZ213: 0 | CA213: 0 | CB213: 0 | CC213: 0 | CD213: 0 | CE213: 0 | CF213: 0 | CG213: 0 | CH213: 0 | CI213: 0 | CJ213: 0 | CK213: 0 | CL213: 0 | CM213: 0 | CN213: 0 | CO213: 0 | CP213: 0 | CQ213: 0 | CR213: 0 | CS213: 0 | CT213: 0 | CU213: 0 | CV213: 0 | CW213: 0 | CX213: 0 | CY213: 0 | CZ213: 0 | DA213: 0 | DB213: 0 | DC213: 0 | DD213: 0 | DE213: 0 | DF213: 0 | DG213: 0 | DH213: 0 | DI213: 0 | DJ213: 0 | DK213: 0 | DL213: 0 | DM213: 0 | DN213: 0 | DO213: 0 | DP213: 0 | DQ213: 0 | DR213: 0 | DS213: 0 | DT213: 0 | DU213: 0 | DV213: 0 | DW213: 0 | DX213: 0
D215: Equity IRR | F215: =F193 -> 0.3538892879 | G215: Percent of Cash Flow | I215: =F116 -> 1 | J215: Cash Sweep Percent | L215: =F175 -> 0 | M215: Unpaid Debt at Project Life | P215: =DX152 -> 0 | Q215: Unpaid Debt at Loan Life

Sheet Sheet1
B2: Timing
C3: Period
C4: Construction Periods | E4: Years | F4: 1
C5: Operating Life | E5: Life | F5: 40
B7: Operating Cash Flow
C8: Inflation Index | E8: % | F8: 0.02
C10: Revenues | E10: Annual Euro | F10: 60
C11: Operating Expense | E11: Annual Euro | F11: 10
C12: Capital Expenditure | E12: One Time | F12: 1000
C14: EBITDA | E14: Euro
C15: Free Cash Flow | E15: Euro
C16: PIRR | E16: % p.a.
C18: Opening Balance | E18: Euro
C19: Add: Re-Investment | E19: Euro
C20: Add: Dividends | E20: Euro
C21: Closing Balance | E21: Euro
C23: Ending Balance | E23: Euro
C24: Investment | E24: Euro
C25: Growth Ratio | E25: x
C26: Annual Growth | E26: % p.a.
B28: Debt Structuring
C29: Tenure of Debt | E29: Years | F29: 30
C30: Interest Rate | E30: % p.a. | F30: 0.045
C31: DSCR for Sizing | E31: x | F31: 1.3
C33: Flag for Tenure | E33: Flag | F33: =F29 -> 30
C34: CFADS for Tenure | E34: Euro
C35: Target Debt Service =CFADS/DSCR | E35: Euro | F35: =F31 -> 1.3
C36: PV of Debt =Debt | E36: Euro | F36: =NPV(F30,I35:DX35) -> 0
C38: Opening Balance | E38: Euro
C39: Add: Debt Draws | E39: Euro | F39: =F36 -> 0
C40: Less: Debt Repayment =DS - Int | E40: Euro
C41: Closing Balance | E41: Euro
C42: Interest Opening Balance x Int Rate | E42: Euro | F42: =F30 -> 0.045
B44: Cash Flow Statement
C45: Cash Before COD - Uses and Source
D46: Uses
D47: Cap Exp | E47: Euro
D49: Source
D50: Debt | E50: Euro
D51: Equity Investment | E51: Euro
D52: Total
C54: Cash Flow After
D55: EBITDA | E55: Euro
D56: Less: Interest | E56: Euro
D57: Less: Repayment | E57: Euro
D58: Dividends | E58: Euro
B60: Summary Analysis
D62: Equity Net Cash Flow | E62: Euro
D63: Equity IRR | E63: =IRR(I62:DX62) -> 
D66: Cash Flow | E66: Euro
D67: Debt Service | E67: Euro
D69: Equity IRR | E69: =E63 ->  | F69: DSCR
D71: DSCR
B73: Risk Analysis
C74: Scheduled Debt Repayment
C76: Volatility | E76: % | F76: 0
C77: Mean Reversion | E77: % | F77: 0
C79: Base Revenue Estimate | E79: Euro | F79: =G79/100 -> 0
C81: Random Number - Probability | E81: %
C82: Cash Flow Change Before Volatilty | E82: Factor
C83: Cash Flow Change After Volatilty | E83: Factor | F83: =F76 -> 0
C85: Last Period | E85: Index
C86: Mean Reversion Adjustment | E86: Index | F86: =F77 -> 0
C88: Random Index | E88: Index | F88: =F76 -> 0
C89: Adjusted Revenue | E89: Euro
C90: Operating Expense | E90: Euro
C91: Adjusted EBITDA | E91: Euro
B93: Adjusted Debt Schedule
C94: Base Debt
D95: Opening Debt | E95: Euro
D96: Add: Debt Issue | E96: Euro
D97: Less: Scheduled | E97: Euro
D98: Less: Cash Sweep | E98: Euro
D99: Closing Balance | E99: Euro
D100: Interest | E100: Euro | F100: =$F$42 -> 0.045
C102: Defaulted Debt
D103: Opening Balance | E103: Euro
D104: Add: Default | E104: Euro
D105: Less: Repayment of Default | E105: Euro
D106: Closing Balance | E106: Euro
D107: Interest | E107: Euro | F107: =$F$42 -> 0.045
D109: Total Interest | E109: Euro
B111: Adjusted Cash Waterfall
C112: Adjusted Revenues | E112: Euro
C113: Less Operating Expense | E113: Euro
C114: EBITDA
C116: Less: Interest | E116: Euro
C117: Less: Debt Repayment Scheduled | E117: Euro
C118: Cash Flow After Scheduled Debt Service | E118: Euro
C120: Cash Sweep | E120: % | F120: =G120/100 -> 0
C121: Cash Swept Before Constraint | E121: Euro
C122: Cash Swept After Constraint
C124: Cash Flow Before Default | E124: Euro
C125: Add: Repayment not Made from Default | E125: Euro
C126: Less: Repayment of Default | E126: Euro
C128: Cash Flow After Sweep | E128: Euro
C130: Dividends
B132: Ratios
C133: Equity Cash Flow
C134: Equity IRR | F134: =IRR(I133:DX133) -> 
C136: DSCR
C138: CFADS for Loan Life
C139: NPV of CFADS | F139: =F107 -> 0.045
C140: Debt Balance
C141: LLCR
C143: CFADS for Life | F143: =F139 -> 0.045
C144: Debt Balance
C145: PLCR
B147: Graphs
D149: Scheduled Debt Service
D150: Sweep
D151: Repayment of Default
D152: Default
D153: Dividend
D155: Equity IRR | F155: =F134 -> 
